Workbook

Sheet Cover
A1: =RIGHT(CELL("filename", $A$1), LEN(CELL("filename", $A$1)) - SEARCH("]", CELL("filename", $A$1))) -> Cover
B3: Model name: | C3: Cost sharing and total costs model
B4: Version number: | C4: 2m
B5: Filename: | C5: =MID(CELL("filename"), FIND("[", CELL("filename"), 1) + 1, FIND("]", CELL("filename"), 1) - FIND("[", CELL("filename"), 1) - 1) -> Cost Sharing model_HDD_ST_DD.xlsm
B6: Date: | C6: 2019-06-03
B9: Author: | C9: Thomas Jones
B10: Author contact information: | C10: Thomas.Jones@ofwat.gov.uk
B11: Sponsor: | C11: Andy Duff
B12: Sponsor contact information: | C12: Andy.Duff@ofwat.gov.uk
B15: Summary of model: | C15: This model is used to apply cost sharing to expenditure for water resources, water network and wastewater network.
C16: It then allows for profiling of operating and capital expenditure for all wholesale controls to be used in the PR19 Financial Model.
B18: Error check status | C18: =Check!C$8 -> 0
B19: Track changes status | C19: =Check!$F$20 -> 35
B22: Instructions
B23: Track | C23: To store Track in the Track sheet, follow the steps mentioned below:
B25: Using Macro | C25: Please follow the steps mentioned below for storing Track using a macro:
B27: Step 1 - | C27: Go to the Track sheet and press "Store Outputs" button to save the track for new case
C28: =Track!$E$3 -> Store Track
B30: Step 2 - | C30: A dialog box "Enter the label for the new track column" will appear, type the new track label (For ex: version name like "01A"), the label will appear in row 5.
B32: Step 3 - | C32: A new dialog box "Enter the comment for the new track" will appear, write the brief description of the change done in the model. The description will be updated in row 62.
B34: Step 4 - | C34: Press enter, a new track column will appear before the last stored track:
B36: Step 5 - | C36: Review the difference between stored cases and active case (col H) by selecting the stored case in cell H5.
C37: =Track!$F$5 -> Nil inputs
B39: Manual Steps Macro | C39: Please follow the steps mentioned below for storing Track manually:
B41: Step 1 - | C41: Go to last stored column of 'Track' sheet
C42: Select the column by pressing Ctrl + Spacebar and Copy (Ctrl + C). Then insert a new column after the last stored column by pressing Alt, I, E
B44: Step 2 - | C44: Select the newly inserted column (Ctrl + Spacebar) and delete the previously stored values from this column by pressing Delete button
B46: Step 3 - | C46: Go to active track column (H column)
C47: =Track!$F$5 -> Nil inputs
C48: Select the range from H6 till 'do not delete row - range end' row and Copy (Ctrl + C)
B50: Step 4 - | C50: Paste the selected values (Alt E, S, V) in newly inserted column
B52: Step 5 - | C52: Update 'New track name' in row 5 of newly inserted column. Then select 'New track name' from the dropdown list present in H5.
B54: Step 6 - | C54: Review the difference between stored cases and active case (col H) by selecting the stored case in cell H5.
C55: =Track!$F$5 -> Nil inputs

Sheet Adjustments log
B2: Adjustments log
B5: Run | C5: 7
B6: Type | C6: Notional
B7: Stage | C7: Ofwat (DD)
B10: # | C10: Description | D10: Location | E10: Link
C12: no adjustments have been made in the model

Sheet F_Inputs
C1: Pr19CostSharIn5
A2: Acronym | B2: Reference | C2: Item description | D2: Unit | E2: Model | F2: 2020-21 | G2: 2021-22 | H2: 2022-23 | I2: 2023-24 | J2: 2024-25
A4: HDD | B4: C_WRTOTEXFM_CS_PR19CA004 | C4: Final cost allowance for cost sharing for Water Resources | D4: £m | E4: Price Review 2019 | F4: 3.67788916 | G4: 3.67788916 | H4: 3.67788916 | I4: 3.67788916 | J4: 3.67788916
A5: HDD | B5: C_WNTOTEXFM_CS_PR19CA004 | C5: Final cost allowance for cost sharing for Network Plus Water | D5: £m | E5: Price Review 2019 | F5: 20.58810482 | G5: 20.58810482 | H5: 20.58810482 | I5: 20.58810482 | J5: 20.58810482
A6: HDD | B6: WS1017WR_SEPT18 | C6: Capital Expenditure (excluding Atypical expenditure) - Total gross capital expenditure excluding third party services - Water resources | D6: £m | E6: Price Review 2019 | F6: 2.503 | G6: 2.61 | H6: 1.33 | I6: 1.194 | J6: 1.172
A7: HDD | B7: WS1017RWD_SEPT18 | C7: Capital Expenditure (excluding Atypical expenditure) - Total gross capital expenditure excluding third party services - Raw water distribution | D7: £m | E7: Price Review 2019 | F7: 0.5430764572 | G7: 0.791208172 | H7: 0.7909150145 | I7: 0.5427947201 | J7: 0.5390952052
A8: HDD | B8: WS1017WT_SEPT18 | C8: Total gross capital expenditure excluding third party services - Water treatment | D8: £m | E8: Price Review 2019 | F8: 1.049405801 | G8: 1.047462409 | H8: 1.3092637 | I8: 1.31071302 | J8: 1.284202783
A9: HDD | B9: WS1017TWD_SEPT18 | C9: Total gross capital expenditure excluding third party services - Treated water distribution | D9: £m | E9: Price Review 2019 | F9: 5.069517742 | G9: 5.178329419 | H9: 5.495821286 | I9: 5.45649226 | J9: 5.431702012
A10: HDD | B10: WS1017CAW_SEPT18 | C10: Total gross capital expenditure excluding third party services - Total | D10: £m | E10: Price Review 2019 | F10: 9.165 | G10: 9.627 | H10: 8.926 | I10: 8.504 | J10: 8.427
A11: HDD | B11: WS1009WR_SEPT18 | C11: Operating expenditure (excluding Atypical expenditure) - Total operating expenditure excluding third party services - Water resources | D11: £m | E11: Price Review 2019 | F11: 1.895419551 | G11: 1.863498247 | H11: 1.816475767 | I11: 1.792634829 | J11: 1.800024089
A12: HDD | B12: WS1009RWD_SEPT18 | C12: Operating expenditure (excluding Atypical expenditure) - Total operating expenditure excluding third party services - Raw water distribution | D12: £m | E12: Price Review 2019 | F12: 0.5476956185 | G12: 0.5276790169 | H12: 0.52288767 | I12: 0.5180217135 | J12: 0.5266591942
A13: HDD | B13: WS1009WT_SEPT18 | C13: Total operating expenditure (excluding third party services) - Water treatment | D13: £m | E13: Price Review 2019 | F13: 4.704983513 | G13: 4.607823153 | H13: 4.663873607 | I13: 4.610081788 | J13: 4.628170372
A14: HDD | B14: WS1009TWD_SEPT18 | C14: Total operating expenditure (excluding third party services) - Treated water distribution | D14: £m | E14: Price Review 2019 | F14: 8.180742415 | G14: 7.808909634 | H14: 7.737641184 | I14: 7.665290098 | J14: 7.843555434
A15: HDD | B15: WS1009CAW_SEPT18 | C15: Total operating expenditure (excluding third party services) - Total | D15: £m | E15: Price Review 2019 | F15: 15.3288411 | G15: 14.80791005 | H15: 14.74087823 | I15: 14.58602843 | J15: 14.79840909
A16: HDD | B16: C_WWNTOTEXFM_CS_PR19CA008 | C16: Efficient totex for cost sharing network plus wastewater £m | D16: £m | E16: Price Review 2019 | F16: 4.538220031 | G16: 4.538220031 | H16: 4.538220031 | I16: 4.538220031 | J16: 4.538220031
A17: HDD | B17: WWS1009SC_SEPT18 | C17: Operating expenditure - Total operating expenditure (excluding third party services) - Sewage collection | D17: £m | E17: Price Review 2019 | F17: 0.8271402434 | G17: 0.8204212814 | H17: 0.8139963647 | I17: 0.8073998588 | J17: 0.8052648252
A18: HDD | B18: WWS1009ST_SEPT18 | C18: Operating expenditure - Total operating expenditure (excluding third party services) - Sewage treatment | D18: £m | E18: Price Review 2019 | F18: 1.620859757 | G18: 1.635578719 | H18: 1.615003635 | I18: 1.609600141 | J18: 1.613735175
A19: HDD | B19: WWS1009STP_SEPT18 | C19: Operating expenditure - Total operating expenditure (excluding third party services) - Sludge transport | D19: £m | E19: Price Review 2019 | F19: 0.3839350826 | G19: 0.3983246291 | H19: 0.3983297975 | I19: 0.3983347552 | J19: 0.3983375455
A20: HDD | B20: WWS1009SDT_SEPT18 | C20: Operating expenditure - Total operating expenditure (excluding third party services) - Sludge treatment | D20: £m | E20: Price Review 2019 | F20: 0.1852859055 | G20: 0.1939242446 | H20: 0.1939180862 | I20: 0.1939121789 | J20: 0.1939088542
A21: HDD | B21: WWS1009SDD_SEPT18 | C21: Operating expenditure - Total operating expenditure (excluding third party services) - Sludge disposal | D21: £m | E21: Price Review 2019 | F21: 0.1287790119 | G21: 0.1337511264 | H21: 0.1337521163 | I21: 0.1337530659 | J21: 0.1337536003
A22: HDD | B22: WWS1009CAS_SEPT18 | C22: Operating expenditure - Total operating expenditure (excluding third party services) - Total | D22: £m | E22: Price Review 2019 | F22: 3.146 | G22: 3.182 | H22: 3.155 | I22: 3.143 | J22: 3.145
A23: HDD | B23: WWS1017SC_SEPT18 | C23: Capital expenditure - Total gross capital expenditure excluding third party services - Sewage collection | D23: £m | E23: Price Review 2019 | F23: 0.3854387922 | G23: 0.3869520472 | H23: 0.3886118306 | I23: 0.3875089005 | J23: 0.3915936359
A24: HDD | B24: WWS1017ST_SEPT18 | C24: Capital expenditure - Total gross capital expenditure excluding third party services - Sewage treatment | D24: £m | E24: Price Review 2019 | F24: 1.009561208 | G24: 1.331047953 | H24: 1.556388169 | I24: 2.683491099 | J24: 1.104406364
A25: HDD | B25: WWS1017STP_SEPT18 | C25: Capital expenditure - Total gross capital expenditure excluding third party services - Sludge transport | D25: £m | E25: Price Review 2019 | F25: 0 | G25: 0 | H25: 0 | I25: 0 | J25: 0
A26: HDD | B26: WWS1017SDT_SEPT18 | C26: Capital expenditure - Total gross capital expenditure excluding third party services - Sludge treatment | D26: £m | E26: Price Review 2019 | F26: 0 | G26: 0 | H26: 0 | I26: 0 | J26: 0
A27: HDD | B27: WWS1017SDD_SEPT18 | C27: Capital expenditure - Total gross capital expenditure excluding third party services - Sludge disposal | D27: £m | E27: Price Review 2019 | F27: 0 | G27: 0 | H27: 0 | I27: 0 | J27: 0
A28: HDD | B28: WWS1017CAS_SEPT18 | C28: Capital expenditure - Total gross capital expenditure excluding third party services - Total | D28: £m | E28: Price Review 2019 | F28: 1.395 | G28: 1.718 | H28: 1.945 | I28: 3.071 | J28: 1.496
A29: HDD | B29: C_BRTOTEXFM_CS_PR19CA008 | C29: Efficient totex for cost sharing bioresources £m | D29: £m | E29: Price Review 2019 | F29: 1.070597559 | G29: 1.070597559 | H29: 1.070597559 | I29: 1.070597559 | J29: 1.070597559
A30: HDD | B30: C_DUMMYTOTEXFM_PR19CA008 | C30: DUMMY - Total gross totex - real | D30: £m | E30: Price Review 2019 | F30: 0 | G30: 0 | H30: 0 | I30: 0 | J30: 0
A31: HDD | B31: BM844CAS_DMMY_SEPT18 | C31: Operating expenditure - Other operating expenditure - Total operating expenditure (excluding third party services) | D31: £m | E31: Price Review 2019 | F31: 0 | G31: 0 | H31: 0 | I31: 0 | J31: 0
A32: HDD | B32: BC30998CAS_DMMY_SEPT18 | C32: Capital expenditure - Total gross capital expenditure excluding third party services | D32: £m | E32: Price Review 2019 | F32: 0 | G32: 0 | H32: 0 | I32: 0 | J32: 0
A33: HDD | B33: C_WROTHER_EXCPDR_PR19CA004 | C33: WR - Other costs not subject to cost sharing excl PDR | D33: £m | E33: Price Review 2019 | F33: 1.452789504 | G33: 1.452789504 | H33: 1.452789504 | I33: 1.452789504 | J33: 1.452789504
A34: HDD | B34: C_WNOTHER_EXCPDR_PR19CA004 | C34: WN - Other costs not subject to cost sharing excl PDR | D34: £m | E34: Price Review 2019 | F34: 1.749597118 | G34: 1.749597118 | H34: 1.749597118 | I34: 1.749597118 | J34: 1.749597118
A35: HDD | B35: C_WWNOTHER_EXCPDR_PR19CA008 | C35: WWN - Other costs not subject to cost sharing excl PDR | D35: £m | E35: Price Review 2019 | F35: 0 | G35: 0 | H35: 0 | I35: 0 | J35: 0
A36: HDD | B36: C_BROTHER_EXCPDR_PR19CA008 | C36: BR - Other costs not subject to cost sharing excl PDR | D36: £m | E36: Price Review 2019 | F36: 0 | G36: 0 | H36: 0 | I36: 0 | J36: 0
A37: HDD | B37: WS1019WR | C37: Capital Expenditure (excluding Atypical expenditure) - Total gross capital expenditure - Water resources | D37: £m | E37: Price Review 2019 | F37: 2.503 | G37: 2.61 | H37: 1.33 | I37: 1.194 | J37: 1.172
A38: HDD | B38: WS1019RWD | C38: Capital Expenditure (excluding Atypical expenditure) - Total gross capital expenditure - Raw water distribution | D38: £m | E38: Price Review 2019 | F38: 0.5430764572 | G38: 0.791208172 | H38: 0.7909150145 | I38: 0.5427947201 | J38: 0.5390952052
A39: HDD | B39: WS1019WT | C39: Total gross capital expenditure - Water treatment | D39: £m | E39: Price Review 2019 | F39: 1.049405801 | G39: 1.047462409 | H39: 1.3092637 | I39: 1.31071302 | J39: 1.284202783
A40: HDD | B40: WS1019TWD | C40: Total gross capital expenditure - Treated water distribution | D40: £m | E40: Price Review 2019 | F40: 5.069517742 | G40: 5.178329419 | H40: 5.495821286 | I40: 5.45649226 | J40: 5.431702012
A41: HDD | B41: WS1011WR | C41: Operating expenditure (excluding Atypical expenditure) - Total operating expenditure - Water resources | D41: £m | E41: Price Review 2019 | F41: 3.515 | G41: 3.231 | H41: 3.184 | I41: 3.16 | J41: 3.342
A42: HDD | B42: WS1011RWD | C42: Operating expenditure (excluding Atypical expenditure) - Total operating expenditure - Raw water distribution | D42: £m | E42: Price Review 2019 | F42: 0.5476956185 | G42: 0.5276790169 | H42: 0.52288767 | I42: 0.5180217135 | J42: 0.5266591942
A43: HDD | B43: WS1011WT | C43: Total operating expenditure - Water treatment | D43: £m | E43: Price Review 2019 | F43: 6.442389974 | G43: 6.345229615 | H43: 6.401280069 | I43: 6.347488249 | J43: 6.365576833
A44: HDD | B44: WS1011TWD | C44: Total operating expenditure - Treated water distribution | D44: £m | E44: Price Review 2019 | F44: 8.357914407 | G44: 7.989091368 | H44: 7.926832261 | I44: 7.858490037 | J44: 8.039763973
A45: HDD | B45: WWS1011SC | C45: Operating expenditure - Total operating expenditure - Sewage collection | D45: £m | E45: Price Review 2019 | F45: 0.8491402434 | G45: 0.8434212814 | H45: 0.8379963647 | I45: 0.8313998588 | J45: 0.8302648252
A46: HDD | B46: WWS1011ST | C46: Operating expenditure - Total operating expenditure - Sewage treatment | D46: £m | E46: Price Review 2019 | F46: 1.620859757 | G46: 1.635578719 | H46: 1.615003635 | I46: 1.609600141 | J46: 1.613735175
A47: HDD | B47: WWS1011STP | C47: Operating expenditure - Total operating expenditure - Sludge transport | D47: £m | E47: Price Review 2019 | F47: 0.3839350826 | G47: 0.3983246291 | H47: 0.3983297975 | I47: 0.3983347552 | J47: 0.3983375455
A48: HDD | B48: WWS1011SDT | C48: Operating expenditure - Total operating expenditure - Sludge treatment | D48: £m | E48: Price Review 2019 | F48: 0.1852859055 | G48: 0.1939242446 | H48: 0.1939180862 | I48: 0.1939121789 | J48: 0.1939088542
A49: HDD | B49: WWS1011SDD | C49: Operating expenditure - Total operating expenditure - Sludge disposal | D49: £m | E49: Price Review 2019 | F49: 0.1287790119 | G49: 0.1337511264 | H49: 0.1337521163 | I49: 0.1337530659 | J49: 0.1337536003
A50: HDD | B50: WWS1019SC | C50: Capital expenditure - Total gross capital expenditure - Sewage collection | D50: £m | E50: Price Review 2019 | F50: 0.3854387922 | G50: 0.3869520472 | H50: 0.3886118306 | I50: 0.3875089005 | J50: 0.3915936359
A51: HDD | B51: WWS1019ST | C51: Capital expenditure - Total gross capital expenditure - Sewage treatment | D51: £m | E51: Price Review 2019 | F51: 1.009561208 | G51: 1.331047953 | H51: 1.556388169 | I51: 2.683491099 | J51: 1.104406364
A52: HDD | B52: WWS1019STP | C52: Capital expenditure - Total gross capital expenditure - Sludge transport | D52: £m | E52: Price Review 2019 | F52: 0 | G52: 0 | H52: 0 | I52: 0 | J52: 0
A53: HDD | B53: WWS1019SDT | C53: Capital expenditure - Total gross capital expenditure - Sludge treatment | D53: £m | E53: Price Review 2019 | F53: 0 | G53: 0 | H53: 0 | I53: 0 | J53: 0
A54: HDD | B54: WWS1019SDD | C54: Capital expenditure - Total gross capital expenditure - Sludge disposal | D54: £m | E54: Price Review 2019 | F54: 0 | G54: 0 | H54: 0 | I54: 0 | J54: 0
A55: HDD | B55: BM850CAS_DMMY | C55: Operating expenditure - Total operating expenditure | D55: £m | E55: Price Review 2019 | F55: 0 | G55: 0 | H55: 0 | I55: 0 | J55: 0
A56: HDD | B56: BA2120CAS_DMMY | C56: Capital expenditure - Total gross capital expenditure | D56: £m | E56: Price Review 2019 | F56: 0 | G56: 0 | H56: 0 | I56: 0 | J56: 0
A57: HDD | B57: C_DMYOTHER_EXCPDR_PR19CA008 | C57: DMMY - Other costs not subject to cost sharing excl PDR | D57: £m | E57: Price Review 2019

Sheet InpOverride
A1: =RIGHT(CELL("filename", $A$1), LEN(CELL("filename", $A$1)) - SEARCH("]", CELL("filename", $A$1))) -> InpOverride
E2: =Time!E$22 -> Model Period BEG | J2: =Time!J$22 -> 2019-04-01 | K2: =Time!K$22 -> 2020-04-01 | L2: =Time!L$22 -> 2021-04-01 | M2: =Time!M$22 -> 2022-04-01 | N2: =Time!N$22 -> 2023-04-01 | O2: =Time!O$22 -> 2024-04-01
E3: =Time!E$23 -> Model Period END | F3: =Check!F$8 -> 0 | G3: Error chks | J3: =Time!J$23 -> 2020-03-31 | K3: =Time!K$23 -> 2021-03-31 | L3: =Time!L$23 -> 2022-03-31 | M3: =Time!M$23 -> 2023-03-31 | N3: =Time!N$23 -> 2024-03-31 | O3: =Time!O$23 -> 2025-03-31
E4: =Time!E$59 -> Pre Forecast vs Forecast | F4: =Check!$F$20 -> 35 | G4: Track checks | J4: =Time!J$59 -> Pre Fcst | K4: =Time!K$59 -> Forecast | L4: =Time!L$59 -> Forecast | M4: =Time!M$59 -> Forecast | N4: =Time!N$59 -> Forecast | O4: =Time!O$59 -> Forecast
E5: =Time!E$101 -> Financial Year Ending | J5: =Time!J$101 -> 2020 | K5: =Time!K$101 -> 2021 | L5: =Time!L$101 -> 2022 | M5: =Time!M$101 -> 2023 | N5: =Time!N$101 -> 2024 | O5: =Time!O$101 -> 2025
E6: =Time!E$11 -> Model column counter | F6: Constant | G6: Unit | H6: Total | J6: =Time!J$11 -> 1 | K6: =Time!K$11 -> 2 | L6: =Time!L$11 -> 3 | M6: =Time!M$11 -> 4 | N6: =Time!N$11 -> 5 | O6: =Time!O$11 -> 6
A8: TIME
E10: First date of time ruler | F10: 2019-04-01 | G10: date
E12: Last Pre Forecast Date | F12: 2020-03-31 | G12: date
E14: Acquisition date (midnight) | F14: 2020-03-31 | G14: date
E15: Length of forecast period | F15: 5 | G15: years
E16: Last forecast date | F16: =DATE(YEAR(F14)+F15,MONTH(F14),DAY(F14)) -> 2025-03-31 | G16: date
E19: Operation Start Date (midnight) | F19: 2021-03-31 | G19: date
E20: Operation Finish Date (midnight) | F20: 2025-03-31 | G20: date
E21: First Modelling Column Financial Year Number | F21: 2020 | G21: year
E22: Financial Year End Month Number | F22: 3 | G22: month #
A25: TOTEX INPUTS
C27: Water Resources
E28: =F_Inputs!C$4 -> Final cost allowance for cost sharing for Water Resources | G28: =F_Inputs!D$4 -> £m | H28: =SUM(J28:P28) -> 18.3894458 | K28: =F_Inputs!F$4 -> 3.67788916 | L28: =F_Inputs!G$4 -> 3.67788916 | M28: =F_Inputs!H$4 -> 3.67788916 | N28: =F_Inputs!I$4 -> 3.67788916 | O28: =F_Inputs!J$4 -> 3.67788916
E29: =F_Inputs!C$6 -> Capital Expenditure (excluding Atypical expenditure) - Total gross capital expenditure excluding third party services - Water resources | G29: =F_Inputs!D$6 -> £m | H29: =SUM(J29:P29) -> 8.809 | K29: =F_Inputs!F$6 -> 2.503 | L29: =F_Inputs!G$6 -> 2.61 | M29: =F_Inputs!H$6 -> 1.33 | N29: =F_Inputs!I$6 -> 1.194 | O29: =F_Inputs!J$6 -> 1.172
E30: =F_Inputs!C$11 -> Operating expenditure (excluding Atypical expenditure) - Total operating expenditure excluding third party services - Water resources | G30: =F_Inputs!D$11 -> £m | H30: 9.168052482 | K30: =F_Inputs!F$11 -> 1.895419551 | L30: =F_Inputs!G$11 -> 1.863498247 | M30: =F_Inputs!H$11 -> 1.816475767 | N30: =F_Inputs!I$11 -> 1.792634829 | O30: =F_Inputs!J$11 -> 1.800024089
E31: =F_Inputs!C$33 -> WR - Other costs not subject to cost sharing excl PDR | G31: =F_Inputs!D$33 -> £m | H31: =SUM(J31:P31) -> 7.263947518 | K31: =F_Inputs!F$33 -> 1.452789504 | L31: =F_Inputs!G$33 -> 1.452789504 | M31: =F_Inputs!H$33 -> 1.452789504 | N31: =F_Inputs!I$33 -> 1.452789504 | O31: =F_Inputs!J$33 -> 1.452789504
C33: Water Network
E34: =F_Inputs!C$5 -> Final cost allowance for cost sharing for Network Plus Water | G34: =F_Inputs!D$5 -> £m | H34: 102.9405241 | K34: =F_Inputs!F$5 -> 20.58810482 | L34: =F_Inputs!G$5 -> 20.58810482 | M34: =F_Inputs!H$5 -> 20.58810482 | N34: =F_Inputs!I$5 -> 20.58810482 | O34: =F_Inputs!J$5 -> 20.58810482
E35: =F_Inputs!C$7 -> Capital Expenditure (excluding Atypical expenditure) - Total gross capital expenditure excluding third party services - Raw water distribution | G35: =F_Inputs!D$7 -> £m | H35: 3.207089569 | K35: =F_Inputs!F$7 -> 0.5430764572 | L35: =F_Inputs!G$7 -> 0.791208172 | M35: =F_Inputs!H$7 -> 0.7909150145 | N35: =F_Inputs!I$7 -> 0.5427947201 | O35: =F_Inputs!J$7 -> 0.5390952052
E36: =F_Inputs!C$8 -> Total gross capital expenditure excluding third party services - Water treatment | G36: =F_Inputs!D$8 -> £m | H36: 6.001047713 | K36: =F_Inputs!F$8 -> 1.049405801 | L36: =F_Inputs!G$8 -> 1.047462409 | M36: =F_Inputs!H$8 -> 1.3092637 | N36: =F_Inputs!I$8 -> 1.31071302 | O36: =F_Inputs!J$8 -> 1.284202783
E37: =F_Inputs!C$9 -> Total gross capital expenditure excluding third party services - Treated water distribution | G37: =F_Inputs!D$9 -> £m | H37: 26.63186272 | K37: =F_Inputs!F$9 -> 5.069517742 | L37: =F_Inputs!G$9 -> 5.178329419 | M37: =F_Inputs!H$9 -> 5.495821286 | N37: =F_Inputs!I$9 -> 5.45649226 | O37: =F_Inputs!J$9 -> 5.431702012
E38: =F_Inputs!C$12 -> Operating expenditure (excluding Atypical expenditure) - Total operating expenditure excluding third party services - Raw water distribution | G38: =F_Inputs!D$12 -> £m | H38: 2.642943213 | K38: =F_Inputs!F$12 -> 0.5476956185 | L38: =F_Inputs!G$12 -> 0.5276790169 | M38: =F_Inputs!H$12 -> 0.52288767 | N38: =F_Inputs!I$12 -> 0.5180217135 | O38: =F_Inputs!J$12 -> 0.5266591942
E39: =F_Inputs!C$13 -> Total operating expenditure (excluding third party services) - Water treatment | G39: =F_Inputs!D$13 -> £m | H39: 23.21493243 | K39: =F_Inputs!F$13 -> 4.704983513 | L39: =F_Inputs!G$13 -> 4.607823153 | M39: =F_Inputs!H$13 -> 4.663873607 | N39: =F_Inputs!I$13 -> 4.610081788 | O39: =F_Inputs!J$13 -> 4.628170372
E40: =F_Inputs!C$14 -> Total operating expenditure (excluding third party services) - Treated water distribution | G40: =F_Inputs!D$14 -> £m | H40: 39.23613877 | K40: =F_Inputs!F$14 -> 8.180742415 | L40: =F_Inputs!G$14 -> 7.808909634 | M40: =F_Inputs!H$14 -> 7.737641184 | N40: =F_Inputs!I$14 -> 7.665290098 | O40: =F_Inputs!J$14 -> 7.843555434
E41: =F_Inputs!C$34 -> WN - Other costs not subject to cost sharing excl PDR | G41: =F_Inputs!D$34 -> £m | H41: 8.747985589 | K41: =F_Inputs!F$34 -> 1.749597118 | L41: =F_Inputs!G$34 -> 1.749597118 | M41: =F_Inputs!H$34 -> 1.749597118 | N41: =F_Inputs!I$34 -> 1.749597118 | O41: =F_Inputs!J$34 -> 1.749597118
C43: Water
E44: =F_Inputs!C$10 -> Total gross capital expenditure excluding third party services - Total | G44: =F_Inputs!D$10 -> £m | H44: 44.649 | K44: =F_Inputs!F$10 -> 9.165 | L44: =F_Inputs!G$10 -> 9.627 | M44: =F_Inputs!H$10 -> 8.926 | N44: =F_Inputs!I$10 -> 8.504 | O44: =F_Inputs!J$10 -> 8.427
E45: =F_Inputs!C$15 -> Total operating expenditure (excluding third party services) - Total | G45: =F_Inputs!D$15 -> £m | H45: 74.26206689 | K45: =F_Inputs!F$15 -> 15.3288411 | L45: =F_Inputs!G$15 -> 14.80791005 | M45: =F_Inputs!H$15 -> 14.74087823 | N45: =F_Inputs!I$15 -> 14.58602843 | O45: =F_Inputs!J$15 -> 14.79840909
E46: Total gross capital expenditure - Water | F46: =SUM(H44:H45) -> 118.9110669
C48: Wastewater Network
E49: =F_Inputs!C$16 -> Efficient totex for cost sharing network plus wastewater £m | G49: =F_Inputs!D$16 -> £m | H49: 22.69110015 | K49: =F_Inputs!F$16 -> 4.538220031 | L49: =F_Inputs!G$16 -> 4.538220031 | M49: =F_Inputs!H$16 -> 4.538220031 | N49: =F_Inputs!I$16 -> 4.538220031 | O49: =F_Inputs!J$16 -> 4.538220031
E50: =F_Inputs!C$23 -> Capital expenditure - Total gross capital expenditure excluding third party services - Sewage collection | G50: =F_Inputs!D$23 -> £m | H50: 1.940105206 | K50: =F_Inputs!F$23 -> 0.3854387922 | L50: =F_Inputs!G$23 -> 0.3869520472 | M50: =F_Inputs!H$23 -> 0.3886118306 | N50: =F_Inputs!I$23 -> 0.3875089005 | O50: =F_Inputs!J$23 -> 0.3915936359
E51: =F_Inputs!C$24 -> Capital expenditure - Total gross capital expenditure excluding third party services - Sewage treatment | G51: =F_Inputs!D$24 -> £m | H51: 7.684894794 | K51: =F_Inputs!F$24 -> 1.009561208 | L51: =F_Inputs!G$24 -> 1.331047953 | M51: =F_Inputs!H$24 -> 1.556388169 | N51: =F_Inputs!I$24 -> 2.683491099 | O51: =F_Inputs!J$24 -> 1.104406364
E52: =F_Inputs!C$17 -> Operating expenditure - Total operating expenditure (excluding third party services) - Sewage collection | G52: =F_Inputs!D$17 -> £m | H52: 4.074222574 | K52: =F_Inputs!F$17 -> 0.8271402434 | L52: =F_Inputs!G$17 -> 0.8204212814 | M52: =F_Inputs!H$17 -> 0.8139963647 | N52: =F_Inputs!I$17 -> 0.8073998588 | O52: =F_Inputs!J$17 -> 0.8052648252
E53: =F_Inputs!C$18 -> Operating expenditure - Total operating expenditure (excluding third party services) - Sewage treatment | G53: =F_Inputs!D$18 -> £m | H53: 8.094777426 | K53: =F_Inputs!F$18 -> 1.620859757 | L53: =F_Inputs!G$18 -> 1.635578719 | M53: =F_Inputs!H$18 -> 1.615003635 | N53: =F_Inputs!I$18 -> 1.609600141 | O53: =F_Inputs!J$18 -> 1.613735175
E54: =F_Inputs!C$35 -> WWN - Other costs not subject to cost sharing excl PDR | G54: =F_Inputs!D$35 -> £m | H54: 0 | K54: =F_Inputs!F$35 -> 0 | L54: =F_Inputs!G$35 -> 0 | M54: =F_Inputs!H$35 -> 0 | N54: =F_Inputs!I$35 -> 0 | O54: =F_Inputs!J$35 -> 0
C57: Bioresources
E58: =F_Inputs!C$29 -> Efficient totex for cost sharing bioresources £m | G58: =F_Inputs!D$29 -> £m | H58: 5.352987796 | K58: =F_Inputs!F$29 -> 1.070597559 | L58: =F_Inputs!G$29 -> 1.070597559 | M58: =F_Inputs!H$29 -> 1.070597559 | N58: =F_Inputs!I$29 -> 1.070597559 | O58: =F_Inputs!J$29 -> 1.070597559
E59: =F_Inputs!C$25 -> Capital expenditure - Total gross capital expenditure excluding third party services - Sludge transport | G59: =F_Inputs!D$25 -> £m | H59: 0 | K59: =F_Inputs!F$25 -> 0 | L59: =F_Inputs!G$25 -> 0 | M59: =F_Inputs!H$25 -> 0 | N59: =F_Inputs!I$25 -> 0 | O59: =F_Inputs!J$25 -> 0
E60: =F_Inputs!C$26 -> Capital expenditure - Total gross capital expenditure excluding third party services - Sludge treatment | G60: =F_Inputs!D$26 -> £m | H60: 0 | K60: =F_Inputs!F$26 -> 0 | L60: =F_Inputs!G$26 -> 0 | M60: =F_Inputs!H$26 -> 0 | N60: =F_Inputs!I$26 -> 0 | O60: =F_Inputs!J$26 -> 0
E61: =F_Inputs!C$27 -> Capital expenditure - Total gross capital expenditure excluding third party services - Sludge disposal | G61: =F_Inputs!D$27 -> £m | H61: 0 | K61: =F_Inputs!F$27 -> 0 | L61: =F_Inputs!G$27 -> 0 | M61: =F_Inputs!H$27 -> 0 | N61: =F_Inputs!I$27 -> 0 | O61: =F_Inputs!J$27 -> 0
E62: =F_Inputs!C$19 -> Operating expenditure - Total operating expenditure (excluding third party services) - Sludge transport | G62: =F_Inputs!D$19 -> £m | H62: 1.97726181 | K62: =F_Inputs!F$19 -> 0.3839350826 | L62: =F_Inputs!G$19 -> 0.3983246291 | M62: =F_Inputs!H$19 -> 0.3983297975 | N62: =F_Inputs!I$19 -> 0.3983347552 | O62: =F_Inputs!J$19 -> 0.3983375455
E63: =F_Inputs!C$20 -> Operating expenditure - Total operating expenditure (excluding third party services) - Sludge treatment | G63: =F_Inputs!D$20 -> £m | H63: 0.9609492693 | K63: =F_Inputs!F$20 -> 0.1852859055 | L63: =F_Inputs!G$20 -> 0.1939242446 | M63: =F_Inputs!H$20 -> 0.1939180862 | N63: =F_Inputs!I$20 -> 0.1939121789 | O63: =F_Inputs!J$20 -> 0.1939088542
E64: =F_Inputs!C$21 -> Operating expenditure - Total operating expenditure (excluding third party services) - Sludge disposal | G64: =F_Inputs!D$21 -> £m | H64: 0.6637889208 | K64: =F_Inputs!F$21 -> 0.1287790119 | L64: =F_Inputs!G$21 -> 0.1337511264 | M64: =F_Inputs!H$21 -> 0.1337521163 | N64: =F_Inputs!I$21 -> 0.1337530659 | O64: =F_Inputs!J$21 -> 0.1337536003
E65: =F_Inputs!C$36 -> BR - Other costs not subject to cost sharing excl PDR | G65: =F_Inputs!D$36 -> £m | H65: 0 | K65: =F_Inputs!F$36 -> 0 | L65: =F_Inputs!G$36 -> 0 | M65: =F_Inputs!H$36 -> 0 | N65: =F_Inputs!I$36 -> 0 | O65: =F_Inputs!J$36 -> 0
C68: Waste
E69: =F_Inputs!C$28 -> Capital expenditure - Total gross capital expenditure excluding third party services - Total | G69: =F_Inputs!D$28 -> £m | H69: 9.625 | K69: =F_Inputs!F$28 -> 1.395 | L69: =F_Inputs!G$28 -> 1.718 | M69: =F_Inputs!H$28 -> 1.945 | N69: =F_Inputs!I$28 -> 3.071 | O69: =F_Inputs!J$28 -> 1.496
E70: =F_Inputs!C$22 -> Operating expenditure - Total operating expenditure (excluding third party services) - Total | G70: =F_Inputs!D$22 -> £m | H70: 15.771 | K70: =F_Inputs!F$22 -> 3.146 | L70: =F_Inputs!G$22 -> 3.182 | M70: =F_Inputs!H$22 -> 3.155 | N70: =F_Inputs!I$22 -> 3.143 | O70: =F_Inputs!J$22 -> 3.145
C72: Dummy
E73: =F_Inputs!C$30 -> DUMMY - Total gross totex - real | G73: =F_Inputs!D$30 -> £m | H73: =SUM(J73:P73) -> 0 | K73: =F_Inputs!F$30 -> 0 | L73: =F_Inputs!G$30 -> 0 | M73: =F_Inputs!H$30 -> 0 | N73: =F_Inputs!I$30 -> 0 | O73: =F_Inputs!J$30 -> 0
E74: =F_Inputs!C$31 -> Operating expenditure - Other operating expenditure - Total operating expenditure (excluding third party services) | G74: =F_Inputs!D$31 -> £m | H74: 0 | K74: =F_Inputs!F$31 -> 0 | L74: =F_Inputs!G$31 -> 0 | M74: =F_Inputs!H$31 -> 0 | N74: =F_Inputs!I$31 -> 0 | O74: =F_Inputs!J$31 -> 0
E75: =F_Inputs!C$32 -> Capital expenditure - Total gross capital expenditure excluding third party services | G75: =F_Inputs!D$32 -> £m | H75: 0 | K75: =F_Inputs!F$32 -> 0 | L75: =F_Inputs!G$32 -> 0 | M75: =F_Inputs!H$32 -> 0 | N75: =F_Inputs!I$32 -> 0 | O75: =F_Inputs!J$32 -> 0
E76: =F_Inputs!C$57 -> DMMY - Other costs not subject to cost sharing excl PDR | G76: =F_Inputs!D$57 -> £m | H76: 0 | K76: =F_Inputs!F$57 -> 0 | L76: =F_Inputs!G$57 -> 0 | M76: =F_Inputs!H$57 -> 0 | N76: =F_Inputs!I$57 -> 0 | O76: =F_Inputs!J$57 -> 0
A79: TOTAL COST ALLOWANCE INCLUDING EX-ANTE COST SHARING - OVERRIDES
E81: Cost allowance override switch | F81: 0 | G81: 1 = Override, 0 = model calculated
E83: Water resources - total cost allowance including ex-ante cost sharing - Override | F83: ='Ex-ante allowances'!F35 -> 18.3894458 | G83: £m
E85: Water network - total cost allowance including ex-ante cost sharing - Override | F85: ='Ex-ante allowances'!F95 -> 102.9405241 | G85: £m
E87: Wastewater network - total cost allowance including ex-ante cost sharing - Override | F87: ='Ex-ante allowances'!F147 -> 22.69110015 | G87: £m
A91: TOTEX PROFILING
B93: TOTEX PROFILING INPUTS
D95: Water Resources
E96: =F_Inputs!C41 -> Operating expenditure (excluding Atypical expenditure) - Total operating expenditure - Water resources | G96: =F_Inputs!D41 -> £m | H96: =SUM(J96:P96) -> 16.432 | K96: =F_Inputs!F41 -> 3.515 | L96: =F_Inputs!G41 -> 3.231 | M96: =F_Inputs!H41 -> 3.184 | N96: =F_Inputs!I41 -> 3.16 | O96: =F_Inputs!J41 -> 3.342
E97: =F_Inputs!C37 -> Capital Expenditure (excluding Atypical expenditure) - Total gross capital expenditure - Water resources | G97: =F_Inputs!D37 -> £m | H97: 8.809 | K97: =F_Inputs!F37 -> 2.503 | L97: =F_Inputs!G37 -> 2.61 | M97: =F_Inputs!H37 -> 1.33 | N97: =F_Inputs!I37 -> 1.194 | O97: =F_Inputs!J37 -> 1.172
D99: Water Network
E100: =F_Inputs!C42 -> Operating expenditure (excluding Atypical expenditure) - Total operating expenditure - Raw water distribution | G100: =F_Inputs!D42 -> £m | H100: =SUM(J100:P100) -> 2.642943213 | K100: =F_Inputs!F42 -> 0.5476956185 | L100: =F_Inputs!G42 -> 0.5276790169 | M100: =F_Inputs!H42 -> 0.52288767 | N100: =F_Inputs!I42 -> 0.5180217135 | O100: =F_Inputs!J42 -> 0.5266591942
E101: =F_Inputs!C43 -> Total operating expenditure - Water treatment | G101: =F_Inputs!D43 -> £m | H101: 31.90196474 | K101: =F_Inputs!F43 -> 6.442389974 | L101: =F_Inputs!G43 -> 6.345229615 | M101: =F_Inputs!H43 -> 6.401280069 | N101: =F_Inputs!I43 -> 6.347488249 | O101: =F_Inputs!J43 -> 6.365576833
E102: =F_Inputs!C44 -> Total operating expenditure - Treated water distribution | G102: =F_Inputs!D44 -> £m | H102: 40.17209205 | K102: =F_Inputs!F44 -> 8.357914407 | L102: =F_Inputs!G44 -> 7.989091368 | M102: =F_Inputs!H44 -> 7.926832261 | N102: =F_Inputs!I44 -> 7.858490037 | O102: =F_Inputs!J44 -> 8.039763973
E103: =F_Inputs!C38 -> Capital Expenditure (excluding Atypical expenditure) - Total gross capital expenditure - Raw water distribution | G103: =F_Inputs!D38 -> £m | H103: 3.207089569 | K103: =F_Inputs!F38 -> 0.5430764572 | L103: =F_Inputs!G38 -> 0.791208172 | M103: =F_Inputs!H38 -> 0.7909150145 | N103: =F_Inputs!I38 -> 0.5427947201 | O103: =F_Inputs!J38 -> 0.5390952052
E104: =F_Inputs!C39 -> Total gross capital expenditure - Water treatment | G104: =F_Inputs!D39 -> £m | H104: 6.001047713 | K104: =F_Inputs!F39 -> 1.049405801 | L104: =F_Inputs!G39 -> 1.047462409 | M104: =F_Inputs!H39 -> 1.3092637 | N104: =F_Inputs!I39 -> 1.31071302 | O104: =F_Inputs!J39 -> 1.284202783
E105: =F_Inputs!C40 -> Total gross capital expenditure - Treated water distribution | G105: =F_Inputs!D40 -> £m | H105: 26.63186272 | K105: =F_Inputs!F40 -> 5.069517742 | L105: =F_Inputs!G40 -> 5.178329419 | M105: =F_Inputs!H40 -> 5.495821286 | N105: =F_Inputs!I40 -> 5.45649226 | O105: =F_Inputs!J40 -> 5.431702012
D107: Wastewater Network
E108: =F_Inputs!C45 -> Operating expenditure - Total operating expenditure - Sewage collection | G108: =F_Inputs!D45 -> £m | H108: =SUM(J108:P108) -> 4.192222574 | K108: =F_Inputs!F45 -> 0.8491402434 | L108: =F_Inputs!G45 -> 0.8434212814 | M108: =F_Inputs!H45 -> 0.8379963647 | N108: =F_Inputs!I45 -> 0.8313998588 | O108: =F_Inputs!J45 -> 0.8302648252
E109: =F_Inputs!C46 -> Operating expenditure - Total operating expenditure - Sewage treatment | G109: =F_Inputs!D46 -> £m | H109: 8.094777426 | K109: =F_Inputs!F46 -> 1.620859757 | L109: =F_Inputs!G46 -> 1.635578719 | M109: =F_Inputs!H46 -> 1.615003635 | N109: =F_Inputs!I46 -> 1.609600141 | O109: =F_Inputs!J46 -> 1.613735175
E110: =F_Inputs!C50 -> Capital expenditure - Total gross capital expenditure - Sewage collection | G110: =F_Inputs!D50 -> £m | H110: 1.940105206 | K110: =F_Inputs!F50 -> 0.3854387922 | L110: =F_Inputs!G50 -> 0.3869520472 | M110: =F_Inputs!H50 -> 0.3886118306 | N110: =F_Inputs!I50 -> 0.3875089005 | O110: =F_Inputs!J50 -> 0.3915936359
E111: =F_Inputs!C51 -> Capital expenditure - Total gross capital expenditure - Sewage treatment | G111: =F_Inputs!D51 -> £m | H111: 7.684894794 | K111: =F_Inputs!F51 -> 1.009561208 | L111: =F_Inputs!G51 -> 1.331047953 | M111: =F_Inputs!H51 -> 1.556388169 | N111: =F_Inputs!I51 -> 2.683491099 | O111: =F_Inputs!J51 -> 1.104406364
D113: Bioresources
E114: =F_Inputs!C47 -> Operating expenditure - Total operating expenditure - Sludge transport | G114: =F_Inputs!D47 -> £m | H114: =SUM(J114:P114) -> 1.97726181 | K114: =F_Inputs!F47 -> 0.3839350826 | L114: =F_Inputs!G47 -> 0.3983246291 | M114: =F_Inputs!H47 -> 0.3983297975 | N114: =F_Inputs!I47 -> 0.3983347552 | O114: =F_Inputs!J47 -> 0.3983375455
E115: =F_Inputs!C48 -> Operating expenditure - Total operating expenditure - Sludge treatment | G115: =F_Inputs!D48 -> £m | H115: 0.9609492693 | K115: =F_Inputs!F48 -> 0.1852859055 | L115: =F_Inputs!G48 -> 0.1939242446 | M115: =F_Inputs!H48 -> 0.1939180862 | N115: =F_Inputs!I48 -> 0.1939121789 | O115: =F_Inputs!J48 -> 0.1939088542
E116: =F_Inputs!C49 -> Operating expenditure - Total operating expenditure - Sludge disposal | G116: =F_Inputs!D49 -> £m | H116: 0.6637889208 | K116: =F_Inputs!F49 -> 0.1287790119 | L116: =F_Inputs!G49 -> 0.1337511264 | M116: =F_Inputs!H49 -> 0.1337521163 | N116: =F_Inputs!I49 -> 0.1337530659 | O116: =F_Inputs!J49 -> 0.1337536003
E117: =F_Inputs!C52 -> Capital expenditure - Total gross capital expenditure - Sludge transport | G117: =F_Inputs!D52 -> £m | H117: 0 | K117: =F_Inputs!F52 -> 0 | L117: =F_Inputs!G52 -> 0 | M117: =F_Inputs!H52 -> 0 | N117: =F_Inputs!I52 -> 0 | O117: =F_Inputs!J52 -> 0
E118: =F_Inputs!C53 -> Capital expenditure - Total gross capital expenditure - Sludge treatment | G118: =F_Inputs!D53 -> £m | H118: 0 | K118: =F_Inputs!F53 -> 0 | L118: =F_Inputs!G53 -> 0 | M118: =F_Inputs!H53 -> 0 | N118: =F_Inputs!I53 -> 0 | O118: =F_Inputs!J53 -> 0
E119: =F_Inputs!C54 -> Capital expenditure - Total gross capital expenditure - Sludge disposal | G119: =F_Inputs!D54 -> £m | H119: 0 | K119: =F_Inputs!F54 -> 0 | L119: =F_Inputs!G54 -> 0 | M119: =F_Inputs!H54 -> 0 | N119: =F_Inputs!I54 -> 0 | O119: =F_Inputs!J54 -> 0
D121: Dummy Control
E122: =F_Inputs!C55 -> Operating expenditure - Total operating expenditure | G122: =F_Inputs!D55 -> £m | H122: =SUM(J122:P122) -> 0 | K122: =F_Inputs!F55 -> 0 | L122: =F_Inputs!G55 -> 0 | M122: =F_Inputs!H55 -> 0 | N122: =F_Inputs!I55 -> 0 | O122: =F_Inputs!J55 -> 0
E123: =F_Inputs!C56 -> Capital expenditure - Total gross capital expenditure | G123: =F_Inputs!D56 -> £m | H123: 0 | K123: =F_Inputs!F56 -> 0 | L123: =F_Inputs!G56 -> 0 | M123: =F_Inputs!H56 -> 0 | N123: =F_Inputs!I56 -> 0 | O123: =F_Inputs!J56 -> 0
B126: TOTEX PROFILING OVERRIDES
E127: Allowed capex and opex override switch - WR | F127: 2 | G127: 3 = Override, 2 = Model calculated, 1 = Inactive
E128: Override capex - water resources | G128: £m
E129: Override opex - water resources | G129: £m
E131: Allowed capex and opex override switch - WN | F131: 2 | G131: 3 = Override, 2 = Model calculated, 1 = Inactive
E132: Override capex - water network | G132: £m
E133: Override opex - water network | G133: £m
E135: Allowed capex and opex override switch - WWN | F135: 2 | G135: 3 = Override, 2 = Model calculated, 1 = Inactive
E136: Override capex - Wastewater network | G136: £m
E137: Override opex - Wastewater network | G137: £m
E139: Allowed capex and opex override switch - BIO | F139: 2 | G139: 3 = Override, 2 = Model calculated, 1 = Inactive
E140: Override capex - Bioresources | G140: £m
E141: Override opex - Bioresources | G141: £m
E143: Allowed capex and opex override switch - DMMY | F143: 0 | G143: 2 = Override, 1 = Model calculated, 0 = Inactive
E144: Override capex - Dummy | G144: £m
E145: Override opex - Dummy | G145: £m
A147: COST SHARING CALCULATION INPUTS
C149: IAP Classification
E150: Company IAP classification | F150: Not Significant Scrutiny | G150: text
C152: Parameter - Ranges
E153: Outperform
E154: less than or equal 80%
E155: Parameter(s) 1 | F155: 0.8 | G155: %
E156: greater than 80% and less than or equal to 90%
E157: Parameter 2 | F157: 0.8 | G157: %
E158: Parameter 3 | F158: 0.9 | G158: %
E159: Parameter 4
E160: greater than 90% and less than or equal to 110%
E161: Parameter 4 | F161: 0.9 | G161: %
E162: Parameter 5 | F162: 1.1 | G162: %
E163: Parameter 6
E164: greater than 110% and less than or equal to 120%
E165: Parameter 7 | F165: 1.1 | G165: %
E166: Parameter 8 | F166: 1.2 | G166: %
E167: Parameter 9
E168: greater than120%
E169: Parameter 10 | F169: 1.2 | G169: %
E171: Underperform
E172: less than or equal to a 100%
E173: Parameter 11 | F173: 1 | G173: %
C176: Parameter - Coefficients
E177: Parameter(s) 1 | F177: 0.65 | G177: %
E178: greater than 80% and less than or equal to 90%
E179: Parameter 2 | F179: 0.65 | G179: %
E180: Parameter 3 | F180: 0.5 | G180: %
E181: Parameter 4 | F181: 0.8 | G181: %
E182: greater than 90% and less than or equal to 110%
E183: Parameter 4 | F183: 0.6 | G183: %
E184: Parameter 5 | F184: 1 | G184: %
E185: Parameter 6 | F185: 0.9 | G185: %
E186: greater than 110% and less than or equal to 120%
E187: Parameter 7 | F187: 0.4 | G187: %
E188: Parameter 8 | F188: 0.5 | G188: %
E189: Parameter 9 | F189: 1.1 | G189: %
E190: greater than120%
E191: Parameter 10 | F191: 0.35 | G191: %
E193: Underperform
E194: less than or equal to a 100%
E195: Parameter 11 | F195: 0.5 | G195: %
E197: Inputs for significant scrutiny cost sharing rates
E198: Outperform
E199: Cost sharing rate | F199: 0.25 | G199: %
E201: Underperform
E202: Cost Sharing rate | F202: 0.75 | G202: %
E205: The inputs below in lines 154 and 156 do not relate to the years/period in the time bar above.
E206: Business plan totex | G206: % | J206: 0.75 | K206: 0.8 | L206: 0.85 | M206: 0.9 | N206: 0.95 | O206: 1 | P206: 1.05 | Q206: 1.1 | R206: 1.15 | S206: 1.2 | T206: 1.25
E208: Ofwat totex baseline | G208: % | J208: 1 | K208: 1 | L208: 1 | M208: 1 | N208: 1 | O208: 1 | P208: 1 | Q208: 1 | R208: 1 | S208: 1 | T208: 1
A210: NON CHANGEABLE INPUTS
B212: Model Tolerance
E213: Model Check Tolerance Level | F213: 0.0001 | G213: tolerance
E215: Model Track Tolerance Level | F215: 0.001 | G215: tolerance
A217: END OF SHEET

Sheet Opex_Capex_Splits
A1: =RIGHT(CELL("filename", $A$1), LEN(CELL("filename", $A$1)) - SEARCH("]", CELL("filename", $A$1))) -> Opex_Capex_Splits
E2: =Time!E$22 -> Model Period BEG
E3: =Time!E$23 -> Model Period END | F3: =Check!F$8 -> 0 | G3: Error chks
E4: =Time!E$59 -> Pre Forecast vs Forecast | F4: =Check!$F$20 -> 35 | G4: Track checks
E5: =Time!E$101 -> Financial Year Ending
E6: =Time!E$11 -> Model column counter | F6: Constant | G6: Unit | H6: Total
E8: Company | F8: =F_Inputs!A4 -> HDD | J8: Values calculated from WW4
K9: Efficient WR opex % | L9: Efficient WR capex % | M9: Efficient WN opex % | N9: Efficient WN capex %
E10: Capex WR percentage of totex | F10: =INDEX($L$10:$L$26,MATCH($F$8,$J$10:$J$26,),) -> 0.3489956816 | G10: % | J10: ANH | K10: 0.6932043831 | L10: 0.3067956169 | M10: 0.4558227603 | N10: 0.5441772397
E11: Opex WR percentage of totex | F11: =INDEX($K$10:$K$26,MATCH($F$8,$J$10:$J$26,),) -> 0.6510043184 | G11: % | J11: HDD | K11: 0.6510043184 | L11: 0.3489956816 | M11: 0.675823331 | N11: 0.324176669
J12: NES | K12: 0.9048327396 | L12: 0.0951672604 | M12: 0.4976731811 | N12: 0.5023268189
E13: Capex WN percentage of totex | F13: =INDEX($N$10:$N$26,MATCH($F$8,$J$10:$J$26,),) -> 0.324176669 | G13: % | J13: NWT
E14: Opex WN percentage of totex | F14: =INDEX($M$10:$M$26,MATCH($F$8,$J$10:$J$26,),) -> 0.675823331 | G14: % | J14: SRN | K14: 0.5122024465 | L14: 0.4877975535 | M14: 0.3697286935 | N14: 0.6302713065
J15: SVE
E16: Capex WWN percentage of totex | F16: =IFERROR(INDEX($L$30:$L$40,MATCH($F$8,$J$30:$J$40,),),0) -> 0.4392570281 | G16: % | J16: SWB
E17: Opex WWN percentage of totex | F17: =IFERROR(INDEX($K$30:$K$40,MATCH($F$8,$J$30:$J$40,),),0) -> 0.5607429719 | G17: % | J17: TMS | K17: 0.4652731933 | L17: 0.5347268067 | M17: 0.3882444522 | N17: 0.6117555478
J18: WSH | K18: 0.5167888104 | L18: 0.4832111896 | M18: 0.4270324207 | N18: 0.5729675793
E19: Capex BR percentage of totex | F19: =IFERROR(INDEX($N$30:$N$40,MATCH($F$8,$J$30:$J$40,),),0) -> 0 | G19: % | J19: WSX | K19: 0.6057130572 | L19: 0.3942869428 | M19: 0.5764884443 | N19: 0.4235115557
E20: Opex BR percentage of totex | F20: =IFERROR(INDEX($M$30:$M$40,MATCH($F$8,$J$30:$J$40,),),0) -> 1 | G20: % | J20: YKY | K20: 0.5797110635 | L20: 0.4202889365 | M20: 0.5517810722 | N20: 0.4482189278
J21: AFW | K21: 0.3245033353 | L21: 0.6754966647 | M21: 0.556335213 | N21: 0.443664787
J22: BRL | K22: 0.7384080079 | L22: 0.2615919921 | M22: 0.545666841 | N22: 0.454333159
J23: PRT | K23: 0.735185064 | L23: 0.264814936 | M23: 0.643111194 | N23: 0.356888806
J24: SES | K24: 0.8075044218 | L24: 0.1924955782 | M24: 0.4744123128 | N24: 0.5255876872
J25: SEW | K25: 0.5399586311 | L25: 0.4600413689 | M25: 0.4585683593 | N25: 0.5414316407
J26: SSC | K26: 0.6546921054 | L26: 0.3453078946 | M26: 0.5287212563 | N26: 0.4712787437
J28: Values calculated from WWW4
K29: Efficient WWN opex % | L29: Efficient WWN capex % | M29: Efficient BR opex % | N29: Efficient BR capex %
J30: ANH | K30: 0.3656005228 | L30: 0.6343994772 | M30: 0.7970420375 | N30: 0.2029579625
J31: HDD | K31: 0.5607429719 | L31: 0.4392570281 | M31: 1 | N31: 0
J32: NES | K32: 0.3459232593 | L32: 0.6540767407 | M32: 0.4078874607 | N32: 0.5921125393
J33: NWT
J34: SRN | K34: 0.3137322819 | L34: 0.6862677181 | M34: 0.4990860673 | N34: 0.5009139327
J35: SVE
J36: SWB
J37: TMS | K37: 0.3765508096 | L37: 0.6234491904 | M37: 0.3752252101 | N37: 0.6247747899
J38: WSH | K38: 0.4521831577 | L38: 0.5478168423 | M38: 0.6034800214 | N38: 0.3965199786
J39: WSX | K39: 0.306074766 | L39: 0.693925234 | M39: 0.7096975519 | N39: 0.2903024481
J40: YKY | K40: 0.2862956771 | L40: 0.7137043229 | M40: 0.5514745215 | N40: 0.4485254785
J41: Total | K41: 0.4656237473 | L41: 0.5343762527 | M41: 0.5422024519 | N41: 0.4577975481

Sheet Opex Lease Adjustments
A1: =RIGHT(CELL("filename", $A$1), LEN(CELL("filename", $A$1)) - SEARCH("]", CELL("filename", $A$1))) -> Opex Lease Adjustments
E2: =Time!E$22 -> Model Period BEG | J2: =Time!J$22 -> 2019-04-01 | K2: =Time!K$22 -> 2020-04-01 | L2: =Time!L$22 -> 2021-04-01 | M2: =Time!M$22 -> 2022-04-01 | N2: =Time!N$22 -> 2023-04-01 | O2: =Time!O$22 -> 2024-04-01 | P2: =Time!P$22 -> 2025-04-01
E3: =Time!E$23 -> Model Period END | F3: =Check!F$8 -> 0 | G3: Error chks | J3: =Time!J$23 -> 2020-03-31 | K3: =Time!K$23 -> 2021-03-31 | L3: =Time!L$23 -> 2022-03-31 | M3: =Time!M$23 -> 2023-03-31 | N3: =Time!N$23 -> 2024-03-31 | O3: =Time!O$23 -> 2025-03-31 | P3: =Time!P$23 -> 2026-03-31
E4: =Time!E$59 -> Pre Forecast vs Forecast | F4: =Check!$F$20 -> 35 | G4: Track checks | J4: =Time!J$59 -> Pre Fcst | K4: =Time!K$59 -> Forecast | L4: =Time!L$59 -> Forecast | M4: =Time!M$59 -> Forecast | N4: =Time!N$59 -> Forecast | O4: =Time!O$59 -> Forecast | P4: =Time!P$59 -> Post-Fcst
E5: =Time!E$101 -> Financial Year Ending | J5: =Time!J$101 -> 2020 | K5: =Time!K$101 -> 2021 | L5: =Time!L$101 -> 2022 | M5: =Time!M$101 -> 2023 | N5: =Time!N$101 -> 2024 | O5: =Time!O$101 -> 2025 | P5: =Time!P$101 -> 2026
E6: =Time!E$11 -> Model column counter | F6: Constant | G6: Unit | H6: Total | J6: =Time!J$11 -> 1 | K6: =Time!K$11 -> 2 | L6: =Time!L$11 -> 3 | M6: =Time!M$11 -> 4 | N6: =Time!N$11 -> 5 | O6: =Time!O$11 -> 6 | P6: =Time!P$11 -> 7
D8: Values sourced from cost assessment opex lease adjustment model
D9: Water resources (using App33) - 2017-18 CPIH deflated FYA
E10: ANH | G10: £m | K10: -0.1096774125 | L10: -0.100725568 | M10: -0.08774527307 | N10: -0.07271958778 | O10: -0.06719289911
E11: HDD | G11: £m | K11: 0 | L11: 0 | M11: 0 | N11: 0 | O11: 0
E12: NES | G12: £m | K12: -0.04008219084 | L12: -0.03800964829 | M12: -0.03232720587 | N12: -0.03052427142 | O12: -0.02966959182
E13: NWT | G13: £m | K13: 0 | L13: 0 | M13: 0 | N13: 0 | O13: 0
E14: SRN | G14: £m | K14: 0 | L14: 0 | M14: 0 | N14: 0 | O14: 0
E15: SVE | G15: £m | K15: -0.03211064472 | L15: -0.03121154667 | M15: -0.03033762336 | N15: -0.02948816991 | O15: -0.02866250115
E16: SWB | G16: £m | K16: 0 | L16: 0 | M16: 0 | N16: 0 | O16: 0
E17: TMS | G17: £m | K17: -0.6173581173 | L17: -0.5665762877 | M17: -0.4465414031 | N17: -0.4090007265 | O17: -0.3924826168
E18: WSH | G18: £m | K18: 0 | L18: 0 | M18: 0 | N18: 0 | O18: 0
E19: WSX | G19: £m | K19: 0 | L19: 0 | M19: 0 | N19: 0 | O19: 0
E20: YKY | G20: £m | K20: -0.07429869521 | L20: -0.07221833175 | M20: -0.07019621846 | N20: -0.06823072434 | O20: -0.06632026406
E21: AFW | G21: £m | K21: 0 | L21: 0 | M21: 0 | N21: 0 | O21: 0
E22: BRL | G22: £m | K22: 0 | L22: 0 | M22: 0 | N22: 0 | O22: 0
E23: PRT | G23: £m | K23: 0 | L23: 0 | M23: 0 | N23: 0 | O23: 0
E24: SES | G24: £m | K24: 0 | L24: 0 | M24: 0 | N24: 0 | O24: 0
E25: SEW | G25: £m | K25: -0.0361717332 | L25: -0.03515892467 | M25: -0.03325084032 | N25: -0.0314220441 | O25: -0.02966959182
E26: SSC | G26: £m | K26: 0 | L26: 0 | M26: 0 | N26: 0 | O26: 0
E27: =Opex_Capex_Splits!E$8 -> Company | F27: =Opex_Capex_Splits!F$8 -> HDD
E28: WR operating lease adjustment | G28: £m | H28: =SUM(J28:O28) -> 0 | K28: =INDEX(K$10:K$26,MATCH($F$27,$E$10:$E$26,),) -> 0 | L28: =INDEX(L$10:L$26,MATCH($F$27,$E$10:$E$26,),) -> 0 | M28: 0 | N28: 0 | O28: 0
D31: Water network plus (using App33) - 2017-18 CPIH deflated FYA
E32: ANH | K32: -1.085151996 | L32: -0.981599167 | M32: -0.8543618694 | N32: -0.7083426514 | O32: -0.6492404797
E33: HDD | K33: 0 | L33: 0 | M33: 0 | N33: 0 | O33: 0
E34: NES | K34: -0.4741429892 | L34: -0.449464091 | M34: -0.05634170166 | N34: -0.05386636132 | O34: -0.05148546815
E35: NWT | K35: -0.07073081517 | L35: -0.04824600956 | M35: -0.01839381992 | N35: -0.001403730443 | O35: -0.00136442599
E36: SRN | K36: 0 | L36: 0 | M36: 0 | N36: 0 | O36: 0
E37: SVE | K37: -0.5873304818 | L37: -0.3928929346 | M37: -0.1223187492 | N37: -0.09335640428 | O37: -0.05484706248
E38: SWB | K38: -0.7660553323 | L38: -0.699247295 | M38: -0.654095085 | N38: -0.6226027098 | O38: -0.5906495937
E39: TMS | K39: -2.454095374 | L39: -2.252229634 | M39: -1.775072135 | N39: -1.625842056 | O39: -1.560179979
E40: WSH | K40: 0 | L40: 0 | M40: 0 | N40: 0 | O40: 0
E41: WSX | K41: -0.06793839095 | L41: -0.06508497853 | M41: -0.06235140943 | N41: -0.05973265023 | O41: -0.05722387892
E42: YKY | K42: -1.39407815 | L42: -1.355994203 | M42: -1.318026365 | N42: -1.281121627 | O42: -1.245250221
E43: AFW | K43: -3.734992099 | L43: -2.915535954 | M43: -2.295233589 | N43: -1.654633022 | O43: -1.355996459
E44: BRL | K44: 0 | L44: 0 | M44: 0 | N44: 0 | O44: 0
E45: PRT | K45: 0 | L45: 0 | M45: 0 | N45: 0 | O45: 0
E46: SES | K46: 0 | L46: 0 | M46: 0 | N46: 0 | O46: 0
E47: SEW | K47: -0.1613063778 | L47: -0.1529888344 | M47: -0.1459342436 | N47: -0.1382569941 | O47: -0.130895258
E48: SSC | K48: 0 | L48: 0 | M48: 0 | N48: 0 | O48: 0
E49: =Opex_Capex_Splits!E$8 -> Company | F49: =Opex_Capex_Splits!F$8 -> HDD
E50: WN operating lease adjustment | G50: £m | H50: =SUM(J50:O50) -> 0 | K50: =INDEX(K$32:K$48,MATCH($F$49,$E$32:$E$48,),) -> 0 | L50: =INDEX(L$32:L$48,MATCH($F$49,$E$32:$E$48,),) -> 0 | M50: =INDEX(M$32:M$48,MATCH($F$49,$E$32:$E$48,),) -> 0 | N50: =INDEX(N$32:N$48,MATCH($F$49,$E$32:$E$48,),) -> 0 | O50: =INDEX(O$32:O$48,MATCH($F$49,$E$32:$E$48,),) -> 0
D54: Wastewater network plus (using App33) - 2017-18 CPIH deflated FYA
E55: ANH | K55: -1.610130934 | L55: -1.472873871 | M55: -1.294935504 | N55: -1.073736136 | O55: -0.9852049753
E56: HDD | K56: 0 | L56: 0 | M56: 0 | N56: 0 | O56: 0
E57: NES | K57: -0.7293003504 | L57: -0.6024529254 | M57: -0.4775190124 | N57: -0.4551707532 | O57: -0.4336996215
E58: NWT | K58: -0.4428948995 | L58: -0.301595945 | M58: -0.1517423951 | N58: -0.09266230629 | O58: -0.06563786345
E59: SRN | K59: -1.698116231 | L59: -1.650568977 | M59: -1.604353046 | N59: -1.55943116 | O59: -1.207726914
E60: SVE | K60: -0.02459747268 | L60: -0.02381577976 | M60: -0.01992623108 | N60: -0.01559765132 | O60: -0.01511581348
E61: SWB | K61: -0.7572613297 | L61: -0.693554644 | M61: -0.6494887816 | N61: -0.6181299892 | O61: -0.588912389
E62: TMS | K62: -2.86586198 | L62: -2.630125686 | M62: -2.072907108 | N62: -1.898638082 | O62: -1.821958727
E63: WSH | K63: 0 | L63: 0 | M63: 0 | N63: 0 | O63: 0
E64: WSX | K64: -0.04949797055 | L64: -0.04741905578 | M64: -0.04542745544 | N64: -0.04351950231 | O64: -0.04169168322
E65: YKY | K65: -1.244991952 | L65: -1.209657057 | M65: -1.175786659 | N65: -1.142864633 | O65: -1.110864423
E66: =Opex_Capex_Splits!E$8 -> Company | F66: =Opex_Capex_Splits!F$8 -> HDD
E67: WWN operating lease adjustment | G67: £m | H67: =SUM(J67:O67) -> 0 | K67: =IFERROR(INDEX(K$55:K$65,MATCH($F$66,$E$55:$E$65,),),0) -> 0 | L67: =IFERROR(INDEX(L$55:L$65,MATCH($F$66,$E$55:$E$65,),),0) -> 0 | M67: =IFERROR(INDEX(M$55:M$65,MATCH($F$66,$E$55:$E$65,),),0) -> 0 | N67: =IFERROR(INDEX(N$55:N$65,MATCH($F$66,$E$55:$E$65,),),0) -> 0 | O67: =IFERROR(INDEX(O$55:O$65,MATCH($F$66,$E$55:$E$65,),),0) -> 0
D69: Bioresources (using App33) - 2017-18 CPIH deflated FYA
E70: ANH | K70: -0.6334941381 | L70: -0.5910500309 | M70: -0.5301661762 | N70: -0.4399086175 | O70: -0.4031573947
E71: HDD | K71: 0 | L71: 0 | M71: 0 | N71: 0 | O71: 0
E72: NES | K72: -0.08505245373 | L72: -0.0133033769 | M72: -0.01293088235 | N72: -0.01256881764 | O72: -0.01221689075
E73: NWT | K73: -0.01774808909 | L73: -0.007795087088 | M73: -0.00757682465 | N73: 0 | O73: 0
E74: SRN | K74: 0 | L74: 0 | M74: 0 | N74: 0 | O74: 0
E75: SVE | K75: -0.002052990262 | L75: -0.001496629901 | M75: 0 | N75: 0 | O75: 0
E76: SWB | K76: 0 | L76: 0 | M76: 0 | N76: 0 | O76: 0
E77: TMS | K77: -0.2055915115 | L77: -0.1886802362 | M77: -0.1487064306 | N77: -0.1362047007 | O77: -0.1307038689
E78: WSH | K78: 0 | L78: 0 | M78: 0 | N78: 0 | O78: 0
E79: WSX | K79: 0 | L79: 0 | M79: 0 | N79: 0 | O79: 0
E80: YKY | K80: -0.3626949464 | L80: -0.3525394879 | M80: -0.3426683822 | N80: -0.3330736675 | O80: -0.3237476048
E81: =Opex_Capex_Splits!E$8 -> Company | F81: =Opex_Capex_Splits!F$8 -> HDD
E82: BR operating lease adjustment | G82: £m | H82: =SUM(J82:O82) -> 0 | K82: =IFERROR(INDEX(K$70:K$80,MATCH($F$81,$E$70:$E$80,),),0) -> 0 | L82: =IFERROR(INDEX(L$70:L$80,MATCH($F$81,$E$70:$E$80,),),0) -> 0 | M82: =IFERROR(INDEX(M$70:M$80,MATCH($F$81,$E$70:$E$80,),),0) -> 0 | N82: =IFERROR(INDEX(N$70:N$80,MATCH($F$81,$E$70:$E$80,),),0) -> 0 | O82: =IFERROR(INDEX(O$70:O$80,MATCH($F$81,$E$70:$E$80,),),0) -> 0
E85: ANH | K85: 0 | L85: 0 | M85: 0 | N85: 0 | O85: 0
E86: HDD | K86: 0 | L86: 0 | M86: 0 | N86: 0 | O86: 0
E87: NES | K87: 0 | L87: 0 | M87: 0 | N87: 0 | O87: 0
E88: NWT | K88: 0 | L88: 0 | M88: 0 | N88: 0 | O88: 0
E89: SRN | K89: 0 | L89: 0 | M89: 0 | N89: 0 | O89: 0
E90: SVE | K90: 0 | L90: 0 | M90: 0 | N90: 0 | O90: 0
E91: SWB | K91: 0 | L91: 0 | M91: 0 | N91: 0 | O91: 0
E92: TMS | K92: -2.150040235 | L92: -2.018602243 | M92: -1.478833977 | N92: -0.06746500504 | O92: -0.06528990895
E93: WSH | K93: 0 | L93: 0 | M93: 0 | N93: 0 | O93: 0
E94: WSX | K94: 0 | L94: 0 | M94: 0 | N94: 0 | O94: 0
E95: YKY | K95: 0 | L95: 0 | M95: 0 | N95: 0 | O95: 0
E96: AFW
E97: BRL
E98: PRT
E99: SES
E100: SEW
E101: SSC
E102: =Opex_Capex_Splits!E$8 -> Company | F102: =Opex_Capex_Splits!F$8 -> HDD
E103: Dummy operating lease adjustment | G103: £m | H103: =SUM(J103:O103) -> 0 | K103: =INDEX(K$85:K$101,MATCH($F$102,$E$85:$E$101,),) -> 0 | L103: =INDEX(L$85:L$101,MATCH($F$102,$E$85:$E$101,),) -> 0 | M103: =INDEX(M$85:M$101,MATCH($F$102,$E$85:$E$101,),) -> 0 | N103: =INDEX(N$85:N$101,MATCH($F$102,$E$85:$E$101,),) -> 0 | O103: =INDEX(O$85:O$101,MATCH($F$102,$E$85:$E$101,),) -> 0

Sheet Time
A1: =RIGHT(CELL("filename", $A$1), LEN(CELL("filename", $A$1)) - SEARCH("]", CELL("filename", $A$1))) -> Time
E2: =Time!E$22 -> Model Period BEG | J2: =Time!J$22 -> 2019-04-01 | K2: =Time!K$22 -> 2020-04-01 | L2: =Time!L$22 -> 2021-04-01 | M2: =Time!M$22 -> 2022-04-01 | N2: =Time!N$22 -> 2023-04-01 | O2: =Time!O$22 -> 2024-04-01 | P2: =Time!P$22 -> 2025-04-01 | Q2: =Time!Q$22 -> 2026-04-01 | R2: =Time!R$22 -> 2027-04-01 | S2: =Time!S$22 -> 2028-04-01 | T2: =Time!T$22 -> 2029-04-01
E3: =Time!E$23 -> Model Period END | F3: =Check!F$8 -> 0 | G3: Error chks | J3: =Time!J$23 -> 2020-03-31 | K3: =Time!K$23 -> 2021-03-31 | L3: =Time!L$23 -> 2022-03-31 | M3: =Time!M$23 -> 2023-03-31 | N3: =Time!N$23 -> 2024-03-31 | O3: =Time!O$23 -> 2025-03-31 | P3: =Time!P$23 -> 2026-03-31 | Q3: =Time!Q$23 -> 2027-03-31 | R3: =Time!R$23 -> 2028-03-31 | S3: =Time!S$23 -> 2029-03-31 | T3: =Time!T$23 -> 2030-03-31
E4: =Time!E$59 -> Pre Forecast vs Forecast | F4: =Check!$F$20 -> 35 | G4: Track checks | J4: =Time!J$59 -> Pre Fcst | K4: =Time!K$59 -> Forecast | L4: =Time!L$59 -> Forecast | M4: =Time!M$59 -> Forecast | N4: =Time!N$59 -> Forecast | O4: =Time!O$59 -> Forecast | P4: =Time!P$59 -> Post-Fcst | Q4: =Time!Q$59 -> Post-Fcst | R4: =Time!R$59 -> Post-Fcst | S4: =Time!S$59 -> Post-Fcst | T4: =Time!T$59 -> Post-Fcst
E5: =Time!E$101 -> Financial Year Ending | J5: =Time!J$101 -> 2020 | K5: =Time!K$101 -> 2021 | L5: =Time!L$101 -> 2022 | M5: =Time!M$101 -> 2023 | N5: =Time!N$101 -> 2024 | O5: =Time!O$101 -> 2025 | P5: =Time!P$101 -> 2026 | Q5: =Time!Q$101 -> 2027 | R5: =Time!R$101 -> 2028 | S5: =Time!S$101 -> 2029 | T5: =Time!T$101 -> 2030
E6: =Time!E$11 -> Model column counter | F6: Constant | G6: Unit | H6: Total | J6: =Time!J$11 -> 1 | K6: =Time!K$11 -> 2 | L6: =Time!L$11 -> 3 | M6: =Time!M$11 -> 4 | N6: =Time!N$11 -> 5 | O6: =Time!O$11 -> 6 | P6: =Time!P$11 -> 7 | Q6: =Time!Q$11 -> 8 | R6: =Time!R$11 -> 9 | S6: =Time!S$11 -> 10 | T6: =Time!T$11 -> 11
A8: MODEL PERIOD
B10: Model Column Counter
E11: Model column counter | G11: counter | J11: =I11 + 1 -> 1 | K11: =J11 + 1 -> 2 | L11: 3 | M11: 4 | N11: 5 | O11: 6 | P11: 7 | Q11: =P11 + 1 -> 8 | R11: =Q11 + 1 -> 9 | S11: =R11 + 1 -> 10 | T11: =S11 + 1 -> 11
E12: Model Column Total | F12: =MAX(J11:BU11) -> 11 | G12: column
E14: =E$11 -> Model column counter | F14: 0 | G14: counter | H14: 0 | I14: 0 | J14: 1 | K14: 2 | L14: 3 | M14: 4 | N14: 5 | O14: 6 | P14: 7 | Q14: 8 | R14: 9 | S14: 10 | T14: 11
E15: First model column flag | G15: flag | H15: =SUM(J15:BU15) -> 1 | J15: =IF( J14 = 1, 1, 0) -> 1 | K15: 0 | L15: 0 | M15: 0 | N15: 0 | O15: 0 | P15: 0 | Q15: =IF( Q14 = 1, 1, 0) -> 0 | R15: 0 | S15: 0 | T15: 0
E17: =InpOverride!E$10 -> First date of time ruler | F17: =InpOverride!F$10 -> 2019-04-01 | G17: =InpOverride!G$10 -> date
E18: First model period BEG | F18: =DATE(YEAR(F17), MONTH(F17), 1) -> 2019-04-01 | G18: month
E20: =E$18 -> First model period BEG | F20: =F$18 -> 2019-04-01 | G20: =G$18 -> month
E21: =E$15 -> First model column flag | F21: 0 | G21: flag | H21: 1 | I21: 0 | J21: 1 | K21: 0 | L21: 0 | M21: 0 | N21: 0 | O21: 0 | P21: 0 | Q21: 0 | R21: 0 | S21: 0 | T21: 0
E22: Model Period BEG | G22: date | J22: =IF( J21 = 1, $F20, I23 + 1) -> 2019-04-01 | K22: 2020-04-01 | L22: 2021-04-01 | M22: 2022-04-01 | N22: 2023-04-01 | O22: 2024-04-01 | P22: 2025-04-01 | Q22: =IF( Q21 = 1, $F20, P23 + 1) -> 2026-04-01 | R22: =IF( R21 = 1, $F20, Q23 + 1) -> 2027-04-01 | S22: =IF( S21 = 1, $F20, R23 + 1) -> 2028-04-01 | T22: =IF( T21 = 1, $F20, S23 + 1) -> 2029-04-01
E23: Model Period END | G23: date | J23: =DATE(YEAR(J22), MONTH(J22) + 12, DAY(1) - 1) -> 2020-03-31 | K23: 2021-03-31 | L23: 2022-03-31 | M23: 2023-03-31 | N23: 2024-03-31 | O23: 2025-03-31 | P23: 2026-03-31 | Q23: =DATE(YEAR(Q22), MONTH(Q22) + 12, DAY(1) - 1) -> 2027-03-31 | R23: 2028-03-31 | S23: 2029-03-31 | T23: 2030-03-31
E25: =E$23 -> Model Period END | F25: 00:00:00 | G25: date | H25: 00:00:00 | I25: 00:00:00 | J25: 2020-03-31 | K25: 2021-03-31 | L25: 2022-03-31 | M25: 2023-03-31 | N25: 2024-03-31 | O25: 2025-03-31 | P25: 2026-03-31 | Q25: 2027-03-31 | R25: 2028-03-31 | S25: 2029-03-31 | T25: 2030-03-31
D26: less | E26: =E$22 -> Model Period BEG | F26: 00:00:00 | G26: date | H26: 00:00:00 | I26: 00:00:00 | J26: 2019-04-01 | K26: 2020-04-01 | L26: 2021-04-01 | M26: 2022-04-01 | N26: 2023-04-01 | O26: 2024-04-01 | P26: 2025-04-01 | Q26: 2026-04-01 | R26: 2027-04-01 | S26: 2028-04-01 | T26: 2029-04-01
E27: Days in Model Period | G27: days | H27: =SUM(J27:BU27) -> 4018 | J27: =J25 - J26 + 1 -> 366 | K27: 365 | L27: 365 | M27: 365 | N27: 366 | O27: 365 | P27: 365 | Q27: =Q25 - Q26 + 1 -> 365 | R27: 366 | S27: 365 | T27: 365
A30: PRE FORECAST PERIOD
E32: =InpOverride!E$12 -> Last Pre Forecast Date | F32: =InpOverride!F$12 -> 2020-03-31 | G32: =InpOverride!G$12 -> date
E33: =E$23 -> Model Period END | F33: 00:00:00 | G33: date | H33: 00:00:00 | I33: 00:00:00 | J33: 2020-03-31 | K33: 2021-03-31 | L33: 2022-03-31 | M33: 2023-03-31 | N33: 2024-03-31 | O33: 2025-03-31 | P33: 2026-03-31 | Q33: 2027-03-31 | R33: 2028-03-31 | S33: 2029-03-31 | T33: 2030-03-31
E34: Last Pre Forecast Flag | G34: flag | H34: =SUM(J34:BU34) -> 1 | J34: =IF(J33 = $F32, 1, 0) -> 1 | K34: 0 | L34: 0 | M34: 0 | N34: 0 | O34: 0 | P34: 0 | Q34: =IF(Q33 = $F32, 1, 0) -> 0 | R34: 0 | S34: 0 | T34: 0
E35: Pre Forecast Period Flag | G35: flag | H35: =SUM(J35:BU35) -> 1 | J35: =IF($F32 >= J33, 1, 0) -> 1 | K35: =IF($F32 >= K33, 1, 0) -> 0 | L35: 0 | M35: 0 | N35: 0 | O35: 0 | P35: 0 | Q35: =IF($F32 >= Q33, 1, 0) -> 0 | R35: 0 | S35: 0 | T35: 0
E36: Pre Forecast Period Total | F36: =SUM(J35:BU35) -> 1 | G36: columns
E38: =InpOverride!E$14 -> Acquisition date (midnight) | F38: =InpOverride!F$14 -> 2020-03-31 | G38: =InpOverride!G$14 -> date
E39: =E$23 -> Model Period END | F39: 00:00:00 | G39: date | H39: 00:00:00 | I39: 00:00:00 | J39: 2020-03-31 | K39: 2021-03-31 | L39: 2022-03-31 | M39: 2023-03-31 | N39: 2024-03-31 | O39: 2025-03-31 | P39: 2026-03-31 | Q39: 2027-03-31 | R39: 2028-03-31 | S39: 2029-03-31 | T39: 2030-03-31
E40: Acquisition / initial balance date flag | G40: flag | H40: =SUM(J40:BU40) -> 1 | J40: =IF(J39 = $F38, 1, 0) -> 1 | K40: 0 | L40: 0 | M40: 0 | N40: 0 | O40: 0 | P40: 0 | Q40: =IF(Q39 = $F38, 1, 0) -> 0 | R40: 0 | S40: 0 | T40: 0
A43: FORECAST PERIOD
E45: =E$34 -> Last Pre Forecast Flag | F45: 0 | G45: flag | H45: 1 | I45: 0 | J45: 1 | K45: 0 | L45: 0 | M45: 0 | N45: 0 | O45: 0 | P45: 0 | Q45: 0 | R45: 0 | S45: 0 | T45: 0
E46: 1st Forecast Period Flag | G46: flag | H46: =SUM(J46:BU46) -> 1 | J46: =I45 -> 0 | K46: 1 | L46: 0 | M46: 0 | N46: 0 | O46: 0 | P46: 0 | Q46: =P45 -> 0 | R46: =Q45 -> 0 | S46: =R45 -> 0 | T46: =S45 -> 0
E48: =InpOverride!E$16 -> Last forecast date | F48: =InpOverride!F$16 -> 2025-03-31 | G48: =InpOverride!G$16 -> date
E49: =E$23 -> Model Period END | F49: 00:00:00 | G49: date | H49: 00:00:00 | I49: 00:00:00 | J49: 2020-03-31 | K49: 2021-03-31 | L49: 2022-03-31 | M49: 2023-03-31 | N49: 2024-03-31 | O49: 2025-03-31 | P49: 2026-03-31 | Q49: 2027-03-31 | R49: 2028-03-31 | S49: 2029-03-31 | T49: 2030-03-31
E50: Last Forecast Period Flag | G50: flag | H50: =SUM(J50:BU50) -> 1 | J50: =IF(AND($F48 > I49, $F48 <= J49), 1, 0) -> 0 | K50: 0 | L50: 0 | M50: 0 | N50: 0 | O50: 1 | P50: 0 | Q50: =IF(AND($F48 > P49, $F48 <= Q49), 1, 0) -> 0 | R50: =IF(AND($F48 > Q49, $F48 <= R49), 1, 0) -> 0 | S50: =IF(AND($F48 > R49, $F48 <= S49), 1, 0) -> 0 | T50: =IF(AND($F48 > S49, $F48 <= T49), 1, 0) -> 0
E52: =E$46 -> 1st Forecast Period Flag | F52: 0 | G52: flag | H52: 1 | I52: 0 | J52: 0 | K52: 1 | L52: 0 | M52: 0 | N52: 0 | O52: 0 | P52: 0 | Q52: 0 | R52: 0 | S52: 0 | T52: 0
E53: =E$50 -> Last Forecast Period Flag | F53: 0 | G53: flag | H53: 1 | I53: 0 | J53: 0 | K53: 0 | L53: 0 | M53: 0 | N53: 0 | O53: 1 | P53: 0 | Q53: 0 | R53: 0 | S53: 0 | T53: 0
E54: Forecast Period Flag | G54: flag | H54: =SUM(J54:BU54) -> 5 | J54: =J52 - I53 + I54 -> 0 | K54: 1 | L54: 1 | M54: 1 | N54: 1 | O54: 1 | P54: 0 | Q54: =Q52 - P53 + P54 -> 0 | R54: =R52 - Q53 + Q54 -> 0 | S54: =S52 - R53 + R54 -> 0 | T54: =T52 - S53 + S54 -> 0
E55: Forecast Period Total | F55: =SUM(J54:BU54) -> 5 | G55: columns
E57: =E$35 -> Pre Forecast Period Flag | F57: 0 | G57: flag | H57: 1 | I57: 0 | J57: 1 | K57: 0 | L57: 0 | M57: 0 | N57: 0 | O57: 0 | P57: 0 | Q57: 0 | R57: 0 | S57: 0 | T57: 0
E58: =E$54 -> Forecast Period Flag | F58: 0 | G58: flag | H58: 5 | I58: 0 | J58: 0 | K58: 1 | L58: 1 | M58: 1 | N58: 1 | O58: 1 | P58: 0 | Q58: 0 | R58: 0 | S58: 0 | T58: 0
E59: Pre Forecast vs Forecast | G59: flag | J59: =IF(J57 = 1, "Pre Fcst", IF(J58 = 1, "Forecast", "Post-Fcst")) -> Pre Fcst | K59: Forecast | L59: Forecast | M59: Forecast | N59: Forecast | O59: Forecast | P59: Post-Fcst | Q59: =IF(Q57 = 1, "Pre Fcst", IF(Q58 = 1, "Forecast", "Post-Fcst")) -> Post-Fcst | R59: Post-Fcst | S59: Post-Fcst | T59: Post-Fcst
A62: POST FORECAST PERIOD
E64: =E$50 -> Last Forecast Period Flag | F64: 0 | G64: flag | H64: 1 | I64: 0 | J64: 0 | K64: 0 | L64: 0 | M64: 0 | N64: 0 | O64: 1 | P64: 0 | Q64: 0 | R64: 0 | S64: 0 | T64: 0
E65: 1st Post Last Forecast Period Flag | G65: flag | H65: =SUM(J65:BU65) -> 1 | J65: =I64 -> 0 | K65: 0 | L65: 0 | M65: 0 | N65: 0 | O65: 0 | P65: 1 | Q65: =P64 -> 0 | R65: =Q64 -> 0 | S65: =R64 -> 0 | T65: =S64 -> 0
E67: =E$65 -> 1st Post Last Forecast Period Flag | F67: 0 | G67: flag | H67: 1 | I67: 0 | J67: 0 | K67: 0 | L67: 0 | M67: 0 | N67: 0 | O67: 0 | P67: 1 | Q67: 0 | R67: 0 | S67: 0 | T67: 0
E68: Post Forecast Period Flag | G68: flag | H68: =SUM(J68:BU68) -> 5 | J68: =I68 + J67 -> 0 | K68: 0 | L68: 0 | M68: 0 | N68: 0 | O68: 0 | P68: 1 | Q68: =P68 + Q67 -> 1 | R68: =Q68 + R67 -> 1 | S68: =R68 + S67 -> 1 | T68: =S68 + T67 -> 1
E69: Post Forecast Period Total | F69: =SUM(J68:BU68) -> 5 | G69: columns
A72: MODELLING PERIOD CHECK
E74: =E$12 -> Model Column Total | F74: =F$12 -> 11 | G74: =G$12 -> column
D75: less | E75: =E$36 -> Pre Forecast Period Total | F75: =F$36 -> 1 | G75: =G$36 -> columns
D76: less | E76: =E$55 -> Forecast Period Total | F76: =F$55 -> 5 | G76: =G$55 -> columns
D77: less | E77: =E$69 -> Post Forecast Period Total | F77: =F$69 -> 5 | G77: =G$69 -> columns
E78: Modelling Period Check | F78: =IF(F74 - SUM(F75:F77) <> 0, 1, 0) -> 0 | G78: check
A81: PARTIAL PERIOD FLAG (PPF)
C82: This is an example of a part period flag. It is not currently used.
B83: Operation Partial Period Flag (PPF)
E84: =E$18 -> First model period BEG | F84: =F$18 -> 2019-04-01 | G84: =G$18 -> month
E85: =InpOverride!E$20 -> Operation Finish Date (midnight) | F85: =InpOverride!F$20 -> 2025-03-31 | G85: =InpOverride!G$20 -> date
E86: =E$22 -> Model Period BEG | F86: 00:00:00 | G86: date | H86: 00:00:00 | I86: 00:00:00 | J86: 2019-04-01 | K86: 2020-04-01 | L86: 2021-04-01 | M86: 2022-04-01 | N86: 2023-04-01 | O86: 2024-04-01 | P86: 2025-04-01 | Q86: 2026-04-01 | R86: 2027-04-01 | S86: 2028-04-01 | T86: 2029-04-01
E87: =E$23 -> Model Period END | F87: 00:00:00 | G87: date | H87: 00:00:00 | I87: 00:00:00 | J87: 2020-03-31 | K87: 2021-03-31 | L87: 2022-03-31 | M87: 2023-03-31 | N87: 2024-03-31 | O87: 2025-03-31 | P87: 2026-03-31 | Q87: 2027-03-31 | R87: 2028-03-31 | S87: 2029-03-31 | T87: 2030-03-31
E88: Days in Operation Period | G88: days | H88: =SUM(J88:BU88) -> 2192 | J88: =MAX(0, (MIN($F85, J87) - MAX($F84, J86) + 1)) -> 366 | K88: 365 | L88: 365 | M88: 365 | N88: 366 | O88: 365 | P88: 0 | Q88: =MAX(0, (MIN($F85, Q87) - MAX($F84, Q86) + 1)) -> 0 | R88: 0 | S88: 0 | T88: 0
E90: =E$88 -> Days in Operation Period | F90: 0 | G90: days | H90: 2192 | I90: 0 | J90: 366 | K90: 365 | L90: 365 | M90: 365 | N90: 366 | O90: 365 | P90: 0 | Q90: 0 | R90: 0 | S90: 0 | T90: 0
E91: =E$27 -> Days in Model Period | F91: 0 | G91: days | H91: 4018 | I91: 0 | J91: 366 | K91: 365 | L91: 365 | M91: 365 | N91: 366 | O91: 365 | P91: 365 | Q91: 365 | R91: 366 | S91: 365 | T91: 365
E92: Operation Period PPF | G92: factor | H92: =SUM(J92:BU92) -> 6 | J92: =J90 / J91 -> 1 | K92: 1 | L92: 1 | M92: 1 | N92: 1 | O92: 1 | P92: 0 | Q92: =Q90 / Q91 -> 0 | R92: 0 | S92: 0 | T92: 0
A95: FINANCIAL YEAR
E97: =InpOverride!E21 -> First Modelling Column Financial Year Number | F97: =InpOverride!F21 -> 2020 | G97: =InpOverride!G21 -> year
E98: =InpOverride!E22 -> Financial Year End Month Number | F98: =InpOverride!F22 -> 3 | G98: =InpOverride!G22 -> month #
E99: =E$23 -> Model Period END | F99: 00:00:00 | G99: date | H99: 00:00:00 | I99: 00:00:00 | J99: 2020-03-31 | K99: 2021-03-31 | L99: 2022-03-31 | M99: 2023-03-31 | N99: 2024-03-31 | O99: 2025-03-31 | P99: 2026-03-31 | Q99: 2027-03-31 | R99: 2028-03-31 | S99: 2029-03-31 | T99: 2030-03-31
E100: =E$15 -> First model column flag | F100: 0 | G100: flag | H100: 1 | I100: 0 | J100: 1 | K100: 0 | L100: 0 | M100: 0 | N100: 0 | O100: 0 | P100: 0 | Q100: 0 | R100: 0 | S100: 0 | T100: 0
E101: Financial Year Ending | G101: year # | J101: =IF(J100 = 1, $F97, IF(J99 > (DATE(I101, $F98 + 1, 1) - 1), I101 + 1, I101)) -> 2020 | K101: =IF(K100 = 1, $F97, IF(K99 > (DATE(J101, $F98 + 1, 1) - 1), J101 + 1, J101)) -> 2021 | L101: 2022 | M101: 2023 | N101: 2024 | O101: 2025 | P101: 2026 | Q101: =IF(Q100 = 1, $F97, IF(Q99 > (DATE(P101, $F98 + 1, 1) - 1), P101 + 1, P101)) -> 2027 | R101: =IF(R100 = 1, $F97, IF(R99 > (DATE(Q101, $F98 + 1, 1) - 1), Q101 + 1, Q101)) -> 2028 | S101: =IF(S100 = 1, $F97, IF(S99 > (DATE(R101, $F98 + 1, 1) - 1), R101 + 1, R101)) -> 2029 | T101: =IF(T100 = 1, $F97, IF(T99 > (DATE(S101, $F98 + 1, 1) - 1), S101 + 1, S101)) -> 2030
A104: END OF SHEET

Sheet Dashboards-->

Sheet Dashboard - WR + WN
A1: =RIGHT(CELL("filename", $A$1), LEN(CELL("filename", $A$1)) - SEARCH("]", CELL("filename", $A$1))) -> Dashboard - WR + WN
B4: Modeller's Inputs | H4: Key user inputs for incentive payment / penalty example
B5: These inputs are set and should not be changed. | H5: These inputs allow the user to test totex over/under spend impacts.
B7: Inputs for exceptional, fast track and slow track cost sharing rates | H7: Company's forecast totex of relevant control(s) | N7: ='Ex-ante allowances'!F65+'Ex-ante allowances'!F13 -> 118.9110669 | O7: £m
B9: Outperform | C9: Coefficient | F9: Range | H9: Ofwat baseline efficient totex of relevant control(s) | N9: ='Ex-ante allowances'!F69+'Ex-ante allowances'!F17 -> 121.3299699 | O9: £m
B10: less than or equal 80%
B11: Parameter(s) 1 | C11: =InpOverride!F177 -> 0.65 | D11: % | F11: =InpOverride!F155 -> 0.8 | H11: Company outturn totex of relevant control(s) | N11: ='Ex-ante allowances'!F81 -> 118.9110669 | O11: £m
B12: greater than 80% and less than or equal to 90%
B13: Parameter 2 | C13: =InpOverride!F179 -> 0.65 | D13: % | F13: =InpOverride!F157 -> 0.8 | H13: Company IAP classification | N13: =InpOverride!F150 -> Not Significant Scrutiny | O13: Text
B14: Parameter 3 | C14: =InpOverride!F180 -> 0.5 | D14: % | F14: =InpOverride!F158 -> 0.9
B15: Parameter 4 | C15: =InpOverride!F181 -> 0.8 | D15: %
B16: greater than 90% and less than or equal to 110%
B17: Parameter 4 | C17: =InpOverride!F183 -> 0.6 | D17: % | F17: =InpOverride!F161 -> 0.9
B18: Parameter 5 | C18: =InpOverride!F184 -> 1 | D18: % | F18: =InpOverride!F162 -> 1.1
B19: Parameter 6 | C19: =InpOverride!F185 -> 0.9 | D19: %
B20: greater than 110% and less than or equal to 120%
B21: Parameter 7 | C21: =InpOverride!F187 -> 0.4 | D21: % | F21: =InpOverride!F165 -> 1.1
B22: Parameter 8 | C22: =InpOverride!F188 -> 0.5 | D22: % | F22: =InpOverride!F166 -> 1.2
B23: Parameter 9 | C23: =InpOverride!F189 -> 1.1 | D23: %
B24: greater than120%
B25: Parameter 10 | C25: =InpOverride!F191 -> 0.35 | D25: % | F25: =InpOverride!F169 -> 1.2
B27: Underperform
B28: less than or equal to a 100%
B29: Parameter 11 | C29: =InpOverride!F195 -> 0.5 | D29: % | F29: =InpOverride!F173 -> 1
B31: Inputs for significant scrutiny cost sharing rates
B32: Outperform
B34: Cost sharing rate | C34: =InpOverride!F199 -> 0.25 | D34: %
B36: Underperform
B38: Cost Sharing rate | C38: =InpOverride!F202 -> 0.75 | D38: %
B42: Cost sharing scheme for PR19 - final calibration for exceptional, fast track and slow track business plans
F45: Table 1: the incentive payement or penalty (as a % of ofwat totex baseline) for given cost sharing rates for different value of outturn expenditure for exceptional, fast track and slow track business plans. This is applicable to the water network plus, water resources and wastewater network plus price controls.
B47: Example | F47: Business plan totex % | G47: =InpOverride!J$206 -> 0.75 | H47: =InpOverride!K$206 -> 0.8 | I47: =InpOverride!L$206 -> 0.85 | J47: =InpOverride!M$206 -> 0.9 | K47: =InpOverride!N$206 -> 0.95 | L47: =InpOverride!O$206 -> 1 | M47: =InpOverride!P$206 -> 1.05 | N47: =InpOverride!Q$206 -> 1.1 | O47: =InpOverride!R$206 -> 1.15 | P47: =InpOverride!S$206 -> 1.2 | Q47: =InpOverride!T$206 -> 1.25
B48: Company forecast Totex | C48: =N7 -> 118.9110669 | D48: £m | F48: Ofwat totex baseline % | G48: =InpOverride!J$208 -> 1 | H48: =InpOverride!K$208 -> 1 | I48: =InpOverride!L$208 -> 1 | J48: =InpOverride!M$208 -> 1 | K48: =InpOverride!N$208 -> 1 | L48: =InpOverride!O$208 -> 1 | M48: =InpOverride!P$208 -> 1 | N48: =InpOverride!Q$208 -> 1 | O48: =InpOverride!R$208 -> 1 | P48: =InpOverride!S$208 -> 1 | Q48: =InpOverride!T$208 -> 1
B49: Ofwat forecast of efficient Totex | C49: =N9 -> 121.3299699 | D49: £m | F49: Cost sharing rate (outperform) | G49: ='Dashboard Calcs'!J71 -> 0.65 | H49: ='Dashboard Calcs'!K71 -> 0.65 | I49: ='Dashboard Calcs'!L71 -> 0.625 | J49: ='Dashboard Calcs'!M71 -> 0.6 | K49: ='Dashboard Calcs'!N71 -> 0.55 | L49: ='Dashboard Calcs'!O71 -> 0.5 | M49: ='Dashboard Calcs'!P71 -> 0.45 | N49: ='Dashboard Calcs'!Q71 -> 0.4 | O49: ='Dashboard Calcs'!R71 -> 0.375 | P49: ='Dashboard Calcs'!S71 -> 0.35 | Q49: ='Dashboard Calcs'!T71 -> 0.35
B50: Ratio company's forecast:Ofwat baseline | C50: =(C48/C49) -> 0.9800634335 | D50: % | F50: Cost sharing rate (underperform) | G50: ='Dashboard Calcs'!J91 -> 0.5 | H50: ='Dashboard Calcs'!K91 -> 0.5 | I50: ='Dashboard Calcs'!L91 -> 0.5 | J50: ='Dashboard Calcs'!M91 -> 0.5 | K50: ='Dashboard Calcs'!N91 -> 0.5 | L50: ='Dashboard Calcs'!O91 -> 0.5 | M50: ='Dashboard Calcs'!P91 -> 0.55 | N50: ='Dashboard Calcs'!Q91 -> 0.6 | O50: ='Dashboard Calcs'!R91 -> 0.625 | P50: ='Dashboard Calcs'!S91 -> 0.65 | Q50: ='Dashboard Calcs'!T91 -> 0.65
B51: Cost sharing rate for outperform | C51: ='Dashboard Calcs'!F162 -> 0.5199365665 | D51: % | F51: Actual expenditure:baseline | G51: Total incentive payment or penalty to company (payment as a % of ofwat totex baseline)
B52: Cost sharing rate for underperform | C52: ='Dashboard Calcs'!F182 -> 0.5 | D52: % | F52: =InpOverride!K$206 -> 0.8 | G52: =IF($F52 < G$48, G$49, G$50) * (G$48 - $F52) -> 0.13 | H52: =IF($F52 < H$48, H$49, H$50) * (H$48 - $F52) -> 0.13 | I52: 0.125 | J52: 0.12 | K52: 0.11 | L52: 0.1 | M52: 0.09 | N52: 0.08 | O52: 0.075 | P52: 0.07 | Q52: 0.07
B53: Company outturn expenditure | C53: =N11 -> 118.9110669 | D53: £m | F53: =InpOverride!L$206 -> 0.85 | G53: =IF($F53 < G$48, G$49, G$50) * (G$48 - $F53) -> 0.0975 | H53: 0.0975 | I53: 0.09375 | J53: 0.09 | K53: 0.0825 | L53: 0.075 | M53: 0.0675 | N53: 0.06 | O53: 0.05625 | P53: 0.0525 | Q53: 0.0525
B54: Incentive payment (+) or penalty (-) | C54: =IF((C53<C49),C51,C52)*(C49-C53) -> 1.25767613 | D54: £m | F54: =InpOverride!M$206 -> 0.9 | G54: 0.065 | H54: 0.065 | I54: 0.0625 | J54: 0.06 | K54: 0.055 | L54: 0.05 | M54: 0.045 | N54: 0.04 | O54: 0.0375 | P54: 0.035 | Q54: 0.035
B55: Ex-ante allowance above Ofwat forecast | C55: =C48+C54-C49 -> -1.161226888 | D55: £m | F55: =InpOverride!N$206 -> 0.95 | G55: 0.0325 | H55: 0.0325 | I55: =IF($F55 < I$48, I$49, I$50) * (I$48 - $F55) -> 0.03125 | J55: 0.03 | K55: 0.0275 | L55: 0.025 | M55: 0.0225 | N55: 0.02 | O55: 0.01875 | P55: 0.0175 | Q55: 0.0175
F56: =InpOverride!O$206 -> 1 | G56: 0 | H56: 0 | I56: =IF($F56 < I$48, I$49, I$50) * (I$48 - $F56) -> 0 | J56: 0 | K56: 0 | L56: 0 | M56: 0 | N56: 0 | O56: 0 | P56: 0 | Q56: 0
F57: =InpOverride!P$206 -> 1.05 | G57: -0.025 | H57: -0.025 | I57: =IF($F57 < I$48, I$49, I$50) * (I$48 - $F57) -> -0.025 | J57: -0.025 | K57: -0.025 | L57: -0.025 | M57: -0.0275 | N57: -0.03 | O57: -0.03125 | P57: -0.0325 | Q57: -0.0325
F58: =InpOverride!Q$206 -> 1.1 | G58: -0.05 | H58: -0.05 | I58: -0.05 | J58: -0.05 | K58: -0.05 | L58: -0.05 | M58: -0.055 | N58: -0.06 | O58: -0.0625 | P58: -0.065 | Q58: -0.065
F59: =InpOverride!R$206 -> 1.15 | G59: -0.075 | H59: -0.075 | I59: -0.075 | J59: -0.075 | K59: -0.075 | L59: -0.075 | M59: -0.0825 | N59: -0.09 | O59: -0.09375 | P59: -0.0975 | Q59: -0.0975
F60: =InpOverride!S$206 -> 1.2 | G60: -0.1 | H60: -0.1 | I60: -0.1 | J60: -0.1 | K60: -0.1 | L60: -0.1 | M60: -0.11 | N60: -0.12 | O60: -0.125 | P60: -0.13 | Q60: -0.13
F61: Note: values shaded in blue represent the maximum reward that can be obtained for a given actual expenditure:baseline ratio
B65: Cost sharing scheme for PR19 - final calibration for significant scrutiny business plans
F68: Table 2: the incentive payement or penalty (as a % of ofwat totex baseline) for given cost sharing rates for different value of outturn expenditure for significant scrutiny business plans. This is applicable to the water network plus, water resources and wastewater network plus price controls.
B70: Example | F70: Business plan totex | G70: =InpOverride!J$206 -> 0.75 | H70: =InpOverride!K$206 -> 0.8 | I70: =InpOverride!L$206 -> 0.85 | J70: =InpOverride!M$206 -> 0.9 | K70: =InpOverride!N$206 -> 0.95 | L70: =InpOverride!O$206 -> 1 | M70: =InpOverride!P$206 -> 1.05 | N70: =InpOverride!Q$206 -> 1.1 | O70: =InpOverride!R$206 -> 1.15 | P70: =InpOverride!S$206 -> 1.2 | Q70: =InpOverride!T$206 -> 1.25
B71: Company forecast Totex | C71: =N7 -> 118.9110669 | D71: £m | F71: Ofwat totex baseline | G71: =InpOverride!J$208 -> 1 | H71: =InpOverride!K$208 -> 1 | I71: =InpOverride!L$208 -> 1 | J71: =InpOverride!M$208 -> 1 | K71: =InpOverride!N$208 -> 1 | L71: =InpOverride!O$208 -> 1 | M71: =InpOverride!P$208 -> 1 | N71: =InpOverride!Q$208 -> 1 | O71: =InpOverride!R$208 -> 1 | P71: =InpOverride!S$208 -> 1 | Q71: =InpOverride!T$208 -> 1
B72: Ofwat forecast of efficient Totex | C72: =N9 -> 121.3299699 | D72: £m | F72: Cost sharing rate (outperform) | G72: =$C34 -> 0.25 | H72: =$C34 -> 0.25 | I72: 0.25 | J72: 0.25 | K72: 0.25 | L72: 0.25 | M72: 0.25 | N72: 0.25 | O72: 0.25 | P72: 0.25 | Q72: 0.25
B73: Ratio company's forecast:Ofwat baseline | C73: =(C71/C72) -> 0.9800634335 | D73: % | F73: Cost sharing rate (underperform) | G73: =$C38 -> 0.75 | H73: 0.75 | I73: 0.75 | J73: 0.75 | K73: 0.75 | L73: 0.75 | M73: 0.75 | N73: 0.75 | O73: 0.75 | P73: 0.75 | Q73: 0.75
B74: Cost sharing rate for outperform | C74: =C34 -> 0.25 | D74: % | F74: Actual expenditure:baseline | G74: Total incentive payment or penalty to company (payment as a % of ofwat totex baseline)
B75: Cost sharing rate for underperform | C75: =C38 -> 0.75 | D75: % | F75: =InpOverride!K$206 -> 0.8 | G75: =IF($F75 < G$71, G$72, G$73) * (G$71 - $F75) -> 0.05 | H75: =IF($F75 < H$71, H$72, H$73) * (H$71 - $F75) -> 0.05 | I75: 0.05 | J75: 0.05 | K75: 0.05 | L75: 0.05 | M75: 0.05 | N75: 0.05 | O75: 0.05 | P75: 0.05 | Q75: 0.05
B76: Company outturn expenditure | C76: =N11 -> 118.9110669 | D76: £m | F76: =InpOverride!L$206 -> 0.85 | G76: =IF($F76 < G$71, G$72, G$73) * (G$71 - $F76) -> 0.0375 | H76: 0.0375 | I76: 0.0375 | J76: 0.0375 | K76: 0.0375 | L76: 0.0375 | M76: 0.0375 | N76: 0.0375 | O76: 0.0375 | P76: 0.0375 | Q76: 0.0375
B77: Incentive payment (+) or penalty (-) | C77: =IF((C76<C72),C74,C75)*(C72-C76) -> 0.6047257546 | D77: £m | F77: =InpOverride!M$206 -> 0.9 | G77: 0.025 | H77: 0.025 | I77: 0.025 | J77: 0.025 | K77: 0.025 | L77: 0.025 | M77: 0.025 | N77: 0.025 | O77: 0.025 | P77: 0.025 | Q77: 0.025
B78: Ex-ante allowance above Ofwat forecast | C78: =C71+C77-C72 -> -1.814177264 | D78: £m | F78: =InpOverride!N$206 -> 0.95 | G78: 0.0125 | H78: 0.0125 | I78: 0.0125 | J78: 0.0125 | K78: 0.0125 | L78: 0.0125 | M78: 0.0125 | N78: 0.0125 | O78: 0.0125 | P78: 0.0125 | Q78: 0.0125
F79: =InpOverride!O$206 -> 1 | G79: 0 | H79: 0 | I79: 0 | J79: 0 | K79: 0 | L79: 0 | M79: 0 | N79: 0 | O79: 0 | P79: 0 | Q79: 0
F80: =InpOverride!P$206 -> 1.05 | G80: -0.0375 | H80: -0.0375 | I80: -0.0375 | J80: -0.0375 | K80: -0.0375 | L80: -0.0375 | M80: -0.0375 | N80: -0.0375 | O80: -0.0375 | P80: -0.0375 | Q80: -0.0375
F81: =InpOverride!Q$206 -> 1.1 | G81: -0.075 | H81: -0.075 | I81: -0.075 | J81: -0.075 | K81: -0.075 | L81: -0.075 | M81: -0.075 | N81: -0.075 | O81: -0.075 | P81: -0.075 | Q81: -0.075
F82: =InpOverride!R$206 -> 1.15 | G82: -0.1125 | H82: -0.1125 | I82: -0.1125 | J82: -0.1125 | K82: -0.1125 | L82: -0.1125 | M82: -0.1125 | N82: -0.1125 | O82: -0.1125 | P82: -0.1125 | Q82: -0.1125
F83: =InpOverride!S$206 -> 1.2 | G83: -0.15 | H83: -0.15 | I83: -0.15 | J83: -0.15 | K83: -0.15 | L83: -0.15 | M83: -0.15 | N83: -0.15 | O83: -0.15 | P83: -0.15 | Q83: -0.15
F84: Note: values shaded in blue represent the maximum reward that can be obtained for a given actual expenditure:baseline ratio

Sheet Dashboard - WWN
A1: =RIGHT(CELL("filename", $A$1), LEN(CELL("filename", $A$1)) - SEARCH("]", CELL("filename", $A$1))) -> Dashboard - WWN
B4: Modeller's Inputs | H4: Key user inputs for incentive payment / penalty example
B5: These inputs are set and should not be changed. | H5: These inputs allow the user to test totex over/under spend impacts.
B7: Inputs for exceptional, fast track and slow track cost sharing rates | H7: Company's forecast totex of relevant control(s) | N7: ='Ex-ante allowances'!F123 -> 21.794 | O7: £m
B9: Outperform | C9: Coefficient | F9: Range | H9: Ofwat baseline efficient totex of relevant control(s) | N9: ='Ex-ante allowances'!F127 -> 22.69110015 | O9: £m
B10: less than or equal 80%
B11: Parameter(s) 1 | C11: =InpOverride!F177 -> 0.65 | D11: % | F11: =InpOverride!F155 -> 0.8 | H11: Company outturn totex of relevant control(s) | N11: ='Ex-ante allowances'!F133 -> 21.794 | O11: £m
B12: greater than 80% and less than or equal to 90%
B13: Parameter 2 | C13: =InpOverride!F179 -> 0.65 | D13: % | F13: =InpOverride!F157 -> 0.8 | H13: Company IAP classification | N13: =InpOverride!F150 -> Not Significant Scrutiny | O13: Text
B14: Parameter 3 | C14: =InpOverride!F180 -> 0.5 | D14: % | F14: =InpOverride!F158 -> 0.9
B15: Parameter 4 | C15: =InpOverride!F181 -> 0.8 | D15: %
B16: greater than 90% and less than or equal to 110%
B17: Parameter 4 | C17: =InpOverride!F183 -> 0.6 | D17: % | F17: =InpOverride!F161 -> 0.9
B18: Parameter 5 | C18: =InpOverride!F184 -> 1 | D18: % | F18: =InpOverride!F162 -> 1.1
B19: Parameter 6 | C19: =InpOverride!F185 -> 0.9 | D19: %
B20: greater than 110% and less than or equal to 120%
B21: Parameter 7 | C21: =InpOverride!F187 -> 0.4 | D21: % | F21: =InpOverride!F165 -> 1.1
B22: Parameter 8 | C22: =InpOverride!F188 -> 0.5 | D22: % | F22: =InpOverride!F166 -> 1.2
B23: Parameter 9 | C23: =InpOverride!F189 -> 1.1 | D23: %
B24: greater than120%
B25: Parameter 10 | C25: =InpOverride!F191 -> 0.35 | D25: % | F25: =InpOverride!F169 -> 1.2
B27: Underperform
B28: less than or equal to a 100%
B29: Parameter 11 | C29: =InpOverride!F195 -> 0.5 | D29: % | F29: =InpOverride!F173 -> 1
B31: Inputs for significant scrutiny cost sharing rates
B32: Outperform
B34: Cost sharing rate | C34: =InpOverride!F199 -> 0.25 | D34: %
B36: Underperform
B38: Cost Sharing rate | C38: =InpOverride!F202 -> 0.75 | D38: %
B42: Cost sharing scheme for PR19 - final calibration for exceptional, fast track and slow track business plans
F45: Table 1: the incentive payement or penalty (as a % of ofwat totex baseline) for given cost sharing rates for different value of outturn expenditure for exceptional, fast track and slow track business plans. This is applicable to the water network plus, water resources and wastewater network plus price controls.
B47: Example | F47: Business plan totex % | G47: =InpOverride!J$206 -> 0.75 | H47: =InpOverride!K$206 -> 0.8 | I47: =InpOverride!L$206 -> 0.85 | J47: =InpOverride!M$206 -> 0.9 | K47: =InpOverride!N$206 -> 0.95 | L47: =InpOverride!O$206 -> 1 | M47: =InpOverride!P$206 -> 1.05 | N47: =InpOverride!Q$206 -> 1.1 | O47: =InpOverride!R$206 -> 1.15 | P47: =InpOverride!S$206 -> 1.2 | Q47: =InpOverride!T$206 -> 1.25
B48: Company forecast Totex | C48: =N7 -> 21.794 | D48: £m | F48: Ofwat totex baseline % | G48: =InpOverride!J$208 -> 1 | H48: =InpOverride!K$208 -> 1 | I48: =InpOverride!L$208 -> 1 | J48: =InpOverride!M$208 -> 1 | K48: =InpOverride!N$208 -> 1 | L48: =InpOverride!O$208 -> 1 | M48: =InpOverride!P$208 -> 1 | N48: =InpOverride!Q$208 -> 1 | O48: =InpOverride!R$208 -> 1 | P48: =InpOverride!S$208 -> 1 | Q48: =InpOverride!T$208 -> 1
B49: Ofwat forecast of efficient Totex | C49: =N9 -> 22.69110015 | D49: £m | F49: Cost sharing rate (outperform) | G49: ='Dashboard Calcs'!J71 -> 0.65 | H49: ='Dashboard Calcs'!K71 -> 0.65 | I49: ='Dashboard Calcs'!L71 -> 0.625 | J49: ='Dashboard Calcs'!M71 -> 0.6 | K49: ='Dashboard Calcs'!N71 -> 0.55 | L49: ='Dashboard Calcs'!O71 -> 0.5 | M49: ='Dashboard Calcs'!P71 -> 0.45 | N49: ='Dashboard Calcs'!Q71 -> 0.4 | O49: ='Dashboard Calcs'!R71 -> 0.375 | P49: ='Dashboard Calcs'!S71 -> 0.35 | Q49: ='Dashboard Calcs'!T71 -> 0.35
B50: Ratio company's forecast:Ofwat baseline | C50: =(C48/C49) -> 0.9604646691 | D50: % | F50: Cost sharing rate (underperform) | G50: ='Dashboard Calcs'!J91 -> 0.5 | H50: ='Dashboard Calcs'!K91 -> 0.5 | I50: ='Dashboard Calcs'!L91 -> 0.5 | J50: ='Dashboard Calcs'!M91 -> 0.5 | K50: ='Dashboard Calcs'!N91 -> 0.5 | L50: ='Dashboard Calcs'!O91 -> 0.5 | M50: ='Dashboard Calcs'!P91 -> 0.55 | N50: ='Dashboard Calcs'!Q91 -> 0.6 | O50: ='Dashboard Calcs'!R91 -> 0.625 | P50: ='Dashboard Calcs'!S91 -> 0.65 | Q50: ='Dashboard Calcs'!T91 -> 0.65
B51: Cost sharing rate for outperform | C51: ='Dashboard Calcs'!F249 -> 0.5395353309 | D51: % | F51: Actual expenditure:baseline | G51: Total incentive payment or penalty to company (payment as a % of ofwat totex baseline)
B52: Cost sharing rate for underperform | C52: ='Dashboard Calcs'!F269 -> 0.5 | D52: % | F52: =InpOverride!K$206 -> 0.8 | G52: =IF($F52 < G$48, G$49, G$50) * (G$48 - $F52) -> 0.13 | H52: =IF($F52 < H$48, H$49, H$50) * (H$48 - $F52) -> 0.13 | I52: 0.125 | J52: 0.12 | K52: 0.11 | L52: 0.1 | M52: 0.09 | N52: 0.08 | O52: 0.075 | P52: 0.07 | Q52: 0.07
B53: Company outturn expenditure | C53: =N11 -> 21.794 | D53: £m | F53: =InpOverride!L$206 -> 0.85 | G53: =IF($F53 < G$48, G$49, G$50) * (G$48 - $F53) -> 0.0975 | H53: 0.0975 | I53: 0.09375 | J53: 0.09 | K53: 0.0825 | L53: 0.075 | M53: 0.0675 | N53: 0.06 | O53: 0.05625 | P53: 0.0525 | Q53: 0.0525
B54: Incentive payment (+) or penalty (-) | C54: =IF((C53<C49),C51,C52)*(C49-C53) -> 0.4840172277 | D54: £m | F54: =InpOverride!M$206 -> 0.9 | G54: 0.065 | H54: 0.065 | I54: 0.0625 | J54: 0.06 | K54: 0.055 | L54: 0.05 | M54: 0.045 | N54: 0.04 | O54: 0.0375 | P54: 0.035 | Q54: 0.035
B55: Ex-ante allowance above Ofwat forecast | C55: =C48+C54-C49 -> -0.413082925 | D55: £m | F55: =InpOverride!N$206 -> 0.95 | G55: 0.0325 | H55: 0.0325 | I55: 0.03125 | J55: 0.03 | K55: 0.0275 | L55: 0.025 | M55: 0.0225 | N55: 0.02 | O55: 0.01875 | P55: 0.0175 | Q55: 0.0175
F56: =InpOverride!O$206 -> 1 | G56: 0 | H56: 0 | I56: 0 | J56: 0 | K56: 0 | L56: 0 | M56: 0 | N56: 0 | O56: 0 | P56: 0 | Q56: 0
F57: =InpOverride!P$206 -> 1.05 | G57: -0.025 | H57: -0.025 | I57: -0.025 | J57: -0.025 | K57: -0.025 | L57: -0.025 | M57: -0.0275 | N57: -0.03 | O57: -0.03125 | P57: -0.0325 | Q57: -0.0325
F58: =InpOverride!Q$206 -> 1.1 | G58: -0.05 | H58: -0.05 | I58: -0.05 | J58: -0.05 | K58: -0.05 | L58: -0.05 | M58: -0.055 | N58: -0.06 | O58: -0.0625 | P58: -0.065 | Q58: -0.065
F59: =InpOverride!R$206 -> 1.15 | G59: -0.075 | H59: -0.075 | I59: -0.075 | J59: -0.075 | K59: -0.075 | L59: -0.075 | M59: -0.0825 | N59: -0.09 | O59: -0.09375 | P59: -0.0975 | Q59: -0.0975
F60: =InpOverride!S$206 -> 1.2 | G60: -0.1 | H60: -0.1 | I60: -0.1 | J60: -0.1 | K60: -0.1 | L60: -0.1 | M60: -0.11 | N60: -0.12 | O60: -0.125 | P60: -0.13 | Q60: -0.13
F61: Note: values shaded in blue represent the maximum reward that can be obtained for a given actual expenditure:baseline ratio
B65: Cost sharing scheme for PR19 - final calibration for significant scrutiny business plans
F68: Table 2: the incentive payement or penalty (as a % of ofwat totex baseline) for given cost sharing rates for different value of outturn expenditure for significant scrutiny business plans. This is applicable to the water network plus, water resources and wastewater network plus price controls.
B70: Example | F70: Business plan totex | G70: =InpOverride!J$206 -> 0.75 | H70: =InpOverride!K$206 -> 0.8 | I70: =InpOverride!L$206 -> 0.85 | J70: =InpOverride!M$206 -> 0.9 | K70: =InpOverride!N$206 -> 0.95 | L70: =InpOverride!O$206 -> 1 | M70: =InpOverride!P$206 -> 1.05 | N70: =InpOverride!Q$206 -> 1.1 | O70: =InpOverride!R$206 -> 1.15 | P70: =InpOverride!S$206 -> 1.2 | Q70: =InpOverride!T$206 -> 1.25
B71: Company forecast Totex | C71: =N7 -> 21.794 | D71: £m | F71: Ofwat totex baseline | G71: =InpOverride!J$208 -> 1 | H71: =InpOverride!K$208 -> 1 | I71: =InpOverride!L$208 -> 1 | J71: =InpOverride!M$208 -> 1 | K71: =InpOverride!N$208 -> 1 | L71: =InpOverride!O$208 -> 1 | M71: =InpOverride!P$208 -> 1 | N71: =InpOverride!Q$208 -> 1 | O71: =InpOverride!R$208 -> 1 | P71: =InpOverride!S$208 -> 1 | Q71: =InpOverride!T$208 -> 1
B72: Ofwat forecast of efficient Totex | C72: =N9 -> 22.69110015 | D72: £m | F72: Cost sharing rate (outperform) | G72: =$C34 -> 0.25 | H72: =$C34 -> 0.25 | I72: 0.25 | J72: 0.25 | K72: 0.25 | L72: 0.25 | M72: 0.25 | N72: 0.25 | O72: 0.25 | P72: 0.25 | Q72: 0.25
B73: Ratio company's forecast:Ofwat baseline | C73: =(C71/C72) -> 0.9604646691 | D73: % | F73: Cost sharing rate (underperform) | G73: =$C38 -> 0.75 | H73: 0.75 | I73: 0.75 | J73: 0.75 | K73: 0.75 | L73: 0.75 | M73: 0.75 | N73: 0.75 | O73: 0.75 | P73: 0.75 | Q73: 0.75
B74: Cost sharing rate for outperform | C74: =C34 -> 0.25 | D74: % | F74: Actual expenditure:baseline | G74: Total incentive payment or penalty to company (payment as a % of ofwat totex baseline)
B75: Cost sharing rate for underperform | C75: =C38 -> 0.75 | D75: % | F75: =InpOverride!K$206 -> 0.8 | G75: =IF($F75 < G$71, G$72, G$73) * (G$71 - $F75) -> 0.05 | H75: =IF($F75 < H$71, H$72, H$73) * (H$71 - $F75) -> 0.05 | I75: 0.05 | J75: 0.05 | K75: 0.05 | L75: 0.05 | M75: 0.05 | N75: 0.05 | O75: 0.05 | P75: 0.05 | Q75: 0.05
B76: Company outturn expenditure | C76: =N11 -> 21.794 | D76: £m | F76: =InpOverride!L$206 -> 0.85 | G76: =IF($F76 < G$71, G$72, G$73) * (G$71 - $F76) -> 0.0375 | H76: 0.0375 | I76: 0.0375 | J76: 0.0375 | K76: 0.0375 | L76: 0.0375 | M76: 0.0375 | N76: 0.0375 | O76: 0.0375 | P76: 0.0375 | Q76: 0.0375
B77: Incentive payment (+) or penalty (-) | C77: =IF((C76<C72),C74,C75)*(C72-C76) -> 0.2242750382 | D77: £m | F77: =InpOverride!M$206 -> 0.9 | G77: 0.025 | H77: 0.025 | I77: 0.025 | J77: 0.025 | K77: 0.025 | L77: 0.025 | M77: 0.025 | N77: 0.025 | O77: 0.025 | P77: 0.025 | Q77: 0.025
B78: Ex-ante allowance above Ofwat forecast | C78: =C71+C77-C72 -> -0.6728251145 | D78: £m | F78: =InpOverride!N$206 -> 0.95 | G78: 0.0125 | H78: 0.0125 | I78: 0.0125 | J78: 0.0125 | K78: 0.0125 | L78: 0.0125 | M78: 0.0125 | N78: 0.0125 | O78: 0.0125 | P78: 0.0125 | Q78: 0.0125
F79: =InpOverride!O$206 -> 1 | G79: 0 | H79: 0 | I79: 0 | J79: 0 | K79: 0 | L79: 0 | M79: 0 | N79: 0 | O79: 0 | P79: 0 | Q79: 0
F80: =InpOverride!P$206 -> 1.05 | G80: -0.0375 | H80: -0.0375 | I80: -0.0375 | J80: -0.0375 | K80: -0.0375 | L80: -0.0375 | M80: -0.0375 | N80: -0.0375 | O80: -0.0375 | P80: -0.0375 | Q80: -0.0375
F81: =InpOverride!Q$206 -> 1.1 | G81: -0.075 | H81: -0.075 | I81: -0.075 | J81: -0.075 | K81: -0.075 | L81: -0.075 | M81: -0.075 | N81: -0.075 | O81: -0.075 | P81: -0.075 | Q81: -0.075
F82: =InpOverride!R$206 -> 1.15 | G82: -0.1125 | H82: -0.1125 | I82: -0.1125 | J82: -0.1125 | K82: -0.1125 | L82: -0.1125 | M82: -0.1125 | N82: -0.1125 | O82: -0.1125 | P82: -0.1125 | Q82: -0.1125
F83: =InpOverride!S$206 -> 1.2 | G83: -0.15 | H83: -0.15 | I83: -0.15 | J83: -0.15 | K83: -0.15 | L83: -0.15 | M83: -0.15 | N83: -0.15 | O83: -0.15 | P83: -0.15 | Q83: -0.15
F84: Note: values shaded in blue represent the maximum reward that can be obtained for a given actual expenditure:baseline ratio

Sheet Calc-->

Sheet Dashboard Calcs
A1: =RIGHT(CELL("filename", $A$1), LEN(CELL("filename", $A$1)) - SEARCH("]", CELL("filename", $A$1))) -> Dashboard Calcs
E2: =Time!E$22 -> Model Period BEG
E3: =Time!E$23 -> Model Period END | F3: =Check!F$8 -> 0 | G3: Error chks
E4: =Time!E$59 -> Pre Forecast vs Forecast | F4: =Check!$F$20 -> 35 | G4: Track checks
E5: =Time!E$101 -> Financial Year Ending
E6: =Time!E$11 -> Model column counter | F6: Constant | G6: Unit | H6: Total
A8: CALCULATION
B10: Outperformance flags
E12: =InpOverride!E$206 -> Business plan totex | F12: =InpOverride!F$206 -> 0 | G12: =InpOverride!G$206 -> % | H12: =InpOverride!H$206 -> 0 | I12: =InpOverride!I$206 -> 0 | J12: =InpOverride!J$206 -> 0.75 | K12: =InpOverride!K$206 -> 0.8 | L12: =InpOverride!L$206 -> 0.85 | M12: =InpOverride!M$206 -> 0.9 | N12: =InpOverride!N$206 -> 0.95 | O12: =InpOverride!O$206 -> 1 | P12: =InpOverride!P$206 -> 1.05 | Q12: =InpOverride!Q$206 -> 1.1 | R12: =InpOverride!R$206 -> 1.15 | S12: =InpOverride!S$206 -> 1.2 | T12: =InpOverride!T$206 -> 1.25
E13: =InpOverride!E$155 & " - Range" -> Parameter(s) 1 - Range | F13: =InpOverride!F$155 -> 0.8 | G13: =InpOverride!G$155 -> %
E14: Outperformance flag: less than or equal 80% | G14: Flag | J14: =IF(J12<=$F13,1,0) -> 1 | K14: 1 | L14: 0 | M14: 0 | N14: 0 | O14: 0 | P14: 0 | Q14: 0 | R14: 0 | S14: 0 | T14: 0
E16: =InpOverride!E$206 -> Business plan totex | F16: =InpOverride!F$206 -> 0 | G16: =InpOverride!G$206 -> % | H16: =InpOverride!H$206 -> 0 | I16: =InpOverride!I$206 -> 0 | J16: =InpOverride!J$206 -> 0.75 | K16: =InpOverride!K$206 -> 0.8 | L16: =InpOverride!L$206 -> 0.85 | M16: =InpOverride!M$206 -> 0.9 | N16: =InpOverride!N$206 -> 0.95 | O16: =InpOverride!O$206 -> 1 | P16: =InpOverride!P$206 -> 1.05 | Q16: =InpOverride!Q$206 -> 1.1 | R16: =InpOverride!R$206 -> 1.15 | S16: =InpOverride!S$206 -> 1.2 | T16: =InpOverride!T$206 -> 1.25
E17: =InpOverride!E$157 & " - Range" -> Parameter 2 - Range | F17: =InpOverride!F$157 -> 0.8 | G17: =InpOverride!G$157 -> %
E18: =InpOverride!E$158 & " - Range" -> Parameter 3 - Range | F18: =InpOverride!F$158 -> 0.9 | G18: =InpOverride!G$158 -> %
E19: Outperformance flag: greater than 80% and less than or equal to 90% | G19: Flag | J19: =IF(AND(J16>$F17,J16<=$F18),1,0) -> 0 | K19: 0 | L19: 1 | M19: 1 | N19: 0 | O19: 0 | P19: 0 | Q19: 0 | R19: 0 | S19: 0 | T19: 0
E21: =InpOverride!E$206 -> Business plan totex | F21: =InpOverride!F$206 -> 0 | G21: =InpOverride!G$206 -> % | H21: =InpOverride!H$206 -> 0 | I21: =InpOverride!I$206 -> 0 | J21: =InpOverride!J$206 -> 0.75 | K21: =InpOverride!K$206 -> 0.8 | L21: =InpOverride!L$206 -> 0.85 | M21: =InpOverride!M$206 -> 0.9 | N21: =InpOverride!N$206 -> 0.95 | O21: =InpOverride!O$206 -> 1 | P21: =InpOverride!P$206 -> 1.05 | Q21: =InpOverride!Q$206 -> 1.1 | R21: =InpOverride!R$206 -> 1.15 | S21: =InpOverride!S$206 -> 1.2 | T21: =InpOverride!T$206 -> 1.25
E22: =InpOverride!E$161 & " - Range" -> Parameter 4 - Range | F22: =InpOverride!F$161 -> 0.9 | G22: =InpOverride!G$161 -> %
E23: =InpOverride!E$162 & " - Range" -> Parameter 5 - Range | F23: =InpOverride!F$162 -> 1.1 | G23: =InpOverride!G$162 -> %
E24: Outperformance flag: greater than 90% and less than or equal to 110% | G24: Flag | J24: =IF(AND(J21>$F22,J21<=$F23),1,0) -> 0 | K24: 0 | L24: 0 | M24: 0 | N24: 1 | O24: 1 | P24: 1 | Q24: 1 | R24: 0 | S24: 0 | T24: 0
E26: =InpOverride!E$206 -> Business plan totex | F26: =InpOverride!F$206 -> 0 | G26: =InpOverride!G$206 -> % | H26: =InpOverride!H$206 -> 0 | I26: =InpOverride!I$206 -> 0 | J26: =InpOverride!J$206 -> 0.75 | K26: =InpOverride!K$206 -> 0.8 | L26: =InpOverride!L$206 -> 0.85 | M26: =InpOverride!M$206 -> 0.9 | N26: =InpOverride!N$206 -> 0.95 | O26: =InpOverride!O$206 -> 1 | P26: =InpOverride!P$206 -> 1.05 | Q26: =InpOverride!Q$206 -> 1.1 | R26: =InpOverride!R$206 -> 1.15 | S26: =InpOverride!S$206 -> 1.2 | T26: =InpOverride!T$206 -> 1.25
E27: =InpOverride!E$165 & " - Range" -> Parameter 7 - Range | F27: =InpOverride!F$165 -> 1.1 | G27: =InpOverride!G$165 -> %
E28: =InpOverride!E$166 & " - Range" -> Parameter 8 - Range | F28: =InpOverride!F$166 -> 1.2 | G28: =InpOverride!G$166 -> %
E29: Outperformance flag: greater than 110% and less than or equal to 120% | G29: Flag | J29: =IF(AND(J26>$F27,J26<=$F28),1,0) -> 0 | K29: 0 | L29: 0 | M29: 0 | N29: 0 | O29: 0 | P29: 0 | Q29: 0 | R29: 1 | S29: 1 | T29: 0
E31: =InpOverride!E$206 -> Business plan totex | F31: =InpOverride!F$206 -> 0 | G31: =InpOverride!G$206 -> % | H31: =InpOverride!H$206 -> 0 | I31: =InpOverride!I$206 -> 0 | J31: =InpOverride!J$206 -> 0.75 | K31: =InpOverride!K$206 -> 0.8 | L31: =InpOverride!L$206 -> 0.85 | M31: =InpOverride!M$206 -> 0.9 | N31: =InpOverride!N$206 -> 0.95 | O31: =InpOverride!O$206 -> 1 | P31: =InpOverride!P$206 -> 1.05 | Q31: =InpOverride!Q$206 -> 1.1 | R31: =InpOverride!R$206 -> 1.15 | S31: =InpOverride!S$206 -> 1.2 | T31: =InpOverride!T$206 -> 1.25
E32: =InpOverride!E$169 & " - Range" -> Parameter 10 - Range | F32: =InpOverride!F$169 -> 1.2 | G32: =InpOverride!G$169 -> %
E33: Outperformance flag: greater than120% | G33: Flag | J33: =IF(J31>$F32,1,0) -> 0 | K33: 0 | L33: 0 | M33: 0 | N33: 0 | O33: 0 | P33: 0 | Q33: 0 | R33: 0 | S33: 0 | T33: 1
B35: Outperformance percentages
E37: =E$14 -> Outperformance flag: less than or equal 80% | F37: 0 | G37: Flag | H37: 0 | I37: 0 | J37: 1 | K37: 1 | L37: 0 | M37: 0 | N37: 0 | O37: 0 | P37: 0 | Q37: 0 | R37: 0 | S37: 0 | T37: 0
E38: =InpOverride!E$177 &" - Coefficient" -> Parameter(s) 1 - Coefficient | F38: =InpOverride!F$177 -> 0.65 | G38: =InpOverride!G$177 -> %
E39: Outperformance: less than or equal 80% | J39: =J37 * $F38 -> 0.65 | K39: 0.65 | L39: 0 | M39: 0 | N39: 0 | O39: 0 | P39: 0 | Q39: 0 | R39: 0 | S39: 0 | T39: 0
E41: =E$19 -> Outperformance flag: greater than 80% and less than or equal to 90% | F41: 0 | G41: Flag | H41: 0 | I41: 0 | J41: 0 | K41: 0 | L41: 1 | M41: 1 | N41: 0 | O41: 0 | P41: 0 | Q41: 0 | R41: 0 | S41: 0 | T41: 0
E42: =InpOverride!E$179 &" - Coefficient" -> Parameter 2 - Coefficient | F42: =InpOverride!F$179 -> 0.65 | G42: =InpOverride!G$179 -> %
E43: =InpOverride!E$180 &" - Coefficient" -> Parameter 3 - Coefficient | F43: =InpOverride!F$180 -> 0.5 | G43: =InpOverride!G$180 -> %
E44: =InpOverride!E$181 &" - Coefficient" -> Parameter 4 - Coefficient | F44: =InpOverride!F$181 -> 0.8 | G44: =InpOverride!G$181 -> %
E45: =InpOverride!E$206 -> Business plan totex | F45: =InpOverride!F$206 -> 0 | G45: =InpOverride!G$206 -> % | H45: =InpOverride!H$206 -> 0 | I45: =InpOverride!I$206 -> 0 | J45: =InpOverride!J$206 -> 0.75 | K45: =InpOverride!K$206 -> 0.8 | L45: =InpOverride!L$206 -> 0.85 | M45: =InpOverride!M$206 -> 0.9 | N45: =InpOverride!N$206 -> 0.95 | O45: =InpOverride!O$206 -> 1 | P45: =InpOverride!P$206 -> 1.05 | Q45: =InpOverride!Q$206 -> 1.1 | R45: =InpOverride!R$206 -> 1.15 | S45: =InpOverride!S$206 -> 1.2 | T45: =InpOverride!T$206 -> 1.25
E46: Outperformance: greater than 80% and less than or equal to 90% | J46: =J41 * ($F42 - $F43 * (J45 - $F44)) -> 0 | K46: 0 | L46: 0.625 | M46: 0.6 | N46: 0 | O46: 0 | P46: 0 | Q46: 0 | R46: 0 | S46: 0 | T46: 0
E48: =E$24 -> Outperformance flag: greater than 90% and less than or equal to 110% | F48: 0 | G48: Flag | H48: 0 | I48: 0 | J48: 0 | K48: 0 | L48: 0 | M48: 0 | N48: 1 | O48: 1 | P48: 1 | Q48: 1 | R48: 0 | S48: 0 | T48: 0
E49: =InpOverride!E$183 &" - Coefficient" -> Parameter 4 - Coefficient | F49: =InpOverride!F$183 -> 0.6 | G49: =InpOverride!G$183 -> %
E50: =InpOverride!E$184 &" - Coefficient" -> Parameter 5 - Coefficient | F50: =InpOverride!F$184 -> 1 | G50: =InpOverride!G$184 -> %
E51: =InpOverride!E$185 &" - Coefficient" -> Parameter 6 - Coefficient | F51: =InpOverride!F$185 -> 0.9 | G51: =InpOverride!G$185 -> %
E52: =InpOverride!E$206 -> Business plan totex | F52: =InpOverride!F$206 -> 0 | G52: =InpOverride!G$206 -> % | H52: =InpOverride!H$206 -> 0 | I52: =InpOverride!I$206 -> 0 | J52: =InpOverride!J$206 -> 0.75 | K52: =InpOverride!K$206 -> 0.8 | L52: =InpOverride!L$206 -> 0.85 | M52: =InpOverride!M$206 -> 0.9 | N52: =InpOverride!N$206 -> 0.95 | O52: =InpOverride!O$206 -> 1 | P52: =InpOverride!P$206 -> 1.05 | Q52: =InpOverride!Q$206 -> 1.1 | R52: =InpOverride!R$206 -> 1.15 | S52: =InpOverride!S$206 -> 1.2 | T52: =InpOverride!T$206 -> 1.25
E53: Outperformance: greater than 90% and less than or equal to 110% | J53: =J48 * ($F49 - $F50 * (J52 - $F51)) -> 0 | K53: 0 | L53: 0 | M53: 0 | N53: 0.55 | O53: 0.5 | P53: 0.45 | Q53: 0.4 | R53: 0 | S53: 0 | T53: 0
E55: =E$29 -> Outperformance flag: greater than 110% and less than or equal to 120% | F55: 0 | G55: Flag | H55: 0 | I55: 0 | J55: 0 | K55: 0 | L55: 0 | M55: 0 | N55: 0 | O55: 0 | P55: 0 | Q55: 0 | R55: 1 | S55: 1 | T55: 0
E56: =InpOverride!E$187 &" - Coefficient" -> Parameter 7 - Coefficient | F56: =InpOverride!F$187 -> 0.4 | G56: =InpOverride!G$187 -> %
E57: =InpOverride!E$188 &" - Coefficient" -> Parameter 8 - Coefficient | F57: =InpOverride!F$188 -> 0.5 | G57: =InpOverride!G$188 -> %
E58: =InpOverride!E$189 &" - Coefficient" -> Parameter 9 - Coefficient | F58: =InpOverride!F$189 -> 1.1 | G58: =InpOverride!G$189 -> %
E59: =InpOverride!E$206 -> Business plan totex | F59: =InpOverride!F$206 -> 0 | G59: =InpOverride!G$206 -> % | H59: =InpOverride!H$206 -> 0 | I59: =InpOverride!I$206 -> 0 | J59: =InpOverride!J$206 -> 0.75 | K59: =InpOverride!K$206 -> 0.8 | L59: =InpOverride!L$206 -> 0.85 | M59: =InpOverride!M$206 -> 0.9 | N59: =InpOverride!N$206 -> 0.95 | O59: =InpOverride!O$206 -> 1 | P59: =InpOverride!P$206 -> 1.05 | Q59: =InpOverride!Q$206 -> 1.1 | R59: =InpOverride!R$206 -> 1.15 | S59: =InpOverride!S$206 -> 1.2 | T59: =InpOverride!T$206 -> 1.25
E60: Outperformance: greater than 110% and less than or equal to 120% | J60: =J55 * ($F56 - $F57 * (J59 - $F58)) -> 0 | K60: 0 | L60: 0 | M60: 0 | N60: 0 | O60: 0 | P60: 0 | Q60: 0 | R60: 0.375 | S60: 0.35 | T60: 0
E62: =E$33 -> Outperformance flag: greater than120% | F62: 0 | G62: Flag | H62: 0 | I62: 0 | J62: 0 | K62: 0 | L62: 0 | M62: 0 | N62: 0 | O62: 0 | P62: 0 | Q62: 0 | R62: 0 | S62: 0 | T62: 1
E63: =InpOverride!E$191 &" - Coefficient" -> Parameter 10 - Coefficient | F63: =InpOverride!F$191 -> 0.35 | G63: =InpOverride!G$191 -> %
E64: Outperformance: greater than120% | J64: =J62*$F63 -> 0 | K64: 0 | L64: 0 | M64: 0 | N64: 0 | O64: 0 | P64: 0 | Q64: 0 | R64: 0 | S64: 0 | T64: 0.35
E66: =E$39 -> Outperformance: less than or equal 80% | F66: 0 | G66: 0 | H66: 0 | I66: 0 | J66: 0.65 | K66: 0.65 | L66: 0 | M66: 0 | N66: 0 | O66: 0 | P66: 0 | Q66: 0 | R66: 0 | S66: 0 | T66: 0
E67: =E$46 -> Outperformance: greater than 80% and less than or equal to 90% | F67: 0 | G67: 0 | H67: 0 | I67: 0 | J67: 0 | K67: 0 | L67: 0.625 | M67: 0.6 | N67: 0 | O67: 0 | P67: 0 | Q67: 0 | R67: 0 | S67: 0 | T67: 0
E68: =E$53 -> Outperformance: greater than 90% and less than or equal to 110% | F68: 0 | G68: 0 | H68: 0 | I68: 0 | J68: 0 | K68: 0 | L68: 0 | M68: 0 | N68: 0.55 | O68: 0.5 | P68: 0.45 | Q68: 0.4 | R68: 0 | S68: 0 | T68: 0
E69: =E$60 -> Outperformance: greater than 110% and less than or equal to 120% | F69: 0 | G69: 0 | H69: 0 | I69: 0 | J69: 0 | K69: 0 | L69: 0 | M69: 0 | N69: 0 | O69: 0 | P69: 0 | Q69: 0 | R69: 0.375 | S69: 0.35 | T69: 0
E70: =E$64 -> Outperformance: greater than120% | F70: 0 | G70: 0 | H70: 0 | I70: 0 | J70: 0 | K70: 0 | L70: 0 | M70: 0 | N70: 0 | O70: 0 | P70: 0 | Q70: 0 | R70: 0 | S70: 0 | T70: 0.35
E71: Outperformance summary sharing rates | J71: =SUM(J66:J70) -> 0.65 | K71: 0.65 | L71: 0.625 | M71: 0.6 | N71: 0.55 | O71: 0.5 | P71: 0.45 | Q71: 0.4 | R71: 0.375 | S71: 0.35 | T71: 0.35
B73: Underperformance calculations
E74: =InpOverride!E$206 -> Business plan totex | F74: =InpOverride!F$206 -> 0 | G74: =InpOverride!G$206 -> % | H74: =InpOverride!H$206 -> 0 | I74: =InpOverride!I$206 -> 0 | J74: =InpOverride!J$206 -> 0.75 | K74: =InpOverride!K$206 -> 0.8 | L74: =InpOverride!L$206 -> 0.85 | M74: =InpOverride!M$206 -> 0.9 | N74: =InpOverride!N$206 -> 0.95 | O74: =InpOverride!O$206 -> 1 | P74: =InpOverride!P$206 -> 1.05 | Q74: =InpOverride!Q$206 -> 1.1 | R74: =InpOverride!R$206 -> 1.15 | S74: =InpOverride!S$206 -> 1.2 | T74: =InpOverride!T$206 -> 1.25
E75: =InpOverride!E$173 & " - Range" -> Parameter 11 - Range | F75: =InpOverride!F$173 -> 1 | G75: =InpOverride!G$173 -> %
E76: Underperformance: less than or equal to 100% flag | J76: =IF(J74<=$F75,1,0) -> 1 | K76: 1 | L76: 1 | M76: 1 | N76: 1 | O76: 1 | P76: 0 | Q76: 0 | R76: 0 | S76: 0 | T76: 0
E78: =E$76 -> Underperformance: less than or equal to 100% flag | F78: 0 | G78: 0 | H78: 0 | I78: 0 | J78: 1 | K78: 1 | L78: 1 | M78: 1 | N78: 1 | O78: 1 | P78: 0 | Q78: 0 | R78: 0 | S78: 0 | T78: 0
E79: =InpOverride!E$195 &" - Coefficient" -> Parameter 11 - Coefficient | F79: =InpOverride!F$195 -> 0.5 | G79: =InpOverride!G$195 -> %
E80: Underperformance: totex sharing rate less than to equal to 100% | J80: =J78 * $F79 -> 0.5 | K80: 0.5 | L80: 0.5 | M80: 0.5 | N80: 0.5 | O80: 0.5 | P80: 0 | Q80: 0 | R80: 0 | S80: 0 | T80: 0
E82: =E$76 -> Underperformance: less than or equal to 100% flag | F82: 0 | G82: 0 | H82: 0 | I82: 0 | J82: 1 | K82: 1 | L82: 1 | M82: 1 | N82: 1 | O82: 1 | P82: 0 | Q82: 0 | R82: 0 | S82: 0 | T82: 0
E83: Underperformance: greater than a 100% flag | J83: =1 - J82 -> 0 | K83: 0 | L83: 0 | M83: 0 | N83: 0 | O83: 0 | P83: 1 | Q83: 1 | R83: 1 | S83: 1 | T83: 1
E85: =E$83 -> Underperformance: greater than a 100% flag | F85: 0 | G85: 0 | H85: 0 | I85: 0 | J85: 0 | K85: 0 | L85: 0 | M85: 0 | N85: 0 | O85: 0 | P85: 1 | Q85: 1 | R85: 1 | S85: 1 | T85: 1
E86: =E$71 -> Outperformance summary sharing rates | F86: 0 | G86: 0 | H86: 0 | I86: 0 | J86: 0.65 | K86: 0.65 | L86: 0.625 | M86: 0.6 | N86: 0.55 | O86: 0.5 | P86: 0.45 | Q86: 0.4 | R86: 0.375 | S86: 0.35 | T86: 0.35
E87: Underperformance: totex sharing rate greater than a 100% | J87: =J85 * (1 - J86) -> 0 | K87: 0 | L87: 0 | M87: 0 | N87: 0 | O87: 0 | P87: 0.55 | Q87: 0.6 | R87: 0.625 | S87: 0.65 | T87: 0.65
E89: =E$80 -> Underperformance: totex sharing rate less than to equal to 100% | F89: 0 | G89: 0 | H89: 0 | I89: 0 | J89: 0.5 | K89: 0.5 | L89: 0.5 | M89: 0.5 | N89: 0.5 | O89: 0.5 | P89: 0 | Q89: 0 | R89: 0 | S89: 0 | T89: 0
E90: =E$87 -> Underperformance: totex sharing rate greater than a 100% | F90: 0 | G90: 0 | H90: 0 | I90: 0 | J90: 0 | K90: 0 | L90: 0 | M90: 0 | N90: 0 | O90: 0 | P90: 0.55 | Q90: 0.6 | R90: 0.625 | S90: 0.65 | T90: 0.65
E91: Underperformance summary sharing rates | J91: =SUM(J89:J90) -> 0.5 | K91: 0.5 | L91: 0.5 | M91: 0.5 | N91: 0.5 | O91: 0.5 | P91: 0.55 | Q91: 0.6 | R91: 0.625 | S91: 0.65 | T91: 0.65
A93: WATER RESOURCES AND WATER NETWORK PLUS
E95: ='Ex-ante allowances'!E$69 -> Water Network - Ofwat Baseline Total Gross Totex - Real | F95: ='Ex-ante allowances'!F$69 -> 102.9405241 | G95: ='Ex-ante allowances'!G$69 -> £m
E96: ='Ex-ante allowances'!E$17 -> Water Resources - Ofwat Baseline Total Gross Totex - Real | F96: ='Ex-ante allowances'!F$17 -> 18.3894458 | G96: ='Ex-ante allowances'!G$17 -> £m
E97: Water - Ofwat Baseline Total Gross Totex - Real | F97: =SUM(F95:F96) -> 121.3299699 | G97: £m
E99: =InpOverride!E$46 -> Total gross capital expenditure - Water | F99: =InpOverride!F$46 -> 118.9110669 | G99: =InpOverride!G$46 -> 0
E100: =E$97 -> Water - Ofwat Baseline Total Gross Totex - Real | F100: =F$97 -> 121.3299699 | G100: £m
E101: Example: totex ratio company's forecast:Ofwat baseline | F101: =F99/F100 -> 0.9800634335 | G101: %
E103: =E$101 -> Example: totex ratio company's forecast:Ofwat baseline | F103: =F$101 -> 0.9800634335 | G103: =G$101 -> %
E104: =InpOverride!E$155 & " - Range" -> Parameter(s) 1 - Range | F104: =InpOverride!F$155 -> 0.8 | G104: =InpOverride!G$155 -> %
E105: Example Outperformance flag: less than or equal 80% | F105: =IF(F103<=$F104,1,0) -> 0 | G105: Flag
E107: =E$101 -> Example: totex ratio company's forecast:Ofwat baseline | F107: =F$101 -> 0.9800634335 | G107: %
E108: =InpOverride!E$157 & " - Range" -> Parameter 2 - Range | F108: =InpOverride!F$157 -> 0.8 | G108: =InpOverride!G$157 -> %
E109: =InpOverride!E$158 & " - Range" -> Parameter 3 - Range | F109: =InpOverride!F$158 -> 0.9 | G109: =InpOverride!G$158 -> %
E110: Example Outperformance flag: greater than 80% and less than or equal to 90% | F110: =IF(AND(F107>$F108,F107<=$F109),1,0) -> 0 | G110: Flag
E112: =E$101 -> Example: totex ratio company's forecast:Ofwat baseline | F112: =F$101 -> 0.9800634335 | G112: %
E113: =InpOverride!E$161 & " - Range" -> Parameter 4 - Range | F113: =InpOverride!F$161 -> 0.9 | G113: =InpOverride!G$161 -> %
E114: =InpOverride!E$162 & " - Range" -> Parameter 5 - Range | F114: =InpOverride!F$162 -> 1.1 | G114: =InpOverride!G$162 -> %
E115: Example Outperformance flag: greater than 90% and less than or equal to 110% | F115: =IF(AND(F112>$F113,F112<=$F114),1,0) -> 1 | G115: Flag
E117: =E$101 -> Example: totex ratio company's forecast:Ofwat baseline | F117: =F$101 -> 0.9800634335 | G117: %
E118: =InpOverride!E$165 & " - Range" -> Parameter 7 - Range | F118: =InpOverride!F$165 -> 1.1 | G118: =InpOverride!G$165 -> %
E119: =InpOverride!E$166 & " - Range" -> Parameter 8 - Range | F119: =InpOverride!F$166 -> 1.2 | G119: =InpOverride!G$166 -> %
E120: Example Outperformance flag: greater than 110% and less than or equal to 120% | F120: =IF(AND(F117>$F118,F117<=$F119),1,0) -> 0 | G120: Flag
E122: =E$101 -> Example: totex ratio company's forecast:Ofwat baseline | F122: =F$101 -> 0.9800634335 | G122: %
E123: =InpOverride!E$169 & " - Range" -> Parameter 10 - Range | F123: =InpOverride!F$169 -> 1.2 | G123: =InpOverride!G$169 -> %
E124: Example Outperformance flag: greater than120% | F124: =IF(F122>$F123,1,0) -> 0 | G124: Flag
E127: =E$105 -> Example Outperformance flag: less than or equal 80% | F127: =F$105 -> 0 | G127: Flag
E128: =InpOverride!E$177 &" - Coefficient" -> Parameter(s) 1 - Coefficient | F128: =InpOverride!F$177 -> 0.65 | G128: =InpOverride!G$177 -> %
E129: Example outperformance: less than or equal 80% | F129: =F127 * $F128 -> 0 | G129: %
E131: =E$110 -> Example Outperformance flag: greater than 80% and less than or equal to 90% | F131: =F$110 -> 0 | G131: Flag
E132: =InpOverride!E$179 &" - Coefficient" -> Parameter 2 - Coefficient | F132: =InpOverride!F$179 -> 0.65 | G132: =InpOverride!G$179 -> %
E133: =InpOverride!E$180 &" - Coefficient" -> Parameter 3 - Coefficient | F133: =InpOverride!F$180 -> 0.5 | G133: =InpOverride!G$180 -> %
E134: =InpOverride!E$181 &" - Coefficient" -> Parameter 4 - Coefficient | F134: =InpOverride!F$181 -> 0.8 | G134: =InpOverride!G$181 -> %
E135: =E$101 -> Example: totex ratio company's forecast:Ofwat baseline | F135: =F$101 -> 0.9800634335 | G135: %
E136: Example outperformance: greater than 80% and less than or equal to 90% | F136: =F131 * ($F132 - $F133 * (F135 - $F134)) -> 0 | G136: %
E138: =E$115 -> Example Outperformance flag: greater than 90% and less than or equal to 110% | F138: =F$115 -> 1 | G138: Flag
E139: =InpOverride!E$183 &" - Coefficient" -> Parameter 4 - Coefficient | F139: =InpOverride!F$183 -> 0.6 | G139: =InpOverride!G$183 -> %
E140: =InpOverride!E$184 &" - Coefficient" -> Parameter 5 - Coefficient | F140: =InpOverride!F$184 -> 1 | G140: =InpOverride!G$184 -> %
E141: =InpOverride!E$185 &" - Coefficient" -> Parameter 6 - Coefficient | F141: =InpOverride!F$185 -> 0.9 | G141: =InpOverride!G$185 -> %
E142: =E$101 -> Example: totex ratio company's forecast:Ofwat baseline | F142: =F$101 -> 0.9800634335 | G142: %
E143: Example outperformance: greater than 90% and less than or equal to 110% | F143: =F138 * ($F139 - $F140 * (F142 - $F141)) -> 0.5199365665 | G143: %
E145: =E$120 -> Example Outperformance flag: greater than 110% and less than or equal to 120% | F145: =F$120 -> 0 | G145: Flag
E146: =InpOverride!E$187 &" - Coefficient" -> Parameter 7 - Coefficient | F146: =InpOverride!F$187 -> 0.4 | G146: =InpOverride!G$187 -> %
E147: =InpOverride!E$188 &" - Coefficient" -> Parameter 8 - Coefficient | F147: =InpOverride!F$188 -> 0.5 | G147: =InpOverride!G$188 -> %
E148: =InpOverride!E$189 &" - Coefficient" -> Parameter 9 - Coefficient | F148: =InpOverride!F$189 -> 1.1 | G148: =InpOverride!G$189 -> %
E149: =E$101 -> Example: totex ratio company's forecast:Ofwat baseline | F149: =F$101 -> 0.9800634335 | G149: %
E150: Example outperformance: greater than 110% and less than or equal to 120% | F150: =F145 * ($F146 - $F147 * (F149 - $F148)) -> 0 | G150: %
E152: =E$124 -> Example Outperformance flag: greater than120% | F152: =F$124 -> 0 | G152: Flag
E153: =InpOverride!E$191 &" - Coefficient" -> Parameter 10 - Coefficient | F153: =InpOverride!F$191 -> 0.35 | G153: =InpOverride!G$191 -> %
E154: Example outperformance: greater than120% | F154: =F152*$F153 -> 0 | G154: %
E157: =E$129 -> Example outperformance: less than or equal 80% | F157: =F$129 -> 0 | G157: %
E158: =E$136 -> Example outperformance: greater than 80% and less than or equal to 90% | F158: =F$136 -> 0 | G158: %
E159: =E$143 -> Example outperformance: greater than 90% and less than or equal to 110% | F159: =F$143 -> 0.5199365665 | G159: %
E160: =E$150 -> Example outperformance: greater than 110% and less than or equal to 120% | F160: =F$150 -> 0 | G160: %
E161: =E$154 -> Example outperformance: greater than120% | F161: =F$154 -> 0 | G161: %
E162: Actual outperformance cost sharing rate for example | F162: =SUM(F157:F161) -> 0.5199365665 | G162: %
E165: =E$101 -> Example: totex ratio company's forecast:Ofwat baseline | F165: =F$101 -> 0.9800634335 | G165: %
E166: =InpOverride!E$173 & " - Range" -> Parameter 11 - Range | F166: =InpOverride!F$173 -> 1 | G166: =InpOverride!G$173 -> %
E167: Example underperformance: less than or equal to 100% flag | F167: =IF(F165<=$F166,1,0) -> 1 | G167: Flag
E169: =E$167 -> Example underperformance: less than or equal to 100% flag | F169: =F$167 -> 1 | G169: Flag
E170: =InpOverride!E$195 &" - Coefficient" -> Parameter 11 - Coefficient | F170: =InpOverride!F$195 -> 0.5 | G170: =InpOverride!G$195 -> %
E171: Example underperformance: totex sharing rate less than to equal to 100% | F171: =F169 * $F170 -> 0.5 | G171: %
E173: =E$169 -> Example underperformance: less than or equal to 100% flag | F173: =F$169 -> 1 | G173: Flag
E174: Example underperformance: greater than a 100% flag | F174: =1 - F173 -> 0 | G174: Flag
E176: =E$174 -> Example underperformance: greater than a 100% flag | F176: =F$174 -> 0 | G176: Flag
E177: =E$162 -> Actual outperformance cost sharing rate for example | F177: =F$162 -> 0.5199365665 | G177: %
E178: Example underperformance: totex sharing rate greater than a 100% | F178: =F176 * (1 - F177) -> 0 | G178: %
E180: =E$171 -> Example underperformance: totex sharing rate less than to equal to 100% | F180: =F$171 -> 0.5 | G180: %
E181: =E$178 -> Example underperformance: totex sharing rate greater than a 100% | F181: =F$178 -> 0 | G181: %
E182: Example underperformance summary sharing rates | F182: =SUM(F180:F181) -> 0.5 | G182: %
A184: WASTEWATER NETWORK PLUS
E186: ='Ex-ante allowances'!E$123 -> Wastewater Network - Total Expenditure | F186: ='Ex-ante allowances'!F$123 -> 21.794 | G186: ='Ex-ante allowances'!G$123 -> £m
E187: ='Ex-ante allowances'!E$127 -> Wastewater Network - Ofwat Baseline Total Gross Totex - Real | F187: ='Ex-ante allowances'!F$127 -> 22.69110015 | G187: ='Ex-ante allowances'!G$127 -> £m
E188: Example: totex ratio company's forecast:Ofwat baseline | F188: =IF(F187 = 0,0, F186/F187) -> 0.9604646691 | G188: %
E190: =E$188 -> Example: totex ratio company's forecast:Ofwat baseline | F190: =F$188 -> 0.9604646691 | G190: =G$188 -> %
E191: =InpOverride!E$155 & " - Range" -> Parameter(s) 1 - Range | F191: =InpOverride!F$155 -> 0.8 | G191: =InpOverride!G$155 -> %
E192: Example Outperformance flag: less than or equal 80% | F192: =IF(F190<=$F191,1,0) -> 0 | G192: Flag
E194: =E$188 -> Example: totex ratio company's forecast:Ofwat baseline | F194: =F$188 -> 0.9604646691 | G194: %
E195: =InpOverride!E$157 & " - Range" -> Parameter 2 - Range | F195: =InpOverride!F$157 -> 0.8 | G195: =InpOverride!G$157 -> %
E196: =InpOverride!E$158 & " - Range" -> Parameter 3 - Range | F196: =InpOverride!F$158 -> 0.9 | G196: =InpOverride!G$158 -> %
E197: Example Outperformance flag: greater than 80% and less than or equal to 90% | F197: =IF(AND(F194>$F195,F194<=$F196),1,0) -> 0 | G197: Flag
E199: =E$188 -> Example: totex ratio company's forecast:Ofwat baseline | F199: =F$188 -> 0.9604646691 | G199: %
E200: =InpOverride!E$161 & " - Range" -> Parameter 4 - Range | F200: =InpOverride!F$161 -> 0.9 | G200: =InpOverride!G$161 -> %
E201: =InpOverride!E$162 & " - Range" -> Parameter 5 - Range | F201: =InpOverride!F$162 -> 1.1 | G201: =InpOverride!G$162 -> %
E202: Example Outperformance flag: greater than 90% and less than or equal to 110% | F202: =IF(AND(F199>$F200,F199<=$F201),1,0) -> 1 | G202: Flag
E204: =E$188 -> Example: totex ratio company's forecast:Ofwat baseline | F204: =F$188 -> 0.9604646691 | G204: %
E205: =InpOverride!E$165 & " - Range" -> Parameter 7 - Range | F205: =InpOverride!F$165 -> 1.1 | G205: =InpOverride!G$165 -> %
E206: =InpOverride!E$166 & " - Range" -> Parameter 8 - Range | F206: =InpOverride!F$166 -> 1.2 | G206: =InpOverride!G$166 -> %
E207: Example Outperformance flag: greater than 110% and less than or equal to 120% | F207: =IF(AND(F204>$F205,F204<=$F206),1,0) -> 0 | G207: Flag
E209: =E$188 -> Example: totex ratio company's forecast:Ofwat baseline | F209: =F$188 -> 0.9604646691 | G209: %
E210: =InpOverride!E$169 & " - Range" -> Parameter 10 - Range | F210: =InpOverride!F$169 -> 1.2 | G210: =InpOverride!G$169 -> %
E211: Example Outperformance flag: greater than120% | F211: =IF(F209>$F210,1,0) -> 0 | G211: Flag
E214: =E$192 -> Example Outperformance flag: less than or equal 80% | F214: =F$192 -> 0 | G214: Flag
E215: =InpOverride!E$177 &" - Coefficient" -> Parameter(s) 1 - Coefficient | F215: =InpOverride!F$177 -> 0.65 | G215: =InpOverride!G$177 -> %
E216: Example outperformance: less than or equal 80% | F216: =F214 * $F215 -> 0 | G216: %
E218: =E$197 -> Example Outperformance flag: greater than 80% and less than or equal to 90% | F218: =F$197 -> 0 | G218: Flag
E219: =InpOverride!E$179 &" - Coefficient" -> Parameter 2 - Coefficient | F219: =InpOverride!F$179 -> 0.65 | G219: =InpOverride!G$179 -> %
E220: =InpOverride!E$180 &" - Coefficient" -> Parameter 3 - Coefficient | F220: =InpOverride!F$180 -> 0.5 | G220: =InpOverride!G$180 -> %
E221: =InpOverride!E$181 &" - Coefficient" -> Parameter 4 - Coefficient | F221: =InpOverride!F$181 -> 0.8 | G221: =InpOverride!G$181 -> %
E222: =E$188 -> Example: totex ratio company's forecast:Ofwat baseline | F222: =F$188 -> 0.9604646691 | G222: %
E223: Example outperformance: greater than 80% and less than or equal to 90% | F223: =F218 * ($F219 - $F220 * (F222 - $F221)) -> 0 | G223: %
E225: =E$202 -> Example Outperformance flag: greater than 90% and less than or equal to 110% | F225: =F$202 -> 1 | G225: Flag
E226: =InpOverride!E$183 &" - Coefficient" -> Parameter 4 - Coefficient | F226: =InpOverride!F$183 -> 0.6 | G226: =InpOverride!G$183 -> %
E227: =InpOverride!E$184 &" - Coefficient" -> Parameter 5 - Coefficient | F227: =InpOverride!F$184 -> 1 | G227: =InpOverride!G$184 -> %
E228: =InpOverride!E$185 &" - Coefficient" -> Parameter 6 - Coefficient | F228: =InpOverride!F$185 -> 0.9 | G228: =InpOverride!G$185 -> %
E229: =E$188 -> Example: totex ratio company's forecast:Ofwat baseline | F229: =F$188 -> 0.9604646691 | G229: %
E230: Example outperformance: greater than 90% and less than or equal to 110% | F230: =F225 * ($F226 - $F227 * (F229 - $F228)) -> 0.5395353309 | G230: %
E232: =E$207 -> Example Outperformance flag: greater than 110% and less than or equal to 120% | F232: =F$207 -> 0 | G232: Flag
E233: =InpOverride!E$187 &" - Coefficient" -> Parameter 7 - Coefficient | F233: =InpOverride!F$187 -> 0.4 | G233: =InpOverride!G$187 -> %
E234: =InpOverride!E$188 &" - Coefficient" -> Parameter 8 - Coefficient | F234: =InpOverride!F$188 -> 0.5 | G234: =InpOverride!G$188 -> %
E235: =InpOverride!E$189 &" - Coefficient" -> Parameter 9 - Coefficient | F235: =InpOverride!F$189 -> 1.1 | G235: =InpOverride!G$189 -> %
E236: =E$188 -> Example: totex ratio company's forecast:Ofwat baseline | F236: =F$188 -> 0.9604646691 | G236: %
E237: Example outperformance: greater than 110% and less than or equal to 120% | F237: =F232 * ($F233 - $F234 * (F236 - $F235)) -> 0 | G237: %
E239: =E$211 -> Example Outperformance flag: greater than120% | F239: =F$211 -> 0 | G239: Flag
E240: =InpOverride!E$191 &" - Coefficient" -> Parameter 10 - Coefficient | F240: =InpOverride!F$191 -> 0.35 | G240: =InpOverride!G$191 -> %
E241: Example outperformance: greater than120% | F241: =F239*$F240 -> 0 | G241: %
E244: =E$216 -> Example outperformance: less than or equal 80% | F244: =F$216 -> 0 | G244: %
E245: =E$223 -> Example outperformance: greater than 80% and less than or equal to 90% | F245: =F$223 -> 0 | G245: %
E246: =E$230 -> Example outperformance: greater than 90% and less than or equal to 110% | F246: =F$230 -> 0.5395353309 | G246: %
E247: =E$237 -> Example outperformance: greater than 110% and less than or equal to 120% | F247: =F$237 -> 0 | G247: %
E248: =E$241 -> Example outperformance: greater than120% | F248: =F$241 -> 0 | G248: %
E249: Actual outperformance cost sharing rate for example | F249: =SUM(F244:F248) -> 0.5395353309 | G249: %
E252: =E$188 -> Example: totex ratio company's forecast:Ofwat baseline | F252: =F$188 -> 0.9604646691 | G252: %
E253: =InpOverride!E$173 & " - Range" -> Parameter 11 - Range | F253: =InpOverride!F$173 -> 1 | G253: =InpOverride!G$173 -> %
E254: Example underperformance: less than or equal to 100% flag | F254: =IF(F252<=$F253,1,0) -> 1 | G254: Flag
E256: =E$254 -> Example underperformance: less than or equal to 100% flag | F256: =F$254 -> 1 | G256: Flag
E257: =InpOverride!E$195 &" - Coefficient" -> Parameter 11 - Coefficient | F257: =InpOverride!F$195 -> 0.5 | G257: =InpOverride!G$195 -> %
E258: Example underperformance: totex sharing rate less than to equal to 100% | F258: =F256 * $F257 -> 0.5 | G258: %
E260: =E$256 -> Example underperformance: less than or equal to 100% flag | F260: =F$256 -> 1 | G260: Flag
... 8 more rows

Sheet Ex-ante allowances
A1: =RIGHT(CELL("filename", $A$1), LEN(CELL("filename", $A$1)) - SEARCH("]", CELL("filename", $A$1))) -> Ex-ante allowances
E2: =Time!E$22 -> Model Period BEG | J2: =Time!J$22 -> 2019-04-01 | K2: =Time!K$22 -> 2020-04-01 | L2: =Time!L$22 -> 2021-04-01 | M2: =Time!M$22 -> 2022-04-01 | N2: =Time!N$22 -> 2023-04-01 | O2: =Time!O$22 -> 2024-04-01 | P2: =Time!P$22 -> 2025-04-01
E3: =Time!E$23 -> Model Period END | F3: =Check!F$8 -> 0 | G3: Error chks | J3: =Time!J$23 -> 2020-03-31 | K3: =Time!K$23 -> 2021-03-31 | L3: =Time!L$23 -> 2022-03-31 | M3: =Time!M$23 -> 2023-03-31 | N3: =Time!N$23 -> 2024-03-31 | O3: =Time!O$23 -> 2025-03-31 | P3: =Time!P$23 -> 2026-03-31
E4: =Time!E$59 -> Pre Forecast vs Forecast | F4: =Check!$F$20 -> 35 | G4: Track checks | J4: =Time!J$59 -> Pre Fcst | K4: =Time!K$59 -> Forecast | L4: =Time!L$59 -> Forecast | M4: =Time!M$59 -> Forecast | N4: =Time!N$59 -> Forecast | O4: =Time!O$59 -> Forecast | P4: =Time!P$59 -> Post-Fcst
E5: =Time!E$101 -> Financial Year Ending | J5: =Time!J$101 -> 2020 | K5: =Time!K$101 -> 2021 | L5: =Time!L$101 -> 2022 | M5: =Time!M$101 -> 2023 | N5: =Time!N$101 -> 2024 | O5: =Time!O$101 -> 2025 | P5: =Time!P$101 -> 2026
E6: =Time!E$11 -> Model column counter | F6: Constant | G6: Unit | H6: Total | J6: =Time!J$11 -> 1 | K6: =Time!K$11 -> 2 | L6: =Time!L$11 -> 3 | M6: =Time!M$11 -> 4 | N6: =Time!N$11 -> 5 | O6: =Time!O$11 -> 6 | P6: =Time!P$11 -> 7
A8: EX-ANTE ALLOWANCES
B10: Water Resources
E11: =InpOverride!E$29 -> Capital Expenditure (excluding Atypical expenditure) - Total gross capital expenditure excluding third party services - Water resources | F11: =InpOverride!F$29 -> 0 | G11: =InpOverride!G$29 -> £m | H11: =InpOverride!H$29 -> 8.809 | I11: =InpOverride!I$29 -> 0 | J11: =InpOverride!J$29 -> 0 | K11: =InpOverride!K$29 -> 2.503 | L11: =InpOverride!L$29 -> 2.61 | M11: =InpOverride!M$29 -> 1.33 | N11: =InpOverride!N$29 -> 1.194 | O11: =InpOverride!O$29 -> 1.172 | P11: =InpOverride!P$29 -> 0
E12: =InpOverride!E$30 -> Operating expenditure (excluding Atypical expenditure) - Total operating expenditure excluding third party services - Water resources | F12: =InpOverride!F$30 -> 0 | G12: =InpOverride!G$30 -> £m | H12: =InpOverride!H$30 -> 9.168052482 | I12: =InpOverride!I$30 -> 0 | J12: =InpOverride!J$30 -> 0 | K12: =InpOverride!K$30 -> 1.895419551 | L12: =InpOverride!L$30 -> 1.863498247 | M12: =InpOverride!M$30 -> 1.816475767 | N12: =InpOverride!N$30 -> 1.792634829 | O12: =InpOverride!O$30 -> 1.800024089 | P12: =InpOverride!P$30 -> 0
E13: Water Resources - Total Expenditure | F13: =SUM(H11:H12) -> 17.97705248 | G13: £m
E15: =InpOverride!E$28 -> Final cost allowance for cost sharing for Water Resources | F15: =InpOverride!F$28 -> 0 | G15: =InpOverride!G$28 -> £m | H15: =InpOverride!H$28 -> 18.3894458 | I15: =InpOverride!I$28 -> 0 | J15: =InpOverride!J$28 -> 0 | K15: =InpOverride!K$28 -> 3.67788916 | L15: =InpOverride!L$28 -> 3.67788916 | M15: =InpOverride!M$28 -> 3.67788916 | N15: =InpOverride!N$28 -> 3.67788916 | O15: =InpOverride!O$28 -> 3.67788916 | P15: =InpOverride!P$28 -> 0
E16: ='Opex Lease Adjustments'!E28 -> WR operating lease adjustment | F16: ='Opex Lease Adjustments'!F28 -> 0 | G16: ='Opex Lease Adjustments'!G28 -> £m | H16: ='Opex Lease Adjustments'!H28 -> 0 | I16: ='Opex Lease Adjustments'!I28 -> 0 | J16: ='Opex Lease Adjustments'!J28 -> 0 | K16: ='Opex Lease Adjustments'!K28 -> 0 | L16: ='Opex Lease Adjustments'!L28 -> 0 | M16: ='Opex Lease Adjustments'!M28 -> 0 | N16: ='Opex Lease Adjustments'!N28 -> 0 | O16: ='Opex Lease Adjustments'!O28 -> 0 | P16: ='Opex Lease Adjustments'!P28 -> 0
E17: Water Resources - Ofwat Baseline Total Gross Totex - Real | F17: =SUM($H$15:$H$16) -> 18.3894458 | G17: £m
E19: =InpOverride!E$29 -> Capital Expenditure (excluding Atypical expenditure) - Total gross capital expenditure excluding third party services - Water resources | G19: £m | H19: =SUM(K19:O19) -> 8.809 | J19: =InpOverride!J$29 -> 0 | K19: =InpOverride!K$29 -> 2.503 | L19: =InpOverride!L$29 -> 2.61 | M19: =InpOverride!M$29 -> 1.33 | N19: =InpOverride!N$29 -> 1.194 | O19: =InpOverride!O$29 -> 1.172 | P19: =InpOverride!P$29 -> 0
E20: =InpOverride!E$30 -> Operating expenditure (excluding Atypical expenditure) - Total operating expenditure excluding third party services - Water resources | G20: £m | H20: =SUM(K20:O20) -> 9.168052482 | J20: =InpOverride!J$30 -> 0 | K20: =InpOverride!K$30 -> 1.895419551 | L20: =InpOverride!L$30 -> 1.863498247 | M20: =InpOverride!M$30 -> 1.816475767 | N20: =InpOverride!N$30 -> 1.792634829 | O20: =InpOverride!O$30 -> 1.800024089 | P20: =InpOverride!P$30 -> 0
E21: [Company outturn totex - Water Resources] | F21: =SUM(H19:H20) -> 17.97705248 | G21: £m
D23: Ex-ante allowance
E24: =E$13 -> Water Resources - Total Expenditure | F24: =F$13 -> 17.97705248 | G24: =G$13 -> £m
E25: =E$17 -> Water Resources - Ofwat Baseline Total Gross Totex - Real | F25: =F$17 -> 18.3894458 | G25: £m
E26: Ratio company's forecast:Ofwat baseline | F26: =(F24/F25) -> 0.9775744564 | G26: %
E27: ='Dashboard Calcs'!E$162 -> Actual outperformance cost sharing rate for example | F27: ='Dashboard Calcs'!F$162 -> 0.5199365665 | G27: ='Dashboard Calcs'!G$162 -> %
E28: ='Dashboard Calcs'!E$182 -> Example underperformance summary sharing rates | F28: ='Dashboard Calcs'!F$182 -> 0.5 | G28: ='Dashboard Calcs'!G$182 -> %
E29: =E$21 -> [Company outturn totex - Water Resources] | F29: =F$21 -> 17.97705248 | G29: =G$21 -> £m
E30: Incentive payment (+) or penalty (-) | F30: =IF(( F29 < F25), F27, F28) * (F25 - F29) -> 0.2144183663 | G30: £m
E31: Ex-ante allowance above Ofwat forecast | F31: =F24+F30-F25 -> -0.1979749526 | G31: £m
D33: Ex-ante allowance - significant scrutiny
E34: =E$13 -> Water Resources - Total Expenditure | F34: =F$13 -> 17.97705248 | G34: =G$13 -> £m
E35: =E$17 -> Water Resources - Ofwat Baseline Total Gross Totex - Real | F35: =F$17 -> 18.3894458 | G35: £m
E36: Ratio company's forecast:Ofwat baseline | F36: =(F34/F35) -> 0.9775744564 | G36: %
E37: =InpOverride!E$199 -> Cost sharing rate | F37: =InpOverride!F$199 -> 0.25 | G37: =InpOverride!G$199 -> %
E38: =InpOverride!E$202 -> Cost Sharing rate | F38: =InpOverride!F$202 -> 0.75 | G38: =InpOverride!G$202 -> %
E39: =E$21 -> [Company outturn totex - Water Resources] | F39: =F$21 -> 17.97705248 | G39: =G$21 -> £m
E40: Incentive payment (+) or penalty (-) - significant scrutiny | F40: =IF(( F39 < F35), F37, F38) * (F35 - F39) -> 0.1030983297 | G40: £m
E41: Ex-ante allowance above Ofwat forecast - significant scrutiny | F41: =F34+F40-F35 -> -0.3092949892 | G41: £m
E43: =InpOverride!E$150 -> Company IAP classification | F43: =InpOverride!F$150 -> Not Significant Scrutiny | G43: =InpOverride!G$150 -> text
E44: =E$31 -> Ex-ante allowance above Ofwat forecast | F44: =F$31 -> -0.1979749526 | G44: =G$31 -> £m
E45: =E$41 -> Ex-ante allowance above Ofwat forecast - significant scrutiny | F45: =F$41 -> -0.3092949892 | G45: =G$41 -> £m
E46: Ex-ante allowance above Ofwat forecast - Active | F46: =IF(F43 = "Not Significant Scrutiny",F44, F45) -> -0.1979749526 | G46: £m
D48: Total Cost allowance
E49: =E$17 -> Water Resources - Ofwat Baseline Total Gross Totex - Real | F49: =F$17 -> 18.3894458 | G49: £m
E50: =E$46 -> Ex-ante allowance above Ofwat forecast - Active | F50: =F$46 -> -0.1979749526 | G50: £m
E51: Water resources - total cost allowance including ex-ante cost sharing | F51: =F49 + F50 -> 18.19147085 | G51: £m
E53: =InpOverride!E$81 -> Cost allowance override switch | F53: =InpOverride!F$81 -> 0 | G53: =InpOverride!G$81 -> 1 = Override, 0 = model calculated
E54: =E$51 -> Water resources - total cost allowance including ex-ante cost sharing | F54: =F$51 -> 18.19147085 | G54: £m
E55: =InpOverride!E$83 -> Water resources - total cost allowance including ex-ante cost sharing - Override | F55: =InpOverride!F$83 -> 18.3894458 | G55: =InpOverride!G$83 -> £m
E56: Water resources - total cost allowance including ex-ante cost sharing - active | F56: =IF(F53 = 0, F54, F55) -> 18.19147085 | G56: £m
B58: Water Network
E59: =InpOverride!E$35 -> Capital Expenditure (excluding Atypical expenditure) - Total gross capital expenditure excluding third party services - Raw water distribution | F59: =InpOverride!F$35 -> 0 | G59: =InpOverride!G$35 -> £m | H59: =InpOverride!H$35 -> 3.207089569 | I59: =InpOverride!I$35 -> 0 | J59: =InpOverride!J$35 -> 0 | K59: =InpOverride!K$35 -> 0.5430764572 | L59: =InpOverride!L$35 -> 0.791208172 | M59: =InpOverride!M$35 -> 0.7909150145 | N59: =InpOverride!N$35 -> 0.5427947201 | O59: =InpOverride!O$35 -> 0.5390952052 | P59: =InpOverride!P$35 -> 0
E60: =InpOverride!E$36 -> Total gross capital expenditure excluding third party services - Water treatment | F60: =InpOverride!F$36 -> 0 | G60: =InpOverride!G$36 -> £m | H60: =InpOverride!H$36 -> 6.001047713 | I60: =InpOverride!I$36 -> 0 | J60: =InpOverride!J$36 -> 0 | K60: =InpOverride!K$36 -> 1.049405801 | L60: =InpOverride!L$36 -> 1.047462409 | M60: =InpOverride!M$36 -> 1.3092637 | N60: =InpOverride!N$36 -> 1.31071302 | O60: =InpOverride!O$36 -> 1.284202783 | P60: =InpOverride!P$36 -> 0
E61: =InpOverride!E$37 -> Total gross capital expenditure excluding third party services - Treated water distribution | F61: =InpOverride!F$37 -> 0 | G61: =InpOverride!G$37 -> £m | H61: =InpOverride!H$37 -> 26.63186272 | I61: =InpOverride!I$37 -> 0 | J61: =InpOverride!J$37 -> 0 | K61: =InpOverride!K$37 -> 5.069517742 | L61: =InpOverride!L$37 -> 5.178329419 | M61: =InpOverride!M$37 -> 5.495821286 | N61: =InpOverride!N$37 -> 5.45649226 | O61: =InpOverride!O$37 -> 5.431702012 | P61: =InpOverride!P$37 -> 0
E62: =InpOverride!E$38 -> Operating expenditure (excluding Atypical expenditure) - Total operating expenditure excluding third party services - Raw water distribution | F62: =InpOverride!F$38 -> 0 | G62: =InpOverride!G$38 -> £m | H62: =InpOverride!H$38 -> 2.642943213 | I62: =InpOverride!I$38 -> 0 | J62: =InpOverride!J$38 -> 0 | K62: =InpOverride!K$38 -> 0.5476956185 | L62: =InpOverride!L$38 -> 0.5276790169 | M62: =InpOverride!M$38 -> 0.52288767 | N62: =InpOverride!N$38 -> 0.5180217135 | O62: =InpOverride!O$38 -> 0.5266591942 | P62: =InpOverride!P$38 -> 0
E63: =InpOverride!E$39 -> Total operating expenditure (excluding third party services) - Water treatment | F63: =InpOverride!F$39 -> 0 | G63: =InpOverride!G$39 -> £m | H63: =InpOverride!H$39 -> 23.21493243 | I63: =InpOverride!I$39 -> 0 | J63: =InpOverride!J$39 -> 0 | K63: =InpOverride!K$39 -> 4.704983513 | L63: =InpOverride!L$39 -> 4.607823153 | M63: =InpOverride!M$39 -> 4.663873607 | N63: =InpOverride!N$39 -> 4.610081788 | O63: =InpOverride!O$39 -> 4.628170372 | P63: =InpOverride!P$39 -> 0
E64: =InpOverride!E$40 -> Total operating expenditure (excluding third party services) - Treated water distribution | F64: =InpOverride!F$40 -> 0 | G64: =InpOverride!G$40 -> £m | H64: =InpOverride!H$40 -> 39.23613877 | I64: =InpOverride!I$40 -> 0 | J64: =InpOverride!J$40 -> 0 | K64: =InpOverride!K$40 -> 8.180742415 | L64: =InpOverride!L$40 -> 7.808909634 | M64: =InpOverride!M$40 -> 7.737641184 | N64: =InpOverride!N$40 -> 7.665290098 | O64: =InpOverride!O$40 -> 7.843555434 | P64: =InpOverride!P$40 -> 0
E65: Water Network - Total Expenditure | F65: =SUM(H59:H64) -> 100.9340144 | G65: £m
E67: =InpOverride!E$34 -> Final cost allowance for cost sharing for Network Plus Water | F67: =InpOverride!F$34 -> 0 | G67: =InpOverride!G$34 -> £m | H67: =InpOverride!H$34 -> 102.9405241 | I67: =InpOverride!I$34 -> 0 | J67: =InpOverride!J$34 -> 0 | K67: =InpOverride!K$34 -> 20.58810482 | L67: =InpOverride!L$34 -> 20.58810482 | M67: =InpOverride!M$34 -> 20.58810482 | N67: =InpOverride!N$34 -> 20.58810482 | O67: =InpOverride!O$34 -> 20.58810482 | P67: =InpOverride!P$34 -> 0
E68: ='Opex Lease Adjustments'!E$50 -> WN operating lease adjustment | F68: ='Opex Lease Adjustments'!F$50 -> 0 | G68: ='Opex Lease Adjustments'!G$50 -> £m | H68: ='Opex Lease Adjustments'!H$50 -> 0 | I68: ='Opex Lease Adjustments'!I$50 -> 0 | J68: ='Opex Lease Adjustments'!J$50 -> 0 | K68: ='Opex Lease Adjustments'!K$50 -> 0 | L68: ='Opex Lease Adjustments'!L$50 -> 0 | M68: ='Opex Lease Adjustments'!M$50 -> 0 | N68: ='Opex Lease Adjustments'!N$50 -> 0 | O68: ='Opex Lease Adjustments'!O$50 -> 0 | P68: ='Opex Lease Adjustments'!P$50 -> 0
E69: Water Network - Ofwat Baseline Total Gross Totex - Real | F69: =SUM($H$67:$H$68) -> 102.9405241 | G69: £m
E71: =InpOverride!E$35 -> Capital Expenditure (excluding Atypical expenditure) - Total gross capital expenditure excluding third party services - Raw water distribution | F71: =InpOverride!F$35 -> 0 | G71: =InpOverride!G$35 -> £m | H71: =InpOverride!H$35 -> 3.207089569 | I71: =InpOverride!I$35 -> 0 | J71: =InpOverride!J$35 -> 0 | K71: =InpOverride!K$35 -> 0.5430764572 | L71: =InpOverride!L$35 -> 0.791208172 | M71: =InpOverride!M$35 -> 0.7909150145 | N71: =InpOverride!N$35 -> 0.5427947201 | O71: =InpOverride!O$35 -> 0.5390952052 | P71: =InpOverride!P$35 -> 0
E72: =InpOverride!E$36 -> Total gross capital expenditure excluding third party services - Water treatment | F72: =InpOverride!F$36 -> 0 | G72: =InpOverride!G$36 -> £m | H72: =InpOverride!H$36 -> 6.001047713 | I72: =InpOverride!I$36 -> 0 | J72: =InpOverride!J$36 -> 0 | K72: =InpOverride!K$36 -> 1.049405801 | L72: =InpOverride!L$36 -> 1.047462409 | M72: =InpOverride!M$36 -> 1.3092637 | N72: =InpOverride!N$36 -> 1.31071302 | O72: =InpOverride!O$36 -> 1.284202783 | P72: =InpOverride!P$36 -> 0
E73: =InpOverride!E$37 -> Total gross capital expenditure excluding third party services - Treated water distribution | F73: =InpOverride!F$37 -> 0 | G73: =InpOverride!G$37 -> £m | H73: =InpOverride!H$37 -> 26.63186272 | I73: =InpOverride!I$37 -> 0 | J73: =InpOverride!J$37 -> 0 | K73: =InpOverride!K$37 -> 5.069517742 | L73: =InpOverride!L$37 -> 5.178329419 | M73: =InpOverride!M$37 -> 5.495821286 | N73: =InpOverride!N$37 -> 5.45649226 | O73: =InpOverride!O$37 -> 5.431702012 | P73: =InpOverride!P$37 -> 0
E74: =InpOverride!E$38 -> Operating expenditure (excluding Atypical expenditure) - Total operating expenditure excluding third party services - Raw water distribution | F74: =InpOverride!F$38 -> 0 | G74: =InpOverride!G$38 -> £m | H74: =InpOverride!H$38 -> 2.642943213 | I74: =InpOverride!I$38 -> 0 | J74: =InpOverride!J$38 -> 0 | K74: =InpOverride!K$38 -> 0.5476956185 | L74: =InpOverride!L$38 -> 0.5276790169 | M74: =InpOverride!M$38 -> 0.52288767 | N74: =InpOverride!N$38 -> 0.5180217135 | O74: =InpOverride!O$38 -> 0.5266591942 | P74: =InpOverride!P$38 -> 0
E75: =InpOverride!E$39 -> Total operating expenditure (excluding third party services) - Water treatment | F75: =InpOverride!F$39 -> 0 | G75: =InpOverride!G$39 -> £m | H75: =InpOverride!H$39 -> 23.21493243 | I75: =InpOverride!I$39 -> 0 | J75: =InpOverride!J$39 -> 0 | K75: =InpOverride!K$39 -> 4.704983513 | L75: =InpOverride!L$39 -> 4.607823153 | M75: =InpOverride!M$39 -> 4.663873607 | N75: =InpOverride!N$39 -> 4.610081788 | O75: =InpOverride!O$39 -> 4.628170372 | P75: =InpOverride!P$39 -> 0
E76: =InpOverride!E$40 -> Total operating expenditure (excluding third party services) - Treated water distribution | F76: =InpOverride!F$40 -> 0 | G76: =InpOverride!G$40 -> £m | H76: =InpOverride!H$40 -> 39.23613877 | I76: =InpOverride!I$40 -> 0 | J76: =InpOverride!J$40 -> 0 | K76: =InpOverride!K$40 -> 8.180742415 | L76: =InpOverride!L$40 -> 7.808909634 | M76: =InpOverride!M$40 -> 7.737641184 | N76: =InpOverride!N$40 -> 7.665290098 | O76: =InpOverride!O$40 -> 7.843555434 | P76: =InpOverride!P$40 -> 0
E77: [Company outturn totex - Water Network] | F77: =SUM(H71:H76) -> 100.9340144 | G77: £m
E79: =E$21 -> [Company outturn totex - Water Resources] | F79: =F$21 -> 17.97705248 | G79: =G$21 -> £m
E80: =E$77 -> [Company outturn totex - Water Network] | F80: =F$77 -> 100.9340144 | G80: =G$77 -> £m
E81: Company outturn totex of - Water | F81: =SUM(F79:F80) -> 118.9110669 | G81: £m
D83: Ex-ante allowance
E84: =E$65 -> Water Network - Total Expenditure | F84: =F$65 -> 100.9340144 | G84: =G$65 -> £m
E85: =E$69 -> Water Network - Ofwat Baseline Total Gross Totex - Real | F85: =F$69 -> 102.9405241 | G85: =G$69 -> £m
E86: Ratio company's forecast:Ofwat baseline | F86: =(F84/F85) -> 0.980508068 | G86: %
E87: ='Dashboard Calcs'!E$162 -> Actual outperformance cost sharing rate for example | F87: ='Dashboard Calcs'!F$162 -> 0.5199365665 | G87: ='Dashboard Calcs'!G$162 -> %
E88: ='Dashboard Calcs'!E$182 -> Example underperformance summary sharing rates | F88: ='Dashboard Calcs'!F$182 -> 0.5 | G88: ='Dashboard Calcs'!G$182 -> %
E89: =E$77 -> [Company outturn totex - Water Network] | F89: =F$77 -> 100.9340144 | G89: =G$77 -> £m
E90: Incentive payment (+) or penalty (-) - Water Network | F90: =IF(( F89 < F85), F87, F88) * (F85 - F89) -> 1.043257764 | G90: £m
E91: Ex-ante allowance above Ofwat forecast - Water Network | F91: =F84+F90-F85 -> -0.9632519356 | G91: £m
D93: Ex-ante allowance - significant scrutiny
E94: =E$65 -> Water Network - Total Expenditure | F94: =F$65 -> 100.9340144 | G94: =G$65 -> £m
E95: =E$69 -> Water Network - Ofwat Baseline Total Gross Totex - Real | F95: =F$69 -> 102.9405241 | G95: =G$69 -> £m
E96: Ratio company's forecast:Ofwat baseline | F96: =(F94/F95) -> 0.980508068 | G96: %
E97: =InpOverride!E$199 -> Cost sharing rate | F97: =InpOverride!F$199 -> 0.25 | G97: =InpOverride!G$199 -> %
E98: =InpOverride!E$202 -> Cost Sharing rate | F98: =InpOverride!F$202 -> 0.75 | G98: =InpOverride!G$202 -> %
E99: =E$77 -> [Company outturn totex - Water Network] | F99: =F$77 -> 100.9340144 | G99: =G$77 -> £m
E100: Incentive payment (+) or penalty (-) - significant scrutiny - Water Network | F100: =IF(( F99 < F95), F97, F98) * (F95 - F99) -> 0.5016274248 | G100: £m
E101: Ex-ante allowance above Ofwat forecast - significant scrutiny - Water Network | F101: =F94+F100-F95 -> -1.504882275 | G101: £m
E103: =InpOverride!E$150 -> Company IAP classification | F103: =InpOverride!F$150 -> Not Significant Scrutiny | G103: =InpOverride!G$150 -> text
E104: =E$91 -> Ex-ante allowance above Ofwat forecast - Water Network | F104: =F$91 -> -0.9632519356 | G104: =G$91 -> £m
E105: =E$101 -> Ex-ante allowance above Ofwat forecast - significant scrutiny - Water Network | F105: =F$101 -> -1.504882275 | G105: =G$101 -> £m
E106: Ex-ante allowance above Ofwat forecast - Active - Water Network | F106: =IF(F103 = "Not Significant Scrutiny",F104, F105) -> -0.9632519356 | G106: £m
D108: Total Cost allowance
E109: =E$69 -> Water Network - Ofwat Baseline Total Gross Totex - Real | F109: =F$69 -> 102.9405241 | G109: =G$69 -> £m
E110: =E$106 -> Ex-ante allowance above Ofwat forecast - Active - Water Network | F110: -0.9632519356 | G110: £m
E111: Water network - total cost allowance including ex-ante cost sharing | F111: =F109 + F110 -> 101.9772722 | G111: £m
E113: =InpOverride!E$81 -> Cost allowance override switch | F113: =InpOverride!F$81 -> 0 | G113: =InpOverride!G$81 -> 1 = Override, 0 = model calculated
E114: =E$111 -> Water network - total cost allowance including ex-ante cost sharing | F114: =F$111 -> 101.9772722 | G114: =G$111 -> £m
E115: =InpOverride!E$85 -> Water network - total cost allowance including ex-ante cost sharing - Override | F115: =InpOverride!F$85 -> 102.9405241 | G115: =InpOverride!G$85 -> £m
E116: Water network - total cost allowance including ex-ante cost sharing - active | F116: =IF(F113 = 0, F114, F115) -> 101.9772722 | G116: £m
B118: WasteWater Network
E119: =InpOverride!E$52 -> Operating expenditure - Total operating expenditure (excluding third party services) - Sewage collection | F119: =InpOverride!F$52 -> 0 | G119: =InpOverride!G$52 -> £m | H119: =InpOverride!H$52 -> 4.074222574 | I119: =InpOverride!I$52 -> 0 | J119: =InpOverride!J$52 -> 0 | K119: =InpOverride!K$52 -> 0.8271402434 | L119: =InpOverride!L$52 -> 0.8204212814 | M119: =InpOverride!M$52 -> 0.8139963647 | N119: =InpOverride!N$52 -> 0.8073998588 | O119: =InpOverride!O$52 -> 0.8052648252 | P119: =InpOverride!P$52 -> 0
E120: =InpOverride!E$53 -> Operating expenditure - Total operating expenditure (excluding third party services) - Sewage treatment | F120: =InpOverride!F$53 -> 0 | G120: =InpOverride!G$53 -> £m | H120: =InpOverride!H$53 -> 8.094777426 | I120: =InpOverride!I$53 -> 0 | J120: =InpOverride!J$53 -> 0 | K120: =InpOverride!K$53 -> 1.620859757 | L120: =InpOverride!L$53 -> 1.635578719 | M120: =InpOverride!M$53 -> 1.615003635 | N120: =InpOverride!N$53 -> 1.609600141 | O120: =InpOverride!O$53 -> 1.613735175 | P120: =InpOverride!P$53 -> 0
E121: =InpOverride!E$50 -> Capital expenditure - Total gross capital expenditure excluding third party services - Sewage collection | F121: =InpOverride!F$50 -> 0 | G121: =InpOverride!G$50 -> £m | H121: =InpOverride!H$50 -> 1.940105206 | I121: =InpOverride!I$50 -> 0 | J121: =InpOverride!J$50 -> 0 | K121: =InpOverride!K$50 -> 0.3854387922 | L121: =InpOverride!L$50 -> 0.3869520472 | M121: =InpOverride!M$50 -> 0.3886118306 | N121: =InpOverride!N$50 -> 0.3875089005 | O121: =InpOverride!O$50 -> 0.3915936359 | P121: =InpOverride!P$50 -> 0
E122: =InpOverride!E$51 -> Capital expenditure - Total gross capital expenditure excluding third party services - Sewage treatment | F122: =InpOverride!F$51 -> 0 | G122: =InpOverride!G$51 -> £m | H122: =InpOverride!H$51 -> 7.684894794 | I122: =InpOverride!I$51 -> 0 | J122: =InpOverride!J$51 -> 0 | K122: =InpOverride!K$51 -> 1.009561208 | L122: =InpOverride!L$51 -> 1.331047953 | M122: =InpOverride!M$51 -> 1.556388169 | N122: =InpOverride!N$51 -> 2.683491099 | O122: =InpOverride!O$51 -> 1.104406364 | P122: =InpOverride!P$51 -> 0
E123: Wastewater Network - Total Expenditure | F123: =SUM(H119:H122) -> 21.794 | G123: £m
E125: =InpOverride!E$49 -> Efficient totex for cost sharing network plus wastewater £m | F125: =InpOverride!F$49 -> 0 | G125: =InpOverride!G$49 -> £m | H125: =InpOverride!H$49 -> 22.69110015 | I125: =InpOverride!I$49 -> 0 | J125: =InpOverride!J$49 -> 0 | K125: =InpOverride!K$49 -> 4.538220031 | L125: =InpOverride!L$49 -> 4.538220031 | M125: =InpOverride!M$49 -> 4.538220031 | N125: =InpOverride!N$49 -> 4.538220031 | O125: =InpOverride!O$49 -> 4.538220031 | P125: =InpOverride!P$49 -> 0
E126: ='Opex Lease Adjustments'!E$67 -> WWN operating lease adjustment | F126: ='Opex Lease Adjustments'!F$67 -> 0 | G126: ='Opex Lease Adjustments'!G$67 -> £m | H126: ='Opex Lease Adjustments'!H$67 -> 0 | I126: ='Opex Lease Adjustments'!I$67 -> 0 | J126: ='Opex Lease Adjustments'!J$67 -> 0 | K126: ='Opex Lease Adjustments'!K$67 -> 0 | L126: ='Opex Lease Adjustments'!L$67 -> 0 | M126: ='Opex Lease Adjustments'!M$67 -> 0 | N126: ='Opex Lease Adjustments'!N$67 -> 0 | O126: ='Opex Lease Adjustments'!O$67 -> 0 | P126: ='Opex Lease Adjustments'!P$67 -> 0
E127: Wastewater Network - Ofwat Baseline Total Gross Totex - Real | F127: =SUM($H$125:$H$126) -> 22.69110015 | G127: £m
E129: =InpOverride!E$52 -> Operating expenditure - Total operating expenditure (excluding third party services) - Sewage collection | F129: =InpOverride!F$52 -> 0 | G129: =InpOverride!G$52 -> £m | H129: =InpOverride!H$52 -> 4.074222574 | I129: =InpOverride!I$52 -> 0 | J129: =InpOverride!J$52 -> 0 | K129: =InpOverride!K$52 -> 0.8271402434 | L129: =InpOverride!L$52 -> 0.8204212814 | M129: =InpOverride!M$52 -> 0.8139963647 | N129: =InpOverride!N$52 -> 0.8073998588 | O129: =InpOverride!O$52 -> 0.8052648252 | P129: =InpOverride!P$52 -> 0
E130: =InpOverride!E$53 -> Operating expenditure - Total operating expenditure (excluding third party services) - Sewage treatment | F130: =InpOverride!F$53 -> 0 | G130: =InpOverride!G$53 -> £m | H130: =InpOverride!H$53 -> 8.094777426 | I130: =InpOverride!I$53 -> 0 | J130: =InpOverride!J$53 -> 0 | K130: =InpOverride!K$53 -> 1.620859757 | L130: =InpOverride!L$53 -> 1.635578719 | M130: =InpOverride!M$53 -> 1.615003635 | N130: =InpOverride!N$53 -> 1.609600141 | O130: =InpOverride!O$53 -> 1.613735175 | P130: =InpOverride!P$53 -> 0
E131: =InpOverride!E$50 -> Capital expenditure - Total gross capital expenditure excluding third party services - Sewage collection | F131: =InpOverride!F$50 -> 0 | G131: =InpOverride!G$50 -> £m | H131: =InpOverride!H$50 -> 1.940105206 | I131: =InpOverride!I$50 -> 0 | J131: =InpOverride!J$50 -> 0 | K131: =InpOverride!K$50 -> 0.3854387922 | L131: =InpOverride!L$50 -> 0.3869520472 | M131: =InpOverride!M$50 -> 0.3886118306 | N131: =InpOverride!N$50 -> 0.3875089005 | O131: =InpOverride!O$50 -> 0.3915936359 | P131: =InpOverride!P$50 -> 0
E132: =InpOverride!E$51 -> Capital expenditure - Total gross capital expenditure excluding third party services - Sewage treatment | F132: =InpOverride!F$51 -> 0 | G132: =InpOverride!G$51 -> £m | H132: =InpOverride!H$51 -> 7.684894794 | I132: =InpOverride!I$51 -> 0 | J132: =InpOverride!J$51 -> 0 | K132: =InpOverride!K$51 -> 1.009561208 | L132: =InpOverride!L$51 -> 1.331047953 | M132: =InpOverride!M$51 -> 1.556388169 | N132: =InpOverride!N$51 -> 2.683491099 | O132: =InpOverride!O$51 -> 1.104406364 | P132: =InpOverride!P$51 -> 0
E133: [Company outturn totex of - Wastewater Network] | F133: =SUM(H129:H132) -> 21.794 | G133: £m
D135: Ex-ante allowance
E136: =E$123 -> Wastewater Network - Total Expenditure | F136: =F$123 -> 21.794 | G136: =G$123 -> £m
E137: =E$127 -> Wastewater Network - Ofwat Baseline Total Gross Totex - Real | F137: =F$127 -> 22.69110015 | G137: =G$127 -> £m
E138: Ratio company's forecast:Ofwat baseline | F138: =IF(F137=0, 0, (F136/F137)) -> 0.9604646691 | G138: %
E139: ='Dashboard Calcs'!E$249 -> Actual outperformance cost sharing rate for example | F139: ='Dashboard Calcs'!F$249 -> 0.5395353309 | G139: ='Dashboard Calcs'!G$249 -> %
E140: ='Dashboard Calcs'!E$269 -> Example underperformance summary sharing rates | F140: ='Dashboard Calcs'!F$269 -> 0.5 | G140: ='Dashboard Calcs'!G$269 -> %
E141: =E$133 -> [Company outturn totex of - Wastewater Network] | F141: =F$133 -> 21.794 | G141: =G$133 -> £m
E142: Incentive payment (+) or penalty (-) - Wastewater Network | F142: =IF(( F141 < F137), F139, F140) * (F137 - F141) -> 0.4840172277 | G142: £m
E143: Ex-ante allowance above Ofwat forecast - Wastewater Network | F143: =F136+F142-F137 -> -0.413082925 | G143: £m
D145: Ex-ante allowance - significant scrutiny
E146: =E$123 -> Wastewater Network - Total Expenditure | F146: =F$123 -> 21.794 | G146: =G$123 -> £m
E147: =E$127 -> Wastewater Network - Ofwat Baseline Total Gross Totex - Real | F147: =F$127 -> 22.69110015 | G147: =G$127 -> £m
E148: Ratio company's forecast:Ofwat baseline | F148: =(F146/F147) -> 0.9604646691 | G148: %
E149: =InpOverride!E$199 -> Cost sharing rate | F149: =InpOverride!F$199 -> 0.25 | G149: =InpOverride!G$199 -> %
E150: =InpOverride!E$202 -> Cost Sharing rate | F150: =InpOverride!F$202 -> 0.75 | G150: =InpOverride!G$202 -> %
E151: =E$133 -> [Company outturn totex of - Wastewater Network] | F151: =F$133 -> 21.794 | G151: =G$133 -> £m
E152: Incentive payment (+) or penalty (-) - significant scrutiny - Wastewater Network | F152: =IF(( F151 < F147), F149, F150) * (F147 - F151) -> 0.2242750382 | G152: £m
E153: Ex-ante allowance above Ofwat forecast - significant scrutiny - Wastewater Network | F153: =F146+F152-F147 -> -0.6728251145 | G153: £m
E155: =InpOverride!E$150 -> Company IAP classification | F155: =InpOverride!F$150 -> Not Significant Scrutiny | G155: =InpOverride!G$150 -> text
E156: =E$143 -> Ex-ante allowance above Ofwat forecast - Wastewater Network | F156: =F$143 -> -0.413082925 | G156: =G$143 -> £m
E157: =E$153 -> Ex-ante allowance above Ofwat forecast - significant scrutiny - Wastewater Network | F157: =F$153 -> -0.6728251145 | G157: £m
E158: Ex-ante allowance above Ofwat forecast - Active - Wastewater Network | F158: =IF(F155 = "Not Significant Scrutiny",F156, F157) -> -0.413082925 | G158: £m
D160: Total Cost allowance
E161: =E$127 -> Wastewater Network - Ofwat Baseline Total Gross Totex - Real | F161: =F$127 -> 22.69110015 | G161: =G$127 -> £m
E162: =E$158 -> Ex-ante allowance above Ofwat forecast - Active - Wastewater Network | F162: =F$158 -> -0.413082925 | G162: £m
E163: Wastewater Network - total cost allowance including ex-ante cost sharing | F163: =F161 + F162 -> 22.27801723 | G163: £m
E165: =InpOverride!E$81 -> Cost allowance override switch | F165: =InpOverride!F$81 -> 0 | G165: =InpOverride!G$81 -> 1 = Override, 0 = model calculated
E166: =E$163 -> Wastewater Network - total cost allowance including ex-ante cost sharing | F166: =F$163 -> 22.27801723 | G166: £m
E167: =InpOverride!E$87 -> Wastewater network - total cost allowance including ex-ante cost sharing - Override | F167: =InpOverride!F$87 -> 22.69110015 | G167: =InpOverride!G$87 -> £m
E168: Wastewater Network - total cost allowance including ex-ante cost sharing - active | F168: =IF(F165 = 0, F166, F167) -> 22.27801723 | G168: £m
A170: END OF SHEET

Sheet Cost profiling
A1: =RIGHT(CELL("filename", $A$1), LEN(CELL("filename", $A$1)) - SEARCH("]", CELL("filename", $A$1))) -> Cost profiling
E2: =Time!E$22 -> Model Period BEG | J2: =Time!J$22 -> 2019-04-01 | K2: =Time!K$22 -> 2020-04-01 | L2: =Time!L$22 -> 2021-04-01 | M2: =Time!M$22 -> 2022-04-01 | N2: =Time!N$22 -> 2023-04-01 | O2: =Time!O$22 -> 2024-04-01 | P2: =Time!P$22 -> 2025-04-01
E3: =Time!E$23 -> Model Period END | F3: =Check!F$8 -> 0 | G3: Error chks | J3: =Time!J$23 -> 2020-03-31 | K3: =Time!K$23 -> 2021-03-31 | L3: =Time!L$23 -> 2022-03-31 | M3: =Time!M$23 -> 2023-03-31 | N3: =Time!N$23 -> 2024-03-31 | O3: =Time!O$23 -> 2025-03-31 | P3: =Time!P$23 -> 2026-03-31
E4: =Time!E$59 -> Pre Forecast vs Forecast | F4: =Check!$F$20 -> 35 | G4: Track checks | J4: =Time!J$59 -> Pre Fcst | K4: =Time!K$59 -> Forecast | L4: =Time!L$59 -> Forecast | M4: =Time!M$59 -> Forecast | N4: =Time!N$59 -> Forecast | O4: =Time!O$59 -> Forecast | P4: =Time!P$59 -> Post-Fcst
E5: =Time!E$101 -> Financial Year Ending | J5: =Time!J$101 -> 2020 | K5: =Time!K$101 -> 2021 | L5: =Time!L$101 -> 2022 | M5: =Time!M$101 -> 2023 | N5: =Time!N$101 -> 2024 | O5: =Time!O$101 -> 2025 | P5: =Time!P$101 -> 2026
E6: =Time!E$11 -> Model column counter | F6: Constant | G6: Unit | H6: Total | J6: =Time!J$11 -> 1 | K6: =Time!K$11 -> 2 | L6: =Time!L$11 -> 3 | M6: =Time!M$11 -> 4 | N6: =Time!N$11 -> 5 | O6: =Time!O$11 -> 6 | P6: =Time!P$11 -> 7
A8: FIVE YEAR PROFILING
B10: Water resources
E11: =InpOverride!E$127 -> Allowed capex and opex override switch - WR | F11: =InpOverride!F$127 -> 2 | G11: =InpOverride!G$127 -> 3 = Override, 2 = Model calculated, 1 = Inactive
E12: =InpOverride!E$97 -> Capital Expenditure (excluding Atypical expenditure) - Total gross capital expenditure - Water resources | F12: =InpOverride!F$97 -> 0 | G12: =InpOverride!G$97 -> £m | H12: =InpOverride!H$97 -> 8.809 | I12: =InpOverride!I$97 -> 0 | J12: =InpOverride!J$97 -> 0 | K12: =InpOverride!K$97 -> 2.503 | L12: =InpOverride!L$97 -> 2.61 | M12: =InpOverride!M$97 -> 1.33 | N12: =InpOverride!N$97 -> 1.194 | O12: =InpOverride!O$97 -> 1.172 | P12: =InpOverride!P$97 -> 0
E13: =InpOverride!E$96 -> Operating expenditure (excluding Atypical expenditure) - Total operating expenditure - Water resources | F13: =InpOverride!F$96 -> 0 | G13: =InpOverride!G$96 -> £m | H13: =InpOverride!H$96 -> 16.432 | I13: =InpOverride!I$96 -> 0 | J13: =InpOverride!J$96 -> 0 | K13: =InpOverride!K$96 -> 3.515 | L13: =InpOverride!L$96 -> 3.231 | M13: =InpOverride!M$96 -> 3.184 | N13: =InpOverride!N$96 -> 3.16 | O13: =InpOverride!O$96 -> 3.342 | P13: =InpOverride!P$96 -> 0
E15: ='Profiling Calcs'!E$103 -> Capex WR for cost share model - calculated | F15: ='Profiling Calcs'!F$103 -> 0 | G15: ='Profiling Calcs'!G$103 -> % | H15: ='Profiling Calcs'!H$103 -> 0.3489956816 | I15: ='Profiling Calcs'!I$103 -> 0 | J15: ='Profiling Calcs'!J$103 -> 0 | K15: ='Profiling Calcs'!K$103 -> 0.09916405848 | L15: ='Profiling Calcs'!L$103 -> 0.1034031932 | M15: ='Profiling Calcs'!M$103 -> 0.05269204865 | N15: ='Profiling Calcs'!N$103 -> 0.04730398954 | O15: ='Profiling Calcs'!O$103 -> 0.04643239174 | P15: ='Profiling Calcs'!P$103 -> 0
E16: ='Profiling Calcs'!E$104 -> Opex WR for cost share model - calculated | F16: ='Profiling Calcs'!F$104 -> 0 | G16: ='Profiling Calcs'!G$104 -> % | H16: ='Profiling Calcs'!H$104 -> 0.6510043184 | I16: ='Profiling Calcs'!I$104 -> 0 | J16: ='Profiling Calcs'!J$104 -> 0 | K16: ='Profiling Calcs'!K$104 -> 0.1392575571 | L16: ='Profiling Calcs'!L$104 -> 0.1280060219 | M16: ='Profiling Calcs'!M$104 -> 0.1261439721 | N16: ='Profiling Calcs'!N$104 -> 0.1251931381 | O16: ='Profiling Calcs'!O$104 -> 0.132403629 | P16: ='Profiling Calcs'!P$104 -> 0
E18: =InpOverride!E$128 -> Override capex - water resources | F18: =InpOverride!F$128 -> 0 | G18: =InpOverride!G$128 -> £m | H18: =InpOverride!H$128 -> 0 | I18: =InpOverride!I$128 -> 0 | J18: =InpOverride!J$128 -> 0 | K18: =InpOverride!K$128 -> 0 | L18: =InpOverride!L$128 -> 0 | M18: =InpOverride!M$128 -> 0 | N18: =InpOverride!N$128 -> 0 | O18: =InpOverride!O$128 -> 0 | P18: =InpOverride!P$128 -> 0
E19: =InpOverride!E$129 -> Override opex - water resources | F19: =InpOverride!F$129 -> 0 | G19: =InpOverride!G$129 -> £m | H19: =InpOverride!H$129 -> 0 | I19: =InpOverride!I$129 -> 0 | J19: =InpOverride!J$129 -> 0 | K19: =InpOverride!K$129 -> 0 | L19: =InpOverride!L$129 -> 0 | M19: =InpOverride!M$129 -> 0 | N19: =InpOverride!N$129 -> 0 | O19: =InpOverride!O$129 -> 0 | P19: =InpOverride!P$129 -> 0
E21: Water resources - Capex - Active | G21: £m | H21: =SUM(J21:P21) -> 0.3489956816 | J21: =CHOOSE($F$11,J12,J15,J18) -> 0 | K21: =CHOOSE($F$11,K12,K15,K18) -> 0.09916405848 | L21: 0.1034031932 | M21: 0.05269204865 | N21: 0.04730398954 | O21: 0.04643239174 | P21: 0
E22: Water resources - Opex - Active | G22: £m | H22: =SUM(J22:P22) -> 0.6510043184 | J22: =CHOOSE($F$11,J13,J16,J19) -> 0 | K22: 0.1392575571 | L22: 0.1280060219 | M22: 0.1261439721 | N22: 0.1251931381 | O22: 0.132403629 | P22: 0
E24: =InpOverride!E$31 -> WR - Other costs not subject to cost sharing excl PDR | F24: =InpOverride!F$31 -> 0 | G24: =InpOverride!G$31 -> £m | H24: =InpOverride!H$31 -> 7.263947518 | I24: =InpOverride!I$31 -> 0 | J24: =InpOverride!J$31 -> 0 | K24: =InpOverride!K$31 -> 1.452789504 | L24: =InpOverride!L$31 -> 1.452789504 | M24: =InpOverride!M$31 -> 1.452789504 | N24: =InpOverride!N$31 -> 1.452789504 | O24: =InpOverride!O$31 -> 1.452789504 | P24: =InpOverride!P$31 -> 0
E25: Water resources - Other costs not subject to cost sharing excl PDR | F25: =H$24 -> 7.263947518 | G25: £m
E26: ='Ex-ante allowances'!E$56 -> Water resources - total cost allowance including ex-ante cost sharing - active | F26: ='Ex-ante allowances'!F$56 -> 18.19147085 | G26: ='Ex-ante allowances'!G$56 -> £m
E27: Water resources - total cost allowance including ex-ante cost sharing and third party costs | F27: =SUM(F25:F26) -> 25.45541837 | G27: £m
E29: =E$27 -> Water resources - total cost allowance including ex-ante cost sharing and third party costs | F29: =F$27 -> 25.45541837 | G29: £m
E30: =E$21 -> Water resources - Capex - Active | F30: 0 | G30: £m | H30: 0.3489956816 | I30: 0 | J30: 0 | K30: =K$21 -> 0.09916405848 | L30: =L$21 -> 0.1034031932 | M30: 0.05269204865 | N30: 0.04730398954 | O30: 0.04643239174 | P30: 0
E31: =E$22 -> Water resources - Opex - Active | F31: =F$22 -> 0 | G31: £m | H31: 0.6510043184 | I31: 0 | J31: 0 | K31: 0.1392575571 | L31: 0.1280060219 | M31: 0.1261439721 | N31: 0.1251931381 | O31: 0.132403629 | P31: 0
E32: =Time!E$54 -> Forecast Period Flag | F32: =Time!F$54 -> 0 | G32: =Time!G$54 -> flag | H32: =Time!H$54 -> 5 | I32: =Time!I$54 -> 0 | J32: =Time!J$54 -> 0 | K32: =Time!K$54 -> 1 | L32: =Time!L$54 -> 1 | M32: =Time!M$54 -> 1 | N32: =Time!N$54 -> 1 | O32: =Time!O$54 -> 1 | P32: =Time!P$54 -> 0
E33: Water resources - profiled total capex | G33: £m | H33: =SUM(J33:P33) -> 8.883831084 | J33: =($F$29 * J30 / SUM($K$30:$O$31)) * J$32 -> 0 | K33: 2.524262595 | L33: 2.632171544 | M33: 1.341298143 | N33: 1.204142844 | O33: 1.181955958 | P33: 0
E34: Water resources - profiled total opex | G34: £m | H34: 16.57158728 | J34: =($F$29 * J31 / SUM($K$30:$O$31)) * J$32 -> 0 | K34: =($F$29 * K31 / SUM($K$30:$O$31)) * K$32 -> 3.544859378 | L34: 3.258446842 | M34: 3.211047584 | N34: 3.186843708 | O34: 3.37038977 | P34: 0
E36: =E$33 -> Water resources - profiled total capex | F36: 0 | G36: £m | H36: 8.883831084 | I36: 0 | J36: 0 | K36: 2.524262595 | L36: 2.632171544 | M36: 1.341298143 | N36: 1.204142844 | O36: 1.181955958 | P36: 0
E37: =E$34 -> Water resources - profiled total opex | F37: =F$34 -> 0 | G37: £m | H37: 16.57158728 | I37: 0 | J37: 0 | K37: 3.544859378 | L37: 3.258446842 | M37: 3.211047584 | N37: 3.186843708 | O37: 3.37038977 | P37: 0
E38: Water resources - profiled total expenditure | G38: £m | H38: =SUM(J38:P38) -> 25.45541837 | J38: =SUM(J36:J37) -> 0 | K38: =SUM(K36:K37) -> 6.069121973 | L38: 5.890618386 | M38: 4.552345727 | N38: 4.390986552 | O38: 4.552345727 | P38: 0
E39: Water resources - profiled total expenditure including ex-antre cost sharing | F39: =SUM(K33:O34) -> 25.45541837 | G39: £m
E41: =E$27 -> Water resources - total cost allowance including ex-ante cost sharing and third party costs | F41: =F$27 -> 25.45541837 | G41: =G$27 -> £m
E42: =E$39 -> Water resources - profiled total expenditure including ex-antre cost sharing | F42: =F$39 -> 25.45541837 | G42: £m
E43: Water resources - profiled total expenditure check | F43: =IF(ABS(F41-F42) > ChK_Tol, 1, 0) -> 0 | G43: check
B45: Water Network
E46: =InpOverride!E$103 -> Capital Expenditure (excluding Atypical expenditure) - Total gross capital expenditure - Raw water distribution | F46: =InpOverride!F$103 -> 0 | G46: =InpOverride!G$103 -> £m | H46: =InpOverride!H$103 -> 3.207089569 | I46: =InpOverride!I$103 -> 0 | J46: =InpOverride!J$103 -> 0 | K46: =InpOverride!K$103 -> 0.5430764572 | L46: =InpOverride!L$103 -> 0.791208172 | M46: =InpOverride!M$103 -> 0.7909150145 | N46: =InpOverride!N$103 -> 0.5427947201 | O46: =InpOverride!O$103 -> 0.5390952052 | P46: =InpOverride!P$103 -> 0
E47: =InpOverride!E$104 -> Total gross capital expenditure - Water treatment | F47: =InpOverride!F$104 -> 0 | G47: =InpOverride!G$104 -> £m | H47: =InpOverride!H$104 -> 6.001047713 | I47: =InpOverride!I$104 -> 0 | J47: =InpOverride!J$104 -> 0 | K47: =InpOverride!K$104 -> 1.049405801 | L47: =InpOverride!L$104 -> 1.047462409 | M47: =InpOverride!M$104 -> 1.3092637 | N47: =InpOverride!N$104 -> 1.31071302 | O47: =InpOverride!O$104 -> 1.284202783 | P47: =InpOverride!P$104 -> 0
E48: =InpOverride!E$105 -> Total gross capital expenditure - Treated water distribution | F48: =InpOverride!F$105 -> 0 | G48: =InpOverride!G$105 -> £m | H48: =InpOverride!H$105 -> 26.63186272 | I48: =InpOverride!I$105 -> 0 | J48: =InpOverride!J$105 -> 0 | K48: =InpOverride!K$105 -> 5.069517742 | L48: =InpOverride!L$105 -> 5.178329419 | M48: =InpOverride!M$105 -> 5.495821286 | N48: =InpOverride!N$105 -> 5.45649226 | O48: =InpOverride!O$105 -> 5.431702012 | P48: =InpOverride!P$105 -> 0
E49: Total gross capital expenditure - Water Network | G49: £m | H49: =SUM(J49:P49) -> 35.84 | J49: =SUM(J46:J48) -> 0 | K49: =SUM(K46:K48) -> 6.662 | L49: =SUM(L46:L48) -> 7.017 | M49: =SUM(M46:M48) -> 7.596 | N49: =SUM(N46:N48) -> 7.31 | O49: =SUM(O46:O48) -> 7.255 | P49: =SUM(P46:P48) -> 0
E51: =InpOverride!E$100 -> Operating expenditure (excluding Atypical expenditure) - Total operating expenditure - Raw water distribution | F51: =InpOverride!F$100 -> 0 | G51: =InpOverride!G$100 -> £m | H51: =InpOverride!H$100 -> 2.642943213 | I51: =InpOverride!I$100 -> 0 | J51: =InpOverride!J$100 -> 0 | K51: =InpOverride!K$100 -> 0.5476956185 | L51: =InpOverride!L$100 -> 0.5276790169 | M51: =InpOverride!M$100 -> 0.52288767 | N51: =InpOverride!N$100 -> 0.5180217135 | O51: =InpOverride!O$100 -> 0.5266591942 | P51: =InpOverride!P$100 -> 0
E52: =InpOverride!E$101 -> Total operating expenditure - Water treatment | F52: =InpOverride!F$101 -> 0 | G52: =InpOverride!G$101 -> £m | H52: =InpOverride!H$101 -> 31.90196474 | I52: =InpOverride!I$101 -> 0 | J52: =InpOverride!J$101 -> 0 | K52: =InpOverride!K$101 -> 6.442389974 | L52: =InpOverride!L$101 -> 6.345229615 | M52: =InpOverride!M$101 -> 6.401280069 | N52: =InpOverride!N$101 -> 6.347488249 | O52: =InpOverride!O$101 -> 6.365576833 | P52: =InpOverride!P$101 -> 0
E53: =InpOverride!E$102 -> Total operating expenditure - Treated water distribution | F53: =InpOverride!F$102 -> 0 | G53: =InpOverride!G$102 -> £m | H53: =InpOverride!H$102 -> 40.17209205 | I53: =InpOverride!I$102 -> 0 | J53: =InpOverride!J$102 -> 0 | K53: =InpOverride!K$102 -> 8.357914407 | L53: =InpOverride!L$102 -> 7.989091368 | M53: =InpOverride!M$102 -> 7.926832261 | N53: =InpOverride!N$102 -> 7.858490037 | O53: =InpOverride!O$102 -> 8.039763973 | P53: =InpOverride!P$102 -> 0
E54: Total gross operating expenditure - Water Network | G54: £m | H54: =SUM(J54:P54) -> 74.717 | J54: =SUM(J51:J53) -> 0 | K54: =SUM(K51:K53) -> 15.348 | L54: =SUM(L51:L53) -> 14.862 | M54: =SUM(M51:M53) -> 14.851 | N54: =SUM(N51:N53) -> 14.724 | O54: =SUM(O51:O53) -> 14.932 | P54: =SUM(P51:P53) -> 0
E56: =InpOverride!E$131 -> Allowed capex and opex override switch - WN | F56: =InpOverride!F$131 -> 2 | G56: =InpOverride!G$131 -> 3 = Override, 2 = Model calculated, 1 = Inactive
E57: =E$49 -> Total gross capital expenditure - Water Network | F57: =F$49 -> 0 | G57: £m | H57: 35.84 | I57: 0 | J57: 0 | K57: 6.662 | L57: 7.017 | M57: 7.596 | N57: 7.31 | O57: 7.255 | P57: 0
E58: =E$54 -> Total gross operating expenditure - Water Network | F58: =F$54 -> 0 | G58: £m | H58: 74.717 | I58: 0 | J58: 0 | K58: 15.348 | L58: 14.862 | M58: 14.851 | N58: 14.724 | O58: 14.932 | P58: 0
E60: ='Profiling Calcs'!E$110 -> Capex WN for cost share model - calculated | F60: ='Profiling Calcs'!F$110 -> 0 | G60: ='Profiling Calcs'!G$110 -> % | H60: ='Profiling Calcs'!H$110 -> 0.324176669 | I60: ='Profiling Calcs'!I$110 -> 0 | J60: ='Profiling Calcs'!J$110 -> 0 | K60: ='Profiling Calcs'!K$110 -> 0.06025850919 | L60: ='Profiling Calcs'!L$110 -> 0.06346952251 | M60: ='Profiling Calcs'!M$110 -> 0.06870664001 | N60: ='Profiling Calcs'!N$110 -> 0.06611973914 | O60: ='Profiling Calcs'!O$110 -> 0.0656222582 | P60: ='Profiling Calcs'!P$110 -> 0
E61: ='Profiling Calcs'!E$111 -> Opex WN for cost share model - calculated | F61: ='Profiling Calcs'!F$111 -> 0 | G61: ='Profiling Calcs'!G$111 -> % | H61: ='Profiling Calcs'!H$111 -> 0.675823331 | I61: ='Profiling Calcs'!I$111 -> 0 | J61: ='Profiling Calcs'!J$111 -> 0 | K61: ='Profiling Calcs'!K$111 -> 0.1388243169 | L61: ='Profiling Calcs'!L$111 -> 0.1344283944 | M61: ='Profiling Calcs'!M$111 -> 0.1343288982 | N61: ='Profiling Calcs'!N$111 -> 0.1331801695 | O61: ='Profiling Calcs'!O$111 -> 0.135061552 | P61: ='Profiling Calcs'!P$111 -> 0
E63: =InpOverride!E$132 -> Override capex - water network | F63: =InpOverride!F$132 -> 0 | G63: =InpOverride!G$132 -> £m | H63: =InpOverride!H$132 -> 0 | I63: =InpOverride!I$132 -> 0 | J63: =InpOverride!J$132 -> 0 | K63: =InpOverride!K$132 -> 0 | L63: =InpOverride!L$132 -> 0 | M63: =InpOverride!M$132 -> 0 | N63: =InpOverride!N$132 -> 0 | O63: =InpOverride!O$132 -> 0 | P63: =InpOverride!P$132 -> 0
E64: =InpOverride!E$133 -> Override opex - water network | F64: =InpOverride!F$133 -> 0 | G64: =InpOverride!G$133 -> £m | H64: =InpOverride!H$133 -> 0 | I64: =InpOverride!I$133 -> 0 | J64: =InpOverride!J$133 -> 0 | K64: =InpOverride!K$133 -> 0 | L64: =InpOverride!L$133 -> 0 | M64: =InpOverride!M$133 -> 0 | N64: =InpOverride!N$133 -> 0 | O64: =InpOverride!O$133 -> 0 | P64: =InpOverride!P$133 -> 0
E66: Water network - Capex - Active | G66: £m | H66: =SUM(J66:P66) -> 0.324176669 | J66: =CHOOSE($F$56,J57,J60,J63) -> 0 | K66: =CHOOSE($F$56,K57,K60,K63) -> 0.06025850919 | L66: 0.06346952251 | M66: 0.06870664001 | N66: 0.06611973914 | O66: 0.0656222582 | P66: 0
E67: Water network - Opex - Active | G67: £m | H67: =SUM(J67:P67) -> 0.675823331 | J67: =CHOOSE($F$56,J58,J61,J64) -> 0 | K67: 0.1388243169 | L67: 0.1344283944 | M67: 0.1343288982 | N67: 0.1331801695 | O67: 0.135061552 | P67: 0
E69: =InpOverride!E$41 -> WN - Other costs not subject to cost sharing excl PDR | F69: =InpOverride!F$41 -> 0 | G69: =InpOverride!G$41 -> £m | H69: =InpOverride!H$41 -> 8.747985589 | I69: =InpOverride!I$41 -> 0 | J69: =InpOverride!J$41 -> 0 | K69: =InpOverride!K$41 -> 1.749597118 | L69: =InpOverride!L$41 -> 1.749597118 | M69: =InpOverride!M$41 -> 1.749597118 | N69: =InpOverride!N$41 -> 1.749597118 | O69: =InpOverride!O$41 -> 1.749597118 | P69: =InpOverride!P$41 -> 0
E70: Water network - Other costs not subject to cost sharing excl PDR | F70: =H$69 -> 8.747985589 | G70: £m
E71: ='Ex-ante allowances'!E$116 -> Water network - total cost allowance including ex-ante cost sharing - active | F71: ='Ex-ante allowances'!F$116 -> 101.9772722 | G71: ='Ex-ante allowances'!G$116 -> £m
E72: Water network - total cost allowance including ex-ante cost sharing and third party costs | F72: =SUM(F70:F71) -> 110.7252578 | G72: £m
E74: =E$72 -> Water network - total cost allowance including ex-ante cost sharing and third party costs | F74: =F$72 -> 110.7252578 | G74: £m
E75: =E$66 -> Water network - Capex - Active | F75: =F$66 -> 0 | G75: £m | H75: 0.324176669 | I75: 0 | J75: 0 | K75: =K$66 -> 0.06025850919 | L75: =L$66 -> 0.06346952251 | M75: 0.06870664001 | N75: 0.06611973914 | O75: 0.0656222582 | P75: 0
E76: =E$67 -> Water network - Opex - Active | F76: =F$67 -> 0 | G76: £m | H76: 0.675823331 | I76: 0 | J76: 0 | K76: 0.1388243169 | L76: 0.1344283944 | M76: 0.1343288982 | N76: 0.1331801695 | O76: 0.135061552 | P76: 0
E77: =Time!E$54 -> Forecast Period Flag | F77: =Time!F$54 -> 0 | G77: =Time!G$54 -> flag | H77: =Time!H$54 -> 5 | I77: =Time!I$54 -> 0 | J77: =Time!J$54 -> 0 | K77: =Time!K$54 -> 1 | L77: =Time!L$54 -> 1 | M77: =Time!M$54 -> 1 | N77: =Time!N$54 -> 1 | O77: =Time!O$54 -> 1 | P77: =Time!P$54 -> 0
E78: Water network - profiled total capex | G78: £m | H78: =SUM(J78:P78) -> 35.89454524 | J78: =($F74 * J75 / SUM($K$75:$O$76)) * J$77 -> 0 | K78: =($F74 * K75 / SUM($K$75:$O$76)) * K$77 -> 6.672138962 | L78: 7.02767924 | M78: 7.607560426 | N78: 7.321125159 | O78: 7.266041454 | P78: 0
E79: Water network - profiled total opex | G79: £m | H79: 74.83071252 | J79: =($F74 * J76 / SUM($K$75:$O$76)) * J$77 -> 0 | K79: =($F74 * K76 / SUM($K$75:$O$76)) * K$77 -> 15.37135827 | L79: =($F74 * L76 / SUM($K$75:$O$76)) * L$77 -> 14.88461862 | M79: 14.87360188 | N79: 14.7464086 | O79: 14.95472515 | P79: 0
E81: =E$78 -> Water network - profiled total capex | F81: =F$78 -> 0 | G81: £m | H81: 35.89454524 | I81: 0 | J81: 0 | K81: =K$78 -> 6.672138962 | L81: 7.02767924 | M81: 7.607560426 | N81: 7.321125159 | O81: 7.266041454 | P81: 0
E82: =E$79 -> Water network - profiled total opex | F82: =F$79 -> 0 | G82: £m | H82: 74.83071252 | I82: 0 | J82: 0 | K82: 15.37135827 | L82: 14.88461862 | M82: 14.87360188 | N82: 14.7464086 | O82: 14.95472515 | P82: 0
E83: Water network - profiled total expenditure | G83: £m | H83: =SUM(J83:P83) -> 110.7252578 | J83: =SUM(J81:J82) -> 0 | K83: =SUM(K81:K82) -> 22.04349723 | L83: =SUM(L81:L82) -> 21.91229786 | M83: =SUM(M81:M82) -> 22.48116231 | N83: =SUM(N81:N82) -> 22.06753376 | O83: =SUM(O81:O82) -> 22.22076661 | P83: =SUM(P81:P82) -> 0
E84: Water network - profiled total expenditure including ex-antre cost sharing | F84: =H83 -> 110.7252578 | G84: £m
E86: =E$72 -> Water network - total cost allowance including ex-ante cost sharing and third party costs | F86: =F$72 -> 110.7252578 | G86: £m
E87: =E$84 -> Water network - profiled total expenditure including ex-antre cost sharing | F87: =F$84 -> 110.7252578 | G87: £m
E88: Water network - profiled total expenditure check | F88: =IF(ABS(F86-F87) > ChK_Tol, 1, 0) -> 0 | G88: check
B90: Wastewater Network
E92: =InpOverride!E$110 -> Capital expenditure - Total gross capital expenditure - Sewage collection | F92: =InpOverride!F$110 -> 0 | G92: =InpOverride!G$110 -> £m | H92: =InpOverride!H$110 -> 1.940105206 | I92: =InpOverride!I$110 -> 0 | J92: =InpOverride!J$110 -> 0 | K92: =InpOverride!K$110 -> 0.3854387922 | L92: =InpOverride!L$110 -> 0.3869520472 | M92: =InpOverride!M$110 -> 0.3886118306 | N92: =InpOverride!N$110 -> 0.3875089005 | O92: =InpOverride!O$110 -> 0.3915936359 | P92: =InpOverride!P$110 -> 0
E93: =InpOverride!E$111 -> Capital expenditure - Total gross capital expenditure - Sewage treatment | F93: =InpOverride!F$111 -> 0 | G93: =InpOverride!G$111 -> £m | H93: =InpOverride!H$111 -> 7.684894794 | I93: =InpOverride!I$111 -> 0 | J93: =InpOverride!J$111 -> 0 | K93: =InpOverride!K$111 -> 1.009561208 | L93: =InpOverride!L$111 -> 1.331047953 | M93: =InpOverride!M$111 -> 1.556388169 | N93: =InpOverride!N$111 -> 2.683491099 | O93: =InpOverride!O$111 -> 1.104406364 | P93: =InpOverride!P$111 -> 0
E94: Total gross capital expenditure - Wastewater network | G94: £m | H94: =SUM(J94:P94) -> 9.625 | J94: =SUM(J92:J93) -> 0 | K94: 1.395 | L94: 1.718 | M94: 1.945 | N94: 3.071 | O94: 1.496 | P94: 0
E96: =InpOverride!E$108 -> Operating expenditure - Total operating expenditure - Sewage collection | F96: =InpOverride!F$108 -> 0 | G96: =InpOverride!G$108 -> £m | H96: =InpOverride!H$108 -> 4.192222574 | I96: =InpOverride!I$108 -> 0 | J96: =InpOverride!J$108 -> 0 | K96: =InpOverride!K$108 -> 0.8491402434 | L96: =InpOverride!L$108 -> 0.8434212814 | M96: =InpOverride!M$108 -> 0.8379963647 | N96: =InpOverride!N$108 -> 0.8313998588 | O96: =InpOverride!O$108 -> 0.8302648252 | P96: =InpOverride!P$108 -> 0
E97: =InpOverride!E$109 -> Operating expenditure - Total operating expenditure - Sewage treatment | F97: =InpOverride!F$109 -> 0 | G97: =InpOverride!G$109 -> £m | H97: =InpOverride!H$109 -> 8.094777426 | I97: =InpOverride!I$109 -> 0 | J97: =InpOverride!J$109 -> 0 | K97: =InpOverride!K$109 -> 1.620859757 | L97: =InpOverride!L$109 -> 1.635578719 | M97: =InpOverride!M$109 -> 1.615003635 | N97: =InpOverride!N$109 -> 1.609600141 | O97: =InpOverride!O$109 -> 1.613735175 | P97: =InpOverride!P$109 -> 0
E98: Total gross operating expenditure - Wastewater network | G98: £m | H98: =SUM(J98:P98) -> 12.287 | J98: =SUM(J96:J97) -> 0 | K98: 2.47 | L98: 2.479 | M98: 2.453 | N98: 2.441 | O98: 2.444 | P98: 0
E100: =InpOverride!E$135 -> Allowed capex and opex override switch - WWN | F100: =InpOverride!F$135 -> 2 | G100: =InpOverride!G$135 -> 3 = Override, 2 = Model calculated, 1 = Inactive
E101: =E$94 -> Total gross capital expenditure - Wastewater network | F101: =F$94 -> 0 | G101: £m | H101: 9.625 | I101: 0 | J101: 0 | K101: 1.395 | L101: 1.718 | M101: 1.945 | N101: 3.071 | O101: 1.496 | P101: 0
E102: =E$98 -> Total gross operating expenditure - Wastewater network | F102: =F$98 -> 0 | G102: £m | H102: 12.287 | I102: 0 | J102: 0 | K102: 2.47 | L102: 2.479 | M102: 2.453 | N102: 2.441 | O102: 2.444 | P102: 0
E104: ='Profiling Calcs'!E$117 -> Capex WWN for cost share model - calculated | F104: ='Profiling Calcs'!F$117 -> 0 | G104: ='Profiling Calcs'!G$117 -> % | H104: ='Profiling Calcs'!H$117 -> 0.4392570281 | I104: ='Profiling Calcs'!I$117 -> 0 | J104: ='Profiling Calcs'!J$117 -> 0 | K104: ='Profiling Calcs'!K$117 -> 0.06366374589 | L104: ='Profiling Calcs'!L$117 -> 0.0784045272 | M104: ='Profiling Calcs'!M$117 -> 0.0887641475 | N104: ='Profiling Calcs'!N$117 -> 0.1401515152 | O104: ='Profiling Calcs'!O$117 -> 0.06827309237 | P104: ='Profiling Calcs'!P$117 -> 0
E105: ='Profiling Calcs'!E$118 -> Opex WWN for cost share model - calculated | F105: ='Profiling Calcs'!F$118 -> 0 | G105: ='Profiling Calcs'!G$118 -> % | H105: ='Profiling Calcs'!H$118 -> 0.5607429719 | I105: ='Profiling Calcs'!I$118 -> 0 | J105: ='Profiling Calcs'!J$118 -> 0 | K105: ='Profiling Calcs'!K$118 -> 0.1127236218 | L105: ='Profiling Calcs'!L$118 -> 0.1131343556 | M105: ='Profiling Calcs'!M$118 -> 0.1119477912 | N105: ='Profiling Calcs'!N$118 -> 0.111400146 | O105: ='Profiling Calcs'!O$118 -> 0.1115370573 | P105: ='Profiling Calcs'!P$118 -> 0
E107: =InpOverride!E$136 -> Override capex - Wastewater network | F107: =InpOverride!F$136 -> 0 | G107: =InpOverride!G$136 -> £m | H107: =InpOverride!H$136 -> 0 | I107: =InpOverride!I$136 -> 0 | J107: =InpOverride!J$136 -> 0 | K107: =InpOverride!K$136 -> 0 | L107: =InpOverride!L$136 -> 0 | M107: =InpOverride!M$136 -> 0 | N107: =InpOverride!N$136 -> 0 | O107: =InpOverride!O$136 -> 0 | P107: =InpOverride!P$136 -> 0
E108: =InpOverride!E$137 -> Override opex - Wastewater network | F108: =InpOverride!F$137 -> 0 | G108: =InpOverride!G$137 -> £m | H108: =InpOverride!H$137 -> 0 | I108: =InpOverride!I$137 -> 0 | J108: =InpOverride!J$137 -> 0 | K108: =InpOverride!K$137 -> 0 | L108: =InpOverride!L$137 -> 0 | M108: =InpOverride!M$137 -> 0 | N108: =InpOverride!N$137 -> 0 | O108: =InpOverride!O$137 -> 0 | P108: =InpOverride!P$137 -> 0
E110: Wastewater network - Capex - Active | G110: £m | H110: =SUM(J110:P110) -> 0.4392570281 | J110: =CHOOSE($F$100,J101,J104,J107) -> 0 | K110: =CHOOSE($F$100,K101,K104,K107) -> 0.06366374589 | L110: 0.0784045272 | M110: 0.0887641475 | N110: 0.1401515152 | O110: 0.06827309237 | P110: 0
E111: Wastewater network - Opex - Active | G111: £m | H111: =SUM(J111:P111) -> 0.5607429719 | J111: =CHOOSE($F$100,J102,J105,J108) -> 0 | K111: 0.1127236218 | L111: 0.1131343556 | M111: 0.1119477912 | N111: 0.111400146 | O111: 0.1115370573 | P111: 0
E113: =InpOverride!E54 -> WWN - Other costs not subject to cost sharing excl PDR | F113: =InpOverride!F54 -> 0 | G113: =InpOverride!G54 -> £m | H113: =InpOverride!H54 -> 0 | I113: =InpOverride!I54 -> 0 | J113: =InpOverride!J54 -> 0 | K113: =InpOverride!K54 -> 0 | L113: =InpOverride!L54 -> 0 | M113: =InpOverride!M54 -> 0 | N113: =InpOverride!N54 -> 0 | O113: =InpOverride!O54 -> 0 | P113: =InpOverride!P54 -> 0
E114: Water network - Other costs not subject to cost sharing excl PDR | F114: =H$113 -> 0 | G114: £m
E115: ='Ex-ante allowances'!E$168 -> Wastewater Network - total cost allowance including ex-ante cost sharing - active | F115: ='Ex-ante allowances'!F$168 -> 22.27801723 | G115: ='Ex-ante allowances'!G$168 -> £m
E116: Wastewater network - total cost allowance including ex-ante cost sharing and third party costs | F116: =SUM(F114:F115) -> 22.27801723 | G116: £m
E118: =E$116 -> Wastewater network - total cost allowance including ex-ante cost sharing and third party costs | F118: =F$116 -> 22.27801723 | G118: =G$116 -> £m
E119: =E$110 -> Wastewater network - Capex - Active | F119: =F$110 -> 0 | G119: £m | H119: 0.4392570281 | I119: 0 | J119: 0 | K119: 0.06366374589 | L119: 0.0784045272 | M119: 0.0887641475 | N119: 0.1401515152 | O119: 0.06827309237 | P119: 0
E120: =E$111 -> Wastewater network - Opex - Active | F120: =F$111 -> 0 | G120: £m | H120: 0.5607429719 | I120: 0 | J120: 0 | K120: 0.1127236218 | L120: 0.1131343556 | M120: 0.1119477912 | N120: 0.111400146 | O120: 0.1115370573 | P120: 0
E121: =Time!E$54 -> Forecast Period Flag | F121: =Time!F$54 -> 0 | G121: =Time!G$54 -> flag | H121: =Time!H$54 -> 5 | I121: =Time!I$54 -> 0 | J121: =Time!J$54 -> 0 | K121: =Time!K$54 -> 1 | L121: =Time!L$54 -> 1 | M121: =Time!M$54 -> 1 | N121: =Time!N$54 -> 1 | O121: =Time!O$54 -> 1 | P121: =Time!P$54 -> 0
E122: Wastewater network - profiled total capex | G122: £m | H122: =SUM(J122:P122) -> 9.78577564 | J122: =IF($F$118 = 0, 0,($F118 * J119 / SUM($K$119:$O$120)) * J$121) -> 0 | K122: =IF($F$118 = 0, 0,($F118 * K119 / SUM($K$119:$O$120)) * K$121) -> 1.418302028 | L122: =IF($F$118 = 0, 0,($F118 * L119 / SUM($K$119:$O$120)) * L$121) -> 1.746697408 | M122: 1.977489207 | N122: 3.122297869 | O122: 1.520989128 | P122: 0
E123: Wastewater network - profiled total opex | G123: £m | H123: =SUM(J123:P123) -> 12.49224159 | J123: =IF($F$118 = 0, 0,($F118 * J120 / SUM($K$119:$O$120)) * J$121) -> 0 | K123: =IF($F$118 = 0, 0,($F118 * K120 / SUM($K$119:$O$120)) * K$121) -> 2.511258788 | L123: =IF($F$118 = 0, 0,($F118 * L120 / SUM($K$119:$O$120)) * L$121) -> 2.520409123 | M123: 2.49397482 | N123: 2.481774373 | O123: 2.484824485 | P123: 0
E125: =E$122 -> Wastewater network - profiled total capex | F125: 0 | G125: £m | H125: =H$122 -> 9.78577564 | I125: 0 | J125: 0 | K125: =K$122 -> 1.418302028 | L125: =L$122 -> 1.746697408 | M125: 1.977489207 | N125: 3.122297869 | O125: 1.520989128 | P125: 0
E126: =E$123 -> Wastewater network - profiled total opex | F126: 0 | G126: £m | H126: 12.49224159 | I126: 0 | J126: 0 | K126: =K$123 -> 2.511258788 | L126: =L$123 -> 2.520409123 | M126: 2.49397482 | N126: 2.481774373 | O126: 2.484824485 | P126: 0
E127: Wastewater network - profiled total expenditure | G127: £m | H127: =SUM(J127:P127) -> 22.27801723 | J127: =SUM(J125:J126) -> 0 | K127: =SUM(K125:K126) -> 3.929560815 | L127: =SUM(L125:L126) -> 4.267106531 | M127: =SUM(M125:M126) -> 4.471464027 | N127: =SUM(N125:N126) -> 5.604072242 | O127: =SUM(O125:O126) -> 4.005813613 | P127: =SUM(P125:P126) -> 0
E128: Wastewater network - profiled total expenditure including ex-antre cost sharing | F128: =H127 -> 22.27801723 | G128: £m
E130: =E$116 -> Wastewater network - total cost allowance including ex-ante cost sharing and third party costs | F130: =F$116 -> 22.27801723 | G130: =G$116 -> £m
E131: =E$128 -> Wastewater network - profiled total expenditure including ex-antre cost sharing | F131: =F$128 -> 22.27801723 | G131: =G$128 -> £m
E132: Wastewater network - profiled total expenditure check | F132: =IF(ABS(F130-F131) > ChK_Tol, 1, 0) -> 0 | G132: check
B134: Bioresources
E135: =InpOverride!E$117 -> Capital expenditure - Total gross capital expenditure - Sludge transport | F135: =InpOverride!F$117 -> 0 | G135: =InpOverride!G$117 -> £m | H135: =InpOverride!H$117 -> 0 | I135: =InpOverride!I$117 -> 0 | J135: =InpOverride!J$117 -> 0 | K135: =InpOverride!K$117 -> 0 | L135: =InpOverride!L$117 -> 0 | M135: =InpOverride!M$117 -> 0 | N135: =InpOverride!N$117 -> 0 | O135: =InpOverride!O$117 -> 0 | P135: =InpOverride!P$117 -> 0
E136: =InpOverride!E$118 -> Capital expenditure - Total gross capital expenditure - Sludge treatment | F136: =InpOverride!F$118 -> 0 | G136: =InpOverride!G$118 -> £m | H136: =InpOverride!H$118 -> 0 | I136: =InpOverride!I$118 -> 0 | J136: =InpOverride!J$118 -> 0 | K136: =InpOverride!K$118 -> 0 | L136: =InpOverride!L$118 -> 0 | M136: =InpOverride!M$118 -> 0 | N136: =InpOverride!N$118 -> 0 | O136: =InpOverride!O$118 -> 0 | P136: =InpOverride!P$118 -> 0
E137: =InpOverride!E$119 -> Capital expenditure - Total gross capital expenditure - Sludge disposal | F137: =InpOverride!F$119 -> 0 | G137: =InpOverride!G$119 -> £m | H137: =InpOverride!H$119 -> 0 | I137: =InpOverride!I$119 -> 0 | J137: =InpOverride!J$119 -> 0 | K137: =InpOverride!K$119 -> 0 | L137: =InpOverride!L$119 -> 0 | M137: =InpOverride!M$119 -> 0 | N137: =InpOverride!N$119 -> 0 | O137: =InpOverride!O$119 -> 0 | P137: =InpOverride!P$119 -> 0
E138: Total gross capital expenditure - Bioresources | G138: £m | H138: =SUM(J138:P138) -> 0 | J138: =SUM(J135:J137) -> 0 | K138: 0 | L138: 0 | M138: 0 | N138: 0 | O138: 0 | P138: 0
E140: =InpOverride!E$114 -> Operating expenditure - Total operating expenditure - Sludge transport | F140: =InpOverride!F$114 -> 0 | G140: =InpOverride!G$114 -> £m | H140: =InpOverride!H$114 -> 1.97726181 | I140: =InpOverride!I$114 -> 0 | J140: =InpOverride!J$114 -> 0 | K140: =InpOverride!K$114 -> 0.3839350826 | L140: =InpOverride!L$114 -> 0.3983246291 | M140: =InpOverride!M$114 -> 0.3983297975 | N140: =InpOverride!N$114 -> 0.3983347552 | O140: =InpOverride!O$114 -> 0.3983375455 | P140: =InpOverride!P$114 -> 0
E141: =InpOverride!E$115 -> Operating expenditure - Total operating expenditure - Sludge treatment | F141: =InpOverride!F$115 -> 0 | G141: =InpOverride!G$115 -> £m | H141: =InpOverride!H$115 -> 0.9609492693 | I141: =InpOverride!I$115 -> 0 | J141: =InpOverride!J$115 -> 0 | K141: =InpOverride!K$115 -> 0.1852859055 | L141: =InpOverride!L$115 -> 0.1939242446 | M141: =InpOverride!M$115 -> 0.1939180862 | N141: =InpOverride!N$115 -> 0.1939121789 | O141: =InpOverride!O$115 -> 0.1939088542 | P141: =InpOverride!P$115 -> 0
E142: =InpOverride!E$116 -> Operating expenditure - Total operating expenditure - Sludge disposal | F142: =InpOverride!F$116 -> 0 | G142: =InpOverride!G$116 -> £m | H142: =InpOverride!H$116 -> 0.6637889208 | I142: =InpOverride!I$116 -> 0 | J142: =InpOverride!J$116 -> 0 | K142: =InpOverride!K$116 -> 0.1287790119 | L142: =InpOverride!L$116 -> 0.1337511264 | M142: =InpOverride!M$116 -> 0.1337521163 | N142: =InpOverride!N$116 -> 0.1337530659 | O142: =InpOverride!O$116 -> 0.1337536003 | P142: =InpOverride!P$116 -> 0
E143: Total gross operating expenditure - Bioresources | G143: £m | H143: =SUM(J143:P143) -> 3.602 | J143: =SUM(J140:J142) -> 0 | K143: 0.698 | L143: 0.726 | M143: 0.726 | N143: 0.726 | O143: 0.726 | P143: 0
E145: =InpOverride!E$139 -> Allowed capex and opex override switch - BIO | F145: =InpOverride!F$139 -> 2 | G145: =InpOverride!G$139 -> 3 = Override, 2 = Model calculated, 1 = Inactive
E146: =E$138 -> Total gross capital expenditure - Bioresources | F146: 0 | G146: £m | H146: 0 | I146: 0 | J146: 0 | K146: 0 | L146: 0 | M146: 0 | N146: 0 | O146: 0 | P146: 0
E147: =E$143 -> Total gross operating expenditure - Bioresources | F147: 0 | G147: £m | H147: 3.602 | I147: 0 | J147: 0 | K147: 0.698 | L147: 0.726 | M147: 0.726 | N147: 0.726 | O147: 0.726 | P147: 0
E149: ='Profiling Calcs'!E$124 -> Capex BR for cost share model - calculated | F149: ='Profiling Calcs'!F$124 -> 0 | G149: ='Profiling Calcs'!G$124 -> % | H149: ='Profiling Calcs'!H$124 -> 0 | I149: ='Profiling Calcs'!I$124 -> 0 | J149: ='Profiling Calcs'!J$124 -> 0 | K149: ='Profiling Calcs'!K$124 -> 0 | L149: ='Profiling Calcs'!L$124 -> 0 | M149: ='Profiling Calcs'!M$124 -> 0 | N149: ='Profiling Calcs'!N$124 -> 0 | O149: ='Profiling Calcs'!O$124 -> 0 | P149: ='Profiling Calcs'!P$124 -> 0
E150: ='Profiling Calcs'!E$125 -> Opex BR for cost share model - calculated | F150: ='Profiling Calcs'!F$125 -> 0 | G150: ='Profiling Calcs'!G$125 -> % | H150: ='Profiling Calcs'!H$125 -> 1 | I150: ='Profiling Calcs'!I$125 -> 0 | J150: ='Profiling Calcs'!J$125 -> 0 | K150: ='Profiling Calcs'!K$125 -> 0.1937812326 | L150: ='Profiling Calcs'!L$125 -> 0.2015546918 | M150: ='Profiling Calcs'!M$125 -> 0.2015546918 | N150: ='Profiling Calcs'!N$125 -> 0.2015546918 | O150: ='Profiling Calcs'!O$125 -> 0.2015546918 | P150: ='Profiling Calcs'!P$125 -> 0
E152: =InpOverride!E$140 -> Override capex - Bioresources | F152: =InpOverride!F$140 -> 0 | G152: =InpOverride!G$140 -> £m | H152: =InpOverride!H$140 -> 0 | I152: =InpOverride!I$140 -> 0 | J152: =InpOverride!J$140 -> 0 | K152: =InpOverride!K$140 -> 0 | L152: =InpOverride!L$140 -> 0 | M152: =InpOverride!M$140 -> 0 | N152: =InpOverride!N$140 -> 0 | O152: =InpOverride!O$140 -> 0 | P152: =InpOverride!P$140 -> 0
E153: =InpOverride!E$141 -> Override opex - Bioresources | F153: =InpOverride!F$141 -> 0 | G153: =InpOverride!G$141 -> £m | H153: =InpOverride!H$141 -> 0 | I153: =InpOverride!I$141 -> 0 | J153: =InpOverride!J$141 -> 0 | K153: =InpOverride!K$141 -> 0 | L153: =InpOverride!L$141 -> 0 | M153: =InpOverride!M$141 -> 0 | N153: =InpOverride!N$141 -> 0 | O153: =InpOverride!O$141 -> 0 | P153: =InpOverride!P$141 -> 0
E155: Bioresources - Capex - Active | G155: £m | H155: =SUM(J155:P155) -> 0 | J155: =CHOOSE($F$145,J146,J149,J152) -> 0 | K155: =CHOOSE($F$145,K146,K149,K152) -> 0 | L155: =CHOOSE($F$145,L146,L149,L152) -> 0 | M155: 0 | N155: 0 | O155: 0 | P155: 0
E156: Bioresources - Opex - Active | G156: £m | H156: =SUM(J156:P156) -> 1 | J156: =CHOOSE($F$145,J147,J150,J153) -> 0 | K156: =CHOOSE($F$145,K147,K150,K153) -> 0.1937812326 | L156: 0.2015546918 | M156: 0.2015546918 | N156: 0.2015546918 | O156: 0.2015546918 | P156: 0
E158: =InpOverride!E$58 -> Efficient totex for cost sharing bioresources £m | F158: =InpOverride!F$58 -> 0 | G158: =InpOverride!G$58 -> £m | H158: =InpOverride!H$58 -> 5.352987796 | I158: =InpOverride!I$58 -> 0 | J158: =InpOverride!J$58 -> 0 | K158: =InpOverride!K$58 -> 1.070597559 | L158: =InpOverride!L$58 -> 1.070597559 | M158: =InpOverride!M$58 -> 1.070597559 | N158: =InpOverride!N$58 -> 1.070597559 | O158: =InpOverride!O$58 -> 1.070597559 | P158: =InpOverride!P$58 -> 0
E159: =InpOverride!E$65 -> BR - Other costs not subject to cost sharing excl PDR | F159: =InpOverride!F$65 -> 0 | G159: =InpOverride!G$65 -> £m | H159: =InpOverride!H$65 -> 0 | I159: =InpOverride!I$65 -> 0 | J159: =InpOverride!J$65 -> 0 | K159: =InpOverride!K$65 -> 0 | L159: =InpOverride!L$65 -> 0 | M159: =InpOverride!M$65 -> 0 | N159: =InpOverride!N$65 -> 0 | O159: =InpOverride!O$65 -> 0 | P159: =InpOverride!P$65 -> 0
E160: Bioresources - Ofwat Baseline Total Gross Totex including third party costs - Real | G160: £m | H160: =SUM(J160:P160) -> 5.352987796 | J160: =SUM(J158:J159) -> 0 | K160: 1.070597559 | L160: 1.070597559 | M160: 1.070597559 | N160: 1.070597559 | O160: 1.070597559 | P160: 0
E162: =E$160 -> Bioresources - Ofwat Baseline Total Gross Totex including third party costs - Real | F162: =F$160 -> 0 | G162: £m | H162: 5.352987796 | I162: 0 | J162: 0 | K162: 1.070597559 | L162: 1.070597559 | M162: 1.070597559 | N162: 1.070597559 | O162: 1.070597559 | P162: 0
E163: ='Opex Lease Adjustments'!E$82 -> BR operating lease adjustment | F163: ='Opex Lease Adjustments'!F$82 -> 0 | G163: ='Opex Lease Adjustments'!G$82 -> £m | H163: ='Opex Lease Adjustments'!H$82 -> 0 | I163: ='Opex Lease Adjustments'!I$82 -> 0 | J163: ='Opex Lease Adjustments'!J$82 -> 0 | K163: ='Opex Lease Adjustments'!K$82 -> 0 | L163: ='Opex Lease Adjustments'!L$82 -> 0 | M163: ='Opex Lease Adjustments'!M$82 -> 0 | N163: ='Opex Lease Adjustments'!N$82 -> 0 | O163: ='Opex Lease Adjustments'!O$82 -> 0 | P163: ='Opex Lease Adjustments'!P$82 -> 0
E164: Bioresources - Ofwat Baseline Total Gross Totex inc 3rd party and operating lease adj- Real | F164: =SUM($H$162:$H$163) -> 5.352987796 | G164: £m
E166: =E$164 -> Bioresources - Ofwat Baseline Total Gross Totex inc 3rd party and operating lease adj- Real | F166: =F$164 -> 5.352987796 | G166: =G$164 -> £m
E167: =E$155 -> Bioresources - Capex - Active | F167: =F$155 -> 0 | G167: £m | H167: 0 | I167: 0 | J167: =J$155 -> 0 | K167: =K$155 -> 0 | L167: =L$155 -> 0 | M167: 0 | N167: 0 | O167: 0 | P167: 0
E168: =E$156 -> Bioresources - Opex - Active | F168: =F$156 -> 0 | G168: £m | H168: 1 | I168: 0 | J168: =J$156 -> 0 | K168: =K$156 -> 0.1937812326 | L168: 0.2015546918 | M168: 0.2015546918 | N168: 0.2015546918 | O168: 0.2015546918 | P168: 0
E169: =Time!E$54 -> Forecast Period Flag | F169: =Time!F$54 -> 0 | G169: =Time!G$54 -> flag | H169: =Time!H$54 -> 5 | I169: =Time!I$54 -> 0 | J169: =Time!J$54 -> 0 | K169: =Time!K$54 -> 1 | L169: =Time!L$54 -> 1 | M169: =Time!M$54 -> 1 | N169: =Time!N$54 -> 1 | O169: =Time!O$54 -> 1 | P169: =Time!P$54 -> 0
E170: Bioresources - profiled total capex | G170: £m | H170: =SUM(J170:P170) -> 0 | J170: =IF($F$166 = 0, 0,($F166 * J167 / SUM($K$167:$O$168)) * J$169) -> 0 | K170: =IF($F$166 = 0, 0,($F166 * K167 / SUM($K$167:$O$168)) * K$169) -> 0 | L170: =IF($F$166 = 0, 0,($F166 * L167 / SUM($K$167:$O$168)) * L$169) -> 0 | M170: 0 | N170: 0 | O170: 0 | P170: 0
E171: Bioresources - profiled total opex | G171: £m | H171: 5.352987796 | J171: =IF($F$166 = 0, 0,($F166 * J168 / SUM($K$167:$O$168)) * J$169) -> 0 | K171: =IF($F$166 = 0, 0,($F166 * K168 / SUM($K$167:$O$168)) * K$169) -> 1.037308574 | L171: 1.078919806 | M171: 1.078919806 | N171: 1.078919806 | O171: 1.078919806 | P171: 0
E173: =E$170 -> Bioresources - profiled total capex | F173: 0 | G173: £m | H173: 0 | I173: 0 | J173: =J$170 -> 0 | K173: 0 | L173: 0 | M173: 0 | N173: 0 | O173: 0 | P173: 0
E174: =E$171 -> Bioresources - profiled total opex | F174: 0 | G174: £m | H174: 5.352987796 | I174: 0 | J174: =J$171 -> 0 | K174: =K$171 -> 1.037308574 | L174: 1.078919806 | M174: 1.078919806 | N174: 1.078919806 | O174: 1.078919806 | P174: 0
E175: Bioresources - profiled total expenditure | G175: £m | H175: =SUM(J175:P175) -> 5.352987796 | J175: =SUM(J173:J174) -> 0 | K175: =SUM(K173:K174) -> 1.037308574 | L175: =SUM(L173:L174) -> 1.078919806 | M175: =SUM(M173:M174) -> 1.078919806 | N175: =SUM(N173:N174) -> 1.078919806 | O175: =SUM(O173:O174) -> 1.078919806 | P175: =SUM(P173:P174) -> 0
E176: Bioresources - profiled total expenditure including ex-antre cost sharing | F176: =H175 -> 5.352987796 | G176: £m
E178: =E$164 -> Bioresources - Ofwat Baseline Total Gross Totex inc 3rd party and operating lease adj- Real | F178: =F$164 -> 5.352987796 | G178: =G$164 -> £m
E179: =E$176 -> Bioresources - profiled total expenditure including ex-antre cost sharing | F179: =F$176 -> 5.352987796 | G179: =G$176 -> £m
E180: Bioresources - profiled total expenditure check | F180: =IF(ABS(F178-F179) > ChK_Tol, 1, 0) -> 0 | G180: check
B182: Dummy control
E183: =InpOverride!E$143 -> Allowed capex and opex override switch - DMMY | F183: =InpOverride!F$143 -> 0 | G183: =InpOverride!G$143 -> 2 = Override, 1 = Model calculated, 0 = Inactive
E184: =InpOverride!E$123 -> Capital expenditure - Total gross capital expenditure | F184: =InpOverride!F$123 -> 0 | G184: =InpOverride!G$123 -> £m | H184: =InpOverride!H$123 -> 0 | I184: =InpOverride!I$123 -> 0 | J184: =InpOverride!J$123 -> 0 | K184: =InpOverride!K$123 -> 0 | L184: =InpOverride!L$123 -> 0 | M184: =InpOverride!M$123 -> 0 | N184: =InpOverride!N$123 -> 0 | O184: =InpOverride!O$123 -> 0 | P184: =InpOverride!P$123 -> 0
E185: =InpOverride!E$122 -> Operating expenditure - Total operating expenditure | F185: =InpOverride!F$122 -> 0 | G185: =InpOverride!G$122 -> £m | H185: =InpOverride!H$122 -> 0 | I185: =InpOverride!I$122 -> 0 | J185: =InpOverride!J$122 -> 0 | K185: =InpOverride!K$122 -> 0 | L185: =InpOverride!L$122 -> 0 | M185: =InpOverride!M$122 -> 0 | N185: =InpOverride!N$122 -> 0 | O185: =InpOverride!O$122 -> 0 | P185: =InpOverride!P$122 -> 0
E187: =InpOverride!E$144 -> Override capex - Dummy | F187: =InpOverride!F$144 -> 0 | G187: =InpOverride!G$144 -> £m | H187: =InpOverride!H$144 -> 0 | I187: =InpOverride!I$144 -> 0 | J187: =InpOverride!J$144 -> 0 | K187: =InpOverride!K$144 -> 0 | L187: =InpOverride!L$144 -> 0 | M187: =InpOverride!M$144 -> 0 | N187: =InpOverride!N$144 -> 0 | O187: =InpOverride!O$144 -> 0 | P187: =InpOverride!P$144 -> 0
E188: =InpOverride!E$145 -> Override opex - Dummy | F188: =InpOverride!F$145 -> 0 | G188: =InpOverride!G$145 -> £m | H188: =InpOverride!H$145 -> 0 | I188: =InpOverride!I$145 -> 0 | J188: =InpOverride!J$145 -> 0 | K188: =InpOverride!K$145 -> 0 | L188: =InpOverride!L$145 -> 0 | M188: =InpOverride!M$145 -> 0 | N188: =InpOverride!N$145 -> 0 | O188: =InpOverride!O$145 -> 0 | P188: =InpOverride!P$145 -> 0
E190: Dummy - Capex - Active | G190: £m | H190: =SUM(J190:P190) -> 0 | J190: =IF($F183 = 0, J184, J187) -> 0 | K190: =IF($F183 = 0, K184, K187) -> 0 | L190: 0 | M190: 0 | N190: 0 | O190: 0 | P190: 0
E191: Dummy - Opex - Active | G191: £m | H191: =SUM(J191:P191) -> 0 | J191: =IF($F183 = 0, J185, J188) -> 0 | K191: 0 | L191: 0 | M191: 0 | N191: 0 | O191: 0 | P191: 0
E193: =InpOverride!E$73 -> DUMMY - Total gross totex - real | F193: =InpOverride!F$73 -> 0 | G193: =InpOverride!G$73 -> £m | H193: =InpOverride!H$73 -> 0 | I193: =InpOverride!I$73 -> 0 | J193: =InpOverride!J$73 -> 0 | K193: =InpOverride!K$73 -> 0 | L193: =InpOverride!L$73 -> 0 | M193: =InpOverride!M$73 -> 0 | N193: =InpOverride!N$73 -> 0 | O193: =InpOverride!O$73 -> 0 | P193: =InpOverride!P$73 -> 0
E194: =InpOverride!E$76 -> DMMY - Other costs not subject to cost sharing excl PDR | F194: =InpOverride!F$76 -> 0 | G194: =InpOverride!G$76 -> £m | H194: =InpOverride!H$76 -> 0 | I194: =InpOverride!I$76 -> 0 | J194: =InpOverride!J$76 -> 0 | K194: =InpOverride!K$76 -> 0 | L194: =InpOverride!L$76 -> 0 | M194: =InpOverride!M$76 -> 0 | N194: =InpOverride!N$76 -> 0 | O194: =InpOverride!O$76 -> 0 | P194: =InpOverride!P$76 -> 0
E195: Dummy - Ofwat Baseline Total Gross Totex including third party costs - Real | G195: £m | H195: =SUM(J195:P195) -> 0 | J195: =SUM(J193:J194) -> 0 | K195: =SUM(K193:K194) -> 0 | L195: 0 | M195: 0 | N195: 0 | O195: 0 | P195: 0
E197: =E$195 -> Dummy - Ofwat Baseline Total Gross Totex including third party costs - Real | F197: =F$195 -> 0 | G197: £m | H197: 0 | I197: 0 | J197: 0 | K197: 0 | L197: 0 | M197: 0 | N197: 0 | O197: 0 | P197: 0
E198: ='Opex Lease Adjustments'!E$103 -> Dummy operating lease adjustment | F198: ='Opex Lease Adjustments'!F$103 -> 0 | G198: ='Opex Lease Adjustments'!G$103 -> £m | H198: ='Opex Lease Adjustments'!H$103 -> 0 | I198: ='Opex Lease Adjustments'!I$103 -> 0 | J198: ='Opex Lease Adjustments'!J$103 -> 0 | K198: ='Opex Lease Adjustments'!K$103 -> 0 | L198: ='Opex Lease Adjustments'!L$103 -> 0 | M198: ='Opex Lease Adjustments'!M$103 -> 0 | N198: ='Opex Lease Adjustments'!N$103 -> 0 | O198: ='Opex Lease Adjustments'!O$103 -> 0 | P198: ='Opex Lease Adjustments'!P$103 -> 0
E199: Dummy - Ofwat Baseline Total Gross Totex - Real | F199: =SUM($H$197:$H$198) -> 0 | G199: £m
E201: =E$199 -> Dummy - Ofwat Baseline Total Gross Totex - Real | F201: =F$199 -> 0 | G201: =G$199 -> £m
E202: =E$190 -> Dummy - Capex - Active | F202: =F$190 -> 0 | G202: £m | H202: 0 | I202: 0 | J202: 0 | K202: 0 | L202: 0 | M202: 0 | N202: 0 | O202: 0 | P202: 0
E203: =E$191 -> Dummy - Opex - Active | F203: =F$191 -> 0 | G203: £m | H203: 0 | I203: 0 | J203: 0 | K203: 0 | L203: 0 | M203: 0 | N203: 0 | O203: 0 | P203: 0
E204: =Time!E$54 -> Forecast Period Flag | F204: =Time!F$54 -> 0 | G204: =Time!G$54 -> flag | H204: =Time!H$54 -> 5 | I204: =Time!I$54 -> 0 | J204: =Time!J$54 -> 0 | K204: =Time!K$54 -> 1 | L204: =Time!L$54 -> 1 | M204: =Time!M$54 -> 1 | N204: =Time!N$54 -> 1 | O204: =Time!O$54 -> 1 | P204: =Time!P$54 -> 0
E205: Dummy - profiled total capex | G205: £m | H205: =SUM(J205:P205) -> 0 | J205: =IF($F201 = 0, 0,($F201 * J202 / SUM($K$202:$O$203))) *J$204 -> 0 | K205: =IF($F201 = 0, 0,($F201 * K202 / SUM($K$202:$O$203))) *K$204 -> 0 | L205: 0 | M205: 0 | N205: 0 | O205: 0 | P205: 0
E206: Dummy - profiled total opex | G206: £m | H206: 0 | J206: =IF($F$201 = 0, 0,($F201 * J203 / SUM($K$202:$O$203))) *J$204 -> 0 | K206: =IF($F$201 = 0, 0,($F201 * K203 / SUM($K$202:$O$203))) *K$204 -> 0 | L206: 0 | M206: 0 | N206: 0 | O206: 0 | P206: 0
E208: =E$205 -> Dummy - profiled total capex | F208: 0 | G208: £m | H208: 0 | I208: 0 | J208: 0 | K208: =K$205 -> 0 | L208: 0 | M208: 0 | N208: 0 | O208: 0 | P208: 0
E209: =E$206 -> Dummy - profiled total opex | F209: 0 | G209: £m | H209: 0 | I209: 0 | J209: 0 | K209: =K$206 -> 0 | L209: 0 | M209: 0 | N209: 0 | O209: 0 | P209: 0
E210: Dummy - profiled total expenditure | G210: £m | H210: =SUM(J210:P210) -> 0 | J210: =SUM(J208:J209) -> 0 | K210: =SUM(K208:K209) -> 0 | L210: =SUM(L208:L209) -> 0 | M210: 0 | N210: 0 | O210: 0 | P210: 0
E211: Dummy - profiled total expenditure including ex-antre cost sharing | F211: =H210 -> 0 | G211: £m
E213: =E$199 -> Dummy - Ofwat Baseline Total Gross Totex - Real | F213: =F$199 -> 0 | G213: =G$199 -> £m
E214: =E$211 -> Dummy - profiled total expenditure including ex-antre cost sharing | F214: =F$211 -> 0 | G214: =G$211 -> £m
E215: Dummy - profiled total expenditure check | F215: =IF(ABS(F213-F214) > ChK_Tol, 1, 0) -> 0 | G215: check
A217: END OF SHEET

Sheet Profiling Calcs
A1: =RIGHT(CELL("filename", $A$1), LEN(CELL("filename", $A$1)) - SEARCH("]", CELL("filename", $A$1))) -> Profiling Calcs
E2: =Time!E$22 -> Model Period BEG | J2: =Time!J$22 -> 2019-04-01 | K2: =Time!K$22 -> 2020-04-01 | L2: =Time!L$22 -> 2021-04-01 | M2: =Time!M$22 -> 2022-04-01 | N2: =Time!N$22 -> 2023-04-01 | O2: =Time!O$22 -> 2024-04-01 | P2: =Time!P$22 -> 2025-04-01
E3: =Time!E$23 -> Model Period END | F3: =Check!F$8 -> 0 | G3: Error chks | J3: =Time!J$23 -> 2020-03-31 | K3: =Time!K$23 -> 2021-03-31 | L3: =Time!L$23 -> 2022-03-31 | M3: =Time!M$23 -> 2023-03-31 | N3: =Time!N$23 -> 2024-03-31 | O3: =Time!O$23 -> 2025-03-31 | P3: =Time!P$23 -> 2026-03-31
E4: =Time!E$59 -> Pre Forecast vs Forecast | F4: =Check!$F$20 -> 35 | G4: Track checks | J4: =Time!J$59 -> Pre Fcst | K4: =Time!K$59 -> Forecast | L4: =Time!L$59 -> Forecast | M4: =Time!M$59 -> Forecast | N4: =Time!N$59 -> Forecast | O4: =Time!O$59 -> Forecast | P4: =Time!P$59 -> Post-Fcst
E5: =Time!E$101 -> Financial Year Ending | J5: =Time!J$101 -> 2020 | K5: =Time!K$101 -> 2021 | L5: =Time!L$101 -> 2022 | M5: =Time!M$101 -> 2023 | N5: =Time!N$101 -> 2024 | O5: =Time!O$101 -> 2025 | P5: =Time!P$101 -> 2026
E6: =Time!E$11 -> Model column counter | F6: Constant | G6: Unit | H6: Total | J6: =Time!J$11 -> 1 | K6: =Time!K$11 -> 2 | L6: =Time!L$11 -> 3 | M6: =Time!M$11 -> 4 | N6: =Time!N$11 -> 5 | O6: =Time!O$11 -> 6 | P6: =Time!P$11 -> 7
C8: Gross Totex
E9: =InpOverride!E$97 -> Capital Expenditure (excluding Atypical expenditure) - Total gross capital expenditure - Water resources | F9: =InpOverride!F$97 -> 0 | G9: =InpOverride!G$97 -> £m | H9: =InpOverride!H$97 -> 8.809 | I9: =InpOverride!I$97 -> 0 | J9: =InpOverride!J$97 -> 0 | K9: =InpOverride!K$97 -> 2.503 | L9: =InpOverride!L$97 -> 2.61 | M9: =InpOverride!M$97 -> 1.33 | N9: =InpOverride!N$97 -> 1.194 | O9: =InpOverride!O$97 -> 1.172 | P9: =InpOverride!P$97 -> 0
E10: Capex - WR | G10: £m | H10: =SUM(J10:P10) -> 8.809 | J10: =SUM(J9) -> 0 | K10: 2.503 | L10: 2.61 | M10: 1.33 | N10: 1.194 | O10: 1.172 | P10: 0
E12: =InpOverride!E$103 -> Capital Expenditure (excluding Atypical expenditure) - Total gross capital expenditure - Raw water distribution | F12: =InpOverride!F$103 -> 0 | G12: =InpOverride!G$103 -> £m | H12: =InpOverride!H$103 -> 3.207089569 | I12: =InpOverride!I$103 -> 0 | J12: =InpOverride!J$103 -> 0 | K12: =InpOverride!K$103 -> 0.5430764572 | L12: =InpOverride!L$103 -> 0.791208172 | M12: =InpOverride!M$103 -> 0.7909150145 | N12: =InpOverride!N$103 -> 0.5427947201 | O12: =InpOverride!O$103 -> 0.5390952052 | P12: =InpOverride!P$103 -> 0
E13: =InpOverride!E$104 -> Total gross capital expenditure - Water treatment | F13: =InpOverride!F$104 -> 0 | G13: =InpOverride!G$104 -> £m | H13: =InpOverride!H$104 -> 6.001047713 | I13: =InpOverride!I$104 -> 0 | J13: =InpOverride!J$104 -> 0 | K13: =InpOverride!K$104 -> 1.049405801 | L13: =InpOverride!L$104 -> 1.047462409 | M13: =InpOverride!M$104 -> 1.3092637 | N13: =InpOverride!N$104 -> 1.31071302 | O13: =InpOverride!O$104 -> 1.284202783 | P13: =InpOverride!P$104 -> 0
E14: =InpOverride!E$105 -> Total gross capital expenditure - Treated water distribution | F14: =InpOverride!F$105 -> 0 | G14: =InpOverride!G$105 -> £m | H14: =InpOverride!H$105 -> 26.63186272 | I14: =InpOverride!I$105 -> 0 | J14: =InpOverride!J$105 -> 0 | K14: =InpOverride!K$105 -> 5.069517742 | L14: =InpOverride!L$105 -> 5.178329419 | M14: =InpOverride!M$105 -> 5.495821286 | N14: =InpOverride!N$105 -> 5.45649226 | O14: =InpOverride!O$105 -> 5.431702012 | P14: =InpOverride!P$105 -> 0
E15: Capex WN | G15: £m | H15: =SUM(J15:P15) -> 35.84 | J15: =SUM(J12:J14) -> 0 | K15: 6.662 | L15: 7.017 | M15: 7.596 | N15: 7.31 | O15: 7.255 | P15: 0
E17: =InpOverride!E$96 -> Operating expenditure (excluding Atypical expenditure) - Total operating expenditure - Water resources | F17: =InpOverride!F$96 -> 0 | G17: =InpOverride!G$96 -> £m | H17: =InpOverride!H$96 -> 16.432 | I17: =InpOverride!I$96 -> 0 | J17: =InpOverride!J$96 -> 0 | K17: =InpOverride!K$96 -> 3.515 | L17: =InpOverride!L$96 -> 3.231 | M17: =InpOverride!M$96 -> 3.184 | N17: =InpOverride!N$96 -> 3.16 | O17: =InpOverride!O$96 -> 3.342 | P17: =InpOverride!P$96 -> 0
E18: Opex - WR | G18: £m | H18: =SUM(J18:P18) -> 16.432 | J18: =SUM(J17) -> 0 | K18: 3.515 | L18: 3.231 | M18: 3.184 | N18: 3.16 | O18: 3.342 | P18: 0
E20: =InpOverride!E$100 -> Operating expenditure (excluding Atypical expenditure) - Total operating expenditure - Raw water distribution | F20: =InpOverride!F$100 -> 0 | G20: =InpOverride!G$100 -> £m | H20: =InpOverride!H$100 -> 2.642943213 | I20: =InpOverride!I$100 -> 0 | J20: =InpOverride!J$100 -> 0 | K20: =InpOverride!K$100 -> 0.5476956185 | L20: =InpOverride!L$100 -> 0.5276790169 | M20: =InpOverride!M$100 -> 0.52288767 | N20: =InpOverride!N$100 -> 0.5180217135 | O20: =InpOverride!O$100 -> 0.5266591942 | P20: =InpOverride!P$100 -> 0
E21: =InpOverride!E$101 -> Total operating expenditure - Water treatment | F21: =InpOverride!F$101 -> 0 | G21: =InpOverride!G$101 -> £m | H21: =InpOverride!H$101 -> 31.90196474 | I21: =InpOverride!I$101 -> 0 | J21: =InpOverride!J$101 -> 0 | K21: =InpOverride!K$101 -> 6.442389974 | L21: =InpOverride!L$101 -> 6.345229615 | M21: =InpOverride!M$101 -> 6.401280069 | N21: =InpOverride!N$101 -> 6.347488249 | O21: =InpOverride!O$101 -> 6.365576833 | P21: =InpOverride!P$101 -> 0
E22: =InpOverride!E$102 -> Total operating expenditure - Treated water distribution | F22: =InpOverride!F$102 -> 0 | G22: =InpOverride!G$102 -> £m | H22: =InpOverride!H$102 -> 40.17209205 | I22: =InpOverride!I$102 -> 0 | J22: =InpOverride!J$102 -> 0 | K22: =InpOverride!K$102 -> 8.357914407 | L22: =InpOverride!L$102 -> 7.989091368 | M22: =InpOverride!M$102 -> 7.926832261 | N22: =InpOverride!N$102 -> 7.858490037 | O22: =InpOverride!O$102 -> 8.039763973 | P22: =InpOverride!P$102 -> 0
E23: Opex - WN | G23: £m | H23: =SUM(J23:P23) -> 74.717 | J23: =SUM(J20:J22) -> 0 | K23: 15.348 | L23: 14.862 | M23: 14.851 | N23: 14.724 | O23: 14.932 | P23: 0
E26: =InpOverride!E$108 -> Operating expenditure - Total operating expenditure - Sewage collection | F26: =InpOverride!F$108 -> 0 | G26: =InpOverride!G$108 -> £m | H26: =InpOverride!H$108 -> 4.192222574 | I26: =InpOverride!I$108 -> 0 | J26: =InpOverride!J$108 -> 0 | K26: =InpOverride!K$108 -> 0.8491402434 | L26: =InpOverride!L$108 -> 0.8434212814 | M26: =InpOverride!M$108 -> 0.8379963647 | N26: =InpOverride!N$108 -> 0.8313998588 | O26: =InpOverride!O$108 -> 0.8302648252 | P26: =InpOverride!P$108 -> 0
E27: =InpOverride!E$109 -> Operating expenditure - Total operating expenditure - Sewage treatment | F27: =InpOverride!F$109 -> 0 | G27: =InpOverride!G$109 -> £m | H27: =InpOverride!H$109 -> 8.094777426 | I27: =InpOverride!I$109 -> 0 | J27: =InpOverride!J$109 -> 0 | K27: =InpOverride!K$109 -> 1.620859757 | L27: =InpOverride!L$109 -> 1.635578719 | M27: =InpOverride!M$109 -> 1.615003635 | N27: =InpOverride!N$109 -> 1.609600141 | O27: =InpOverride!O$109 -> 1.613735175 | P27: =InpOverride!P$109 -> 0
E28: Opex - WWN | G28: £m | H28: =SUM(J28:P28) -> 12.287 | J28: =SUM(J26:J27) -> 0 | K28: 2.47 | L28: 2.479 | M28: 2.453 | N28: 2.441 | O28: 2.444 | P28: 0
E30: =InpOverride!E$114 -> Operating expenditure - Total operating expenditure - Sludge transport | F30: =InpOverride!F$114 -> 0 | G30: =InpOverride!G$114 -> £m | H30: =InpOverride!H$114 -> 1.97726181 | I30: =InpOverride!I$114 -> 0 | J30: =InpOverride!J$114 -> 0 | K30: =InpOverride!K$114 -> 0.3839350826 | L30: =InpOverride!L$114 -> 0.3983246291 | M30: =InpOverride!M$114 -> 0.3983297975 | N30: =InpOverride!N$114 -> 0.3983347552 | O30: =InpOverride!O$114 -> 0.3983375455 | P30: =InpOverride!P$114 -> 0
E31: =InpOverride!E$115 -> Operating expenditure - Total operating expenditure - Sludge treatment | F31: =InpOverride!F$115 -> 0 | G31: =InpOverride!G$115 -> £m | H31: =InpOverride!H$115 -> 0.9609492693 | I31: =InpOverride!I$115 -> 0 | J31: =InpOverride!J$115 -> 0 | K31: =InpOverride!K$115 -> 0.1852859055 | L31: =InpOverride!L$115 -> 0.1939242446 | M31: =InpOverride!M$115 -> 0.1939180862 | N31: =InpOverride!N$115 -> 0.1939121789 | O31: =InpOverride!O$115 -> 0.1939088542 | P31: =InpOverride!P$115 -> 0
E32: =InpOverride!E$116 -> Operating expenditure - Total operating expenditure - Sludge disposal | F32: =InpOverride!F$116 -> 0 | G32: =InpOverride!G$116 -> £m | H32: =InpOverride!H$116 -> 0.6637889208 | I32: =InpOverride!I$116 -> 0 | J32: =InpOverride!J$116 -> 0 | K32: =InpOverride!K$116 -> 0.1287790119 | L32: =InpOverride!L$116 -> 0.1337511264 | M32: =InpOverride!M$116 -> 0.1337521163 | N32: =InpOverride!N$116 -> 0.1337530659 | O32: =InpOverride!O$116 -> 0.1337536003 | P32: =InpOverride!P$116 -> 0
E33: Opex - BR | G33: £m | H33: =SUM(J33:P33) -> 3.602 | J33: =SUM(J30:J32) -> 0 | K33: 0.698 | L33: 0.726 | M33: 0.726 | N33: 0.726 | O33: 0.726 | P33: 0
E35: =InpOverride!E$110 -> Capital expenditure - Total gross capital expenditure - Sewage collection | F35: =InpOverride!F$110 -> 0 | G35: =InpOverride!G$110 -> £m | H35: =InpOverride!H$110 -> 1.940105206 | I35: =InpOverride!I$110 -> 0 | J35: =InpOverride!J$110 -> 0 | K35: =InpOverride!K$110 -> 0.3854387922 | L35: =InpOverride!L$110 -> 0.3869520472 | M35: =InpOverride!M$110 -> 0.3886118306 | N35: =InpOverride!N$110 -> 0.3875089005 | O35: =InpOverride!O$110 -> 0.3915936359 | P35: =InpOverride!P$110 -> 0
E36: =InpOverride!E$111 -> Capital expenditure - Total gross capital expenditure - Sewage treatment | F36: =InpOverride!F$111 -> 0 | G36: =InpOverride!G$111 -> £m | H36: =InpOverride!H$111 -> 7.684894794 | I36: =InpOverride!I$111 -> 0 | J36: =InpOverride!J$111 -> 0 | K36: =InpOverride!K$111 -> 1.009561208 | L36: =InpOverride!L$111 -> 1.331047953 | M36: =InpOverride!M$111 -> 1.556388169 | N36: =InpOverride!N$111 -> 2.683491099 | O36: =InpOverride!O$111 -> 1.104406364 | P36: =InpOverride!P$111 -> 0
E37: Capex - WWN | G37: £m | H37: =SUM(J37:P37) -> 9.625 | J37: =SUM(J35:J36) -> 0 | K37: 1.395 | L37: 1.718 | M37: 1.945 | N37: 3.071 | O37: 1.496 | P37: 0
E39: =InpOverride!E$117 -> Capital expenditure - Total gross capital expenditure - Sludge transport | F39: =InpOverride!F$117 -> 0 | G39: =InpOverride!G$117 -> £m | H39: =InpOverride!H$117 -> 0 | I39: =InpOverride!I$117 -> 0 | J39: =InpOverride!J$117 -> 0 | K39: =InpOverride!K$117 -> 0 | L39: =InpOverride!L$117 -> 0 | M39: =InpOverride!M$117 -> 0 | N39: =InpOverride!N$117 -> 0 | O39: =InpOverride!O$117 -> 0 | P39: =InpOverride!P$117 -> 0
E40: =InpOverride!E$118 -> Capital expenditure - Total gross capital expenditure - Sludge treatment | F40: =InpOverride!F$118 -> 0 | G40: =InpOverride!G$118 -> £m | H40: =InpOverride!H$118 -> 0 | I40: =InpOverride!I$118 -> 0 | J40: =InpOverride!J$118 -> 0 | K40: =InpOverride!K$118 -> 0 | L40: =InpOverride!L$118 -> 0 | M40: =InpOverride!M$118 -> 0 | N40: =InpOverride!N$118 -> 0 | O40: =InpOverride!O$118 -> 0 | P40: =InpOverride!P$118 -> 0
E41: =InpOverride!E$119 -> Capital expenditure - Total gross capital expenditure - Sludge disposal | F41: =InpOverride!F$119 -> 0 | G41: =InpOverride!G$119 -> £m | H41: =InpOverride!H$119 -> 0 | I41: =InpOverride!I$119 -> 0 | J41: =InpOverride!J$119 -> 0 | K41: =InpOverride!K$119 -> 0 | L41: =InpOverride!L$119 -> 0 | M41: =InpOverride!M$119 -> 0 | N41: =InpOverride!N$119 -> 0 | O41: =InpOverride!O$119 -> 0 | P41: =InpOverride!P$119 -> 0
E42: Capex - BR | G42: £m | H42: =SUM(J42:P42) -> 0 | J42: =SUM(J39:J41) -> 0 | K42: 0 | L42: 0 | M42: 0 | N42: 0 | O42: 0 | P42: 0
E44: =InpOverride!E$122 -> Operating expenditure - Total operating expenditure | F44: =InpOverride!F$122 -> 0 | G44: =InpOverride!G$122 -> £m | H44: =InpOverride!H$122 -> 0 | I44: =InpOverride!I$122 -> 0 | J44: =InpOverride!J$122 -> 0 | K44: =InpOverride!K$122 -> 0 | L44: =InpOverride!L$122 -> 0 | M44: =InpOverride!M$122 -> 0 | N44: =InpOverride!N$122 -> 0 | O44: =InpOverride!O$122 -> 0 | P44: =InpOverride!P$122 -> 0
E45: Opex - DMMY | G45: £m | H45: =SUM(J45:P45) -> 0 | J45: =SUM(J44) -> 0 | K45: 0 | L45: 0 | M45: 0 | N45: 0 | O45: 0 | P45: 0
E47: =InpOverride!E$123 -> Capital expenditure - Total gross capital expenditure | F47: =InpOverride!F$123 -> 0 | G47: =InpOverride!G$123 -> £m | H47: =InpOverride!H$123 -> 0 | I47: =InpOverride!I$123 -> 0 | J47: =InpOverride!J$123 -> 0 | K47: =InpOverride!K$123 -> 0 | L47: =InpOverride!L$123 -> 0 | M47: =InpOverride!M$123 -> 0 | N47: =InpOverride!N$123 -> 0 | O47: =InpOverride!O$123 -> 0 | P47: =InpOverride!P$123 -> 0
E48: Capex - DMMY | G48: £m | H48: =SUM(J48:P48) -> 0 | J48: =SUM(J47) -> 0 | K48: 0 | L48: 0 | M48: 0 | N48: 0 | O48: 0 | P48: 0
C52: Totex profile
E53: =E$10 -> Capex - WR | F53: 0 | G53: £m | H53: 8.809 | I53: 0 | J53: =J$10 -> 0 | K53: 2.503 | L53: 2.61 | M53: 1.33 | N53: 1.194 | O53: 1.172 | P53: 0
E54: Gross capex WR | G54: £m | H54: =SUM(I54:P54) -> 8.809 | J54: =J53 -> 0 | K54: =K53 -> 2.503 | L54: =L53 -> 2.61 | M54: 1.33 | N54: 1.194 | O54: 1.172 | P54: =P53 -> 0
E55: Capex profile - WR | G55: % | H55: =SUM(I55:P55) -> 1 | J55: =IF(SUM($K54:$O54) = 0, 0, J54 / SUM($K54:$O54)) -> 0 | K55: =IF(SUM($K54:$O54) = 0, 0, K54 / SUM($K54:$O54)) -> 0.2841412192 | L55: =IF(SUM($K54:$O54) = 0, 0, L54 / SUM($K54:$O54)) -> 0.2962878874 | M55: 0.1509819503 | N55: 0.1355431945 | O55: 0.1330457487 | P55: 0
E57: =E$18 -> Opex - WR | F57: 0 | G57: £m | H57: 16.432 | I57: 0 | J57: =J$18 -> 0 | K57: 3.515 | L57: 3.231 | M57: 3.184 | N57: 3.16 | O57: 3.342 | P57: 0
E58: Gross opex WR | G58: £m | H58: =SUM(I58:P58) -> 16.432 | J58: =J57 -> 0 | K58: =K57 -> 3.515 | L58: =L57 -> 3.231 | M58: =M57 -> 3.184 | N58: =N57 -> 3.16 | O58: =O57 -> 3.342 | P58: 0
E59: Opex profile - WR | G59: % | H59: =SUM(I59:P59) -> 1 | J59: =IF(SUM($K58:$O58) = 0, 0, J58 / SUM($K58:$O58)) -> 0 | K59: =IF(SUM($K58:$O58) = 0, 0, K58 / SUM($K58:$O58)) -> 0.2139118793 | L59: =IF(SUM($K58:$O58) = 0, 0, L58 / SUM($K58:$O58)) -> 0.1966285297 | M59: =IF(SUM($K58:$O58) = 0, 0, M58 / SUM($K58:$O58)) -> 0.1937682571 | N59: =IF(SUM($K58:$O58) = 0, 0, N58 / SUM($K58:$O58)) -> 0.1923076923 | O59: =IF(SUM($K58:$O58) = 0, 0, O58 / SUM($K58:$O58)) -> 0.2033836417 | P59: =IF(SUM($K58:$O58) = 0, 0, P58 / SUM($K58:$O58)) -> 0
E62: =E15 -> Capex WN | F62: 0 | G62: £m | H62: 35.84 | I62: 0 | J62: =J15 -> 0 | K62: 6.662 | L62: 7.017 | M62: 7.596 | N62: 7.31 | O62: 7.255 | P62: 0
E63: Gross capex WN | G63: £m | H63: =SUM(I63:P63) -> 35.84 | J63: =J62 -> 0 | K63: =K62 -> 6.662 | L63: =L62 -> 7.017 | M63: =M62 -> 7.596 | N63: =N62 -> 7.31 | O63: =O62 -> 7.255 | P63: 0
E64: Capex profile - WN | G64: % | H64: =SUM(I64:P64) -> 1 | J64: =IF(SUM($K63:$O63) = 0, 0, J63 / SUM($K63:$O63)) -> 0 | K64: =IF(SUM($K63:$O63) = 0, 0, K63 / SUM($K63:$O63)) -> 0.1858816964 | L64: =IF(SUM($K63:$O63) = 0, 0, L63 / SUM($K63:$O63)) -> 0.1957868304 | M64: =IF(SUM($K63:$O63) = 0, 0, M63 / SUM($K63:$O63)) -> 0.2119419643 | N64: =IF(SUM($K63:$O63) = 0, 0, N63 / SUM($K63:$O63)) -> 0.2039620536 | O64: =IF(SUM($K63:$O63) = 0, 0, O63 / SUM($K63:$O63)) -> 0.2024274554 | P64: =IF(SUM($K63:$O63) = 0, 0, P63 / SUM($K63:$O63)) -> 0
E66: =E$23 -> Opex - WN | F66: 0 | G66: £m | H66: 74.717 | I66: 0 | J66: =J$23 -> 0 | K66: 15.348 | L66: 14.862 | M66: 14.851 | N66: 14.724 | O66: 14.932 | P66: 0
E67: Gross opex WN | G67: £m | H67: =SUM(I67:P67) -> 74.717 | J67: =J66 -> 0 | K67: =K66 -> 15.348 | L67: =L66 -> 14.862 | M67: =M66 -> 14.851 | N67: =N66 -> 14.724 | O67: =O66 -> 14.932 | P67: 0
E68: Opex profile - WN | G68: % | H68: =SUM(I68:P68) -> 1 | J68: =IF(SUM($K67:$O67) = 0, 0, J67 / SUM($K67:$O67)) -> 0 | K68: =IF(SUM($K67:$O67) = 0, 0, K67 / SUM($K67:$O67)) -> 0.2054150996 | L68: =IF(SUM($K67:$O67) = 0, 0, L67 / SUM($K67:$O67)) -> 0.1989105558 | M68: =IF(SUM($K67:$O67) = 0, 0, M67 / SUM($K67:$O67)) -> 0.1987633336 | N68: =IF(SUM($K67:$O67) = 0, 0, N67 / SUM($K67:$O67)) -> 0.1970635866 | O68: =IF(SUM($K67:$O67) = 0, 0, O67 / SUM($K67:$O67)) -> 0.1998474243 | P68: =IF(SUM($K67:$O67) = 0, 0, P67 / SUM($K67:$O67)) -> 0
E71: =E$37 -> Capex - WWN | F71: 0 | G71: £m | H71: 9.625 | I71: 0 | J71: =J$37 -> 0 | K71: 1.395 | L71: 1.718 | M71: 1.945 | N71: 3.071 | O71: 1.496 | P71: 0
E72: Gross capex WWN | G72: £m | H72: =SUM(I72:P72) -> 9.625 | J72: =J71 -> 0 | K72: =K71 -> 1.395 | L72: =L71 -> 1.718 | M72: 1.945 | N72: 3.071 | O72: 1.496 | P72: =P71 -> 0
E73: Capex profile - WWN | G73: % | H73: =SUM(I73:P73) -> 1 | J73: =IF(SUM($K72:$O72) = 0, 0, J72 / SUM($K72:$O72)) -> 0 | K73: =IF(SUM($K72:$O72) = 0, 0, K72 / SUM($K72:$O72)) -> 0.1449350649 | L73: =IF(SUM($K72:$O72) = 0, 0, L72 / SUM($K72:$O72)) -> 0.1784935065 | M73: =IF(SUM($K72:$O72) = 0, 0, M72 / SUM($K72:$O72)) -> 0.2020779221 | N73: =IF(SUM($K72:$O72) = 0, 0, N72 / SUM($K72:$O72)) -> 0.3190649351 | O73: =IF(SUM($K72:$O72) = 0, 0, O72 / SUM($K72:$O72)) -> 0.1554285714 | P73: =IF(SUM($K72:$O72) = 0, 0, P72 / SUM($K72:$O72)) -> 0
E75: =E$28 -> Opex - WWN | F75: 0 | G75: £m | H75: 12.287 | I75: 0 | J75: =J$28 -> 0 | K75: 2.47 | L75: 2.479 | M75: 2.453 | N75: 2.441 | O75: 2.444 | P75: 0
E76: Gross opex WWN | G76: £m | H76: =SUM(I76:P76) -> 12.287 | J76: =J75 -> 0 | K76: =K75 -> 2.47 | L76: =L75 -> 2.479 | M76: =M75 -> 2.453 | N76: =N75 -> 2.441 | O76: =O75 -> 2.444 | P76: 0
E77: Opex profile - WNN | G77: % | H77: =SUM(I77:P77) -> 1 | J77: =IF(SUM($K76:$O76) = 0, 0, J76 / SUM($K76:$O76)) -> 0 | K77: =IF(SUM($K76:$O76) = 0, 0, K76 / SUM($K76:$O76)) -> 0.2010254741 | L77: =IF(SUM($K76:$O76) = 0, 0, L76 / SUM($K76:$O76)) -> 0.2017579556 | M77: =IF(SUM($K76:$O76) = 0, 0, M76 / SUM($K76:$O76)) -> 0.1996418979 | N77: =IF(SUM($K76:$O76) = 0, 0, N76 / SUM($K76:$O76)) -> 0.198665256 | O77: =IF(SUM($K76:$O76) = 0, 0, O76 / SUM($K76:$O76)) -> 0.1989094165 | P77: =IF(SUM($K76:$O76) = 0, 0, P76 / SUM($K76:$O76)) -> 0
E80: =E$42 -> Capex - BR | F80: 0 | G80: £m | H80: 0 | I80: 0 | J80: =J$42 -> 0 | K80: 0 | L80: 0 | M80: 0 | N80: 0 | O80: 0 | P80: 0
E81: Gross capex BR | G81: £m | H81: =SUM(I81:P81) -> 0 | J81: =J80 -> 0 | K81: =K80 -> 0 | L81: =L80 -> 0 | M81: =M80 -> 0 | N81: =N80 -> 0 | O81: =O80 -> 0 | P81: 0
E82: Capex profile - BR | G82: % | H82: =SUM(I82:P82) -> 0 | J82: =IF(SUM($K81:$O81) = 0, 0, J81 / SUM($K81:$O81)) -> 0 | K82: =IF(SUM($K81:$O81) = 0, 0, K81 / SUM($K81:$O81)) -> 0 | L82: =IF(SUM($K81:$O81) = 0, 0, L81 / SUM($K81:$O81)) -> 0 | M82: =IF(SUM($K81:$O81) = 0, 0, M81 / SUM($K81:$O81)) -> 0 | N82: =IF(SUM($K81:$O81) = 0, 0, N81 / SUM($K81:$O81)) -> 0 | O82: =IF(SUM($K81:$O81) = 0, 0, O81 / SUM($K81:$O81)) -> 0 | P82: =IF(SUM($K81:$O81) = 0, 0, P81 / SUM($K81:$O81)) -> 0
E84: =E$33 -> Opex - BR | J84: =J$33 -> 0 | K84: 0.698 | L84: 0.726 | M84: 0.726 | N84: 0.726 | O84: 0.726 | P84: 0
E85: Gross opex BR | G85: £m | H85: =SUM(I85:P85) -> 3.602 | J85: =J84 -> 0 | K85: =K84 -> 0.698 | L85: =L84 -> 0.726 | M85: =M84 -> 0.726 | N85: =N84 -> 0.726 | O85: =O84 -> 0.726 | P85: 0
E86: Opex profile - BR | G86: % | H86: =SUM(I86:P86) -> 1 | J86: =IF(SUM($K85:$O85) = 0, 0, J85 / SUM($K85:$O85)) -> 0 | K86: =IF(SUM($K85:$O85) = 0, 0, K85 / SUM($K85:$O85)) -> 0.1937812326 | L86: =IF(SUM($K85:$O85) = 0, 0, L85 / SUM($K85:$O85)) -> 0.2015546918 | M86: =IF(SUM($K85:$O85) = 0, 0, M85 / SUM($K85:$O85)) -> 0.2015546918 | N86: =IF(SUM($K85:$O85) = 0, 0, N85 / SUM($K85:$O85)) -> 0.2015546918 | O86: =IF(SUM($K85:$O85) = 0, 0, O85 / SUM($K85:$O85)) -> 0.2015546918 | P86: =IF(SUM($K85:$O85) = 0, 0, P85 / SUM($K85:$O85)) -> 0
E88: =E$45 -> Opex - DMMY | F88: =F$45 -> 0 | G88: £m | H88: 0 | I88: 0 | J88: 0 | K88: 0 | L88: 0 | M88: 0 | N88: 0 | O88: 0 | P88: 0
E89: Gross opex DMMY | G89: £m | H89: =SUM(I89:P89) -> 0 | J89: =J88 -> 0 | K89: =K88 -> 0 | L89: =L88 -> 0 | M89: 0 | N89: 0 | O89: 0 | P89: 0
E90: Opex profile - DMMY | G90: % | H90: =SUM(I90:P90) -> 0 | J90: =IF(SUM($K89:$O89) = 0, 0, J89 / SUM($K89:$O89)) -> 0 | K90: =IF(SUM($K89:$O89) = 0, 0, K89 / SUM($K89:$O89)) -> 0 | L90: =IF(SUM($K89:$O89) = 0, 0, L89 / SUM($K89:$O89)) -> 0 | M90: 0 | N90: 0 | O90: 0 | P90: 0
E92: =E$48 -> Capex - DMMY | F92: =F$48 -> 0 | G92: £m | H92: 0 | I92: 0 | J92: 0 | K92: 0 | L92: 0 | M92: 0 | N92: 0 | O92: 0 | P92: 0
E93: Gross capex DMMY | G93: £m | H93: =SUM(I93:P93) -> 0 | J93: =J92 -> 0 | K93: =K92 -> 0 | L93: =L92 -> 0 | M93: 0 | N93: 0 | O93: 0 | P93: 0
E94: Capex profile - DMMY | G94: % | H94: =SUM(I94:P94) -> 0 | J94: =IF(SUM($K93:$O93) = 0, 0, J93 / SUM($K93:$O93)) -> 0 | K94: =IF(SUM($K93:$O93) = 0, 0, K93 / SUM($K93:$O93)) -> 0 | L94: =IF(SUM($K93:$O93) = 0, 0, L93 / SUM($K93:$O93)) -> 0 | M94: 0 | N94: 0 | O94: 0 | P94: 0
C98: Rates for cost sharing profile
E99: =Opex_Capex_Splits!E10 -> Capex WR percentage of totex | F99: =Opex_Capex_Splits!F10 -> 0.3489956816 | G99: =Opex_Capex_Splits!G10 -> %
E100: =Opex_Capex_Splits!E11 -> Opex WR percentage of totex | F100: =Opex_Capex_Splits!F11 -> 0.6510043184 | G100: =Opex_Capex_Splits!G11 -> %
E101: =E55 -> Capex profile - WR | F101: 0 | G101: % | H101: 1 | I101: 0 | J101: 0 | K101: 0.2841412192 | L101: 0.2962878874 | M101: 0.1509819503 | N101: 0.1355431945 | O101: 0.1330457487 | P101: 0
E102: =E59 -> Opex profile - WR | F102: 0 | G102: % | H102: 1 | I102: 0 | J102: 0 | K102: 0.2139118793 | L102: 0.1966285297 | M102: 0.1937682571 | N102: 0.1923076923 | O102: 0.2033836417 | P102: 0
E103: Capex WR for cost share model - calculated | G103: % | H103: =SUM(J103:P103) -> 0.3489956816 | J103: =$F99*J101 -> 0 | K103: =$F99*K101 -> 0.09916405848 | L103: =$F99*L101 -> 0.1034031932 | M103: 0.05269204865 | N103: 0.04730398954 | O103: 0.04643239174 | P103: =$F99*P101 -> 0
E104: Opex WR for cost share model - calculated | G104: % | H104: =SUM(J104:P104) -> 0.6510043184 | J104: =$F100*J102 -> 0 | K104: =$F100*K102 -> 0.1392575571 | L104: 0.1280060219 | M104: 0.1261439721 | N104: 0.1251931381 | O104: 0.132403629 | P104: =$F100*P102 -> 0
E106: =Opex_Capex_Splits!E13 -> Capex WN percentage of totex | F106: =Opex_Capex_Splits!F13 -> 0.324176669 | G106: =Opex_Capex_Splits!G13 -> %
E107: =Opex_Capex_Splits!E14 -> Opex WN percentage of totex | F107: =Opex_Capex_Splits!F14 -> 0.675823331 | G107: =Opex_Capex_Splits!G14 -> %
E108: =E$64 -> Capex profile - WN | F108: =F$64 -> 0 | G108: % | H108: 1 | I108: 0 | J108: 0 | K108: 0.1858816964 | L108: 0.1957868304 | M108: 0.2119419643 | N108: 0.2039620536 | O108: 0.2024274554 | P108: 0
E109: =E$68 -> Opex profile - WN | F109: =F$68 -> 0 | G109: % | H109: 1 | I109: 0 | J109: 0 | K109: 0.2054150996 | L109: 0.1989105558 | M109: 0.1987633336 | N109: 0.1970635866 | O109: 0.1998474243 | P109: 0
E110: Capex WN for cost share model - calculated | G110: % | H110: =SUM(J110:P110) -> 0.324176669 | J110: =$F106*J108 -> 0 | K110: =$F106*K108 -> 0.06025850919 | L110: =$F106*L108 -> 0.06346952251 | M110: 0.06870664001 | N110: 0.06611973914 | O110: 0.0656222582 | P110: =$F106*P108 -> 0
E111: Opex WN for cost share model - calculated | G111: % | H111: =SUM(J111:P111) -> 0.675823331 | J111: =$F107*J109 -> 0 | K111: =$F107*K109 -> 0.1388243169 | L111: =$F107*L109 -> 0.1344283944 | M111: 0.1343288982 | N111: 0.1331801695 | O111: 0.135061552 | P111: =$F107*P109 -> 0
E113: =Opex_Capex_Splits!E16 -> Capex WWN percentage of totex | F113: =Opex_Capex_Splits!F16 -> 0.4392570281 | G113: =Opex_Capex_Splits!G16 -> %
E114: =Opex_Capex_Splits!E17 -> Opex WWN percentage of totex | F114: =Opex_Capex_Splits!F17 -> 0.5607429719 | G114: =Opex_Capex_Splits!G17 -> %
E115: =E$73 -> Capex profile - WWN | F115: =F$73 -> 0 | G115: % | H115: 1 | I115: 0 | J115: 0 | K115: 0.1449350649 | L115: 0.1784935065 | M115: 0.2020779221 | N115: 0.3190649351 | O115: 0.1554285714 | P115: 0
E116: =E$77 -> Opex profile - WNN | F116: =F$77 -> 0 | G116: % | H116: 1 | I116: 0 | J116: 0 | K116: 0.2010254741 | L116: 0.2017579556 | M116: 0.1996418979 | N116: 0.198665256 | O116: 0.1989094165 | P116: 0
E117: Capex WWN for cost share model - calculated | G117: % | H117: =SUM(J117:P117) -> 0.4392570281 | J117: =$F113*J115 -> 0 | K117: =$F113*K115 -> 0.06366374589 | L117: =$F113*L115 -> 0.0784045272 | M117: 0.0887641475 | N117: 0.1401515152 | O117: 0.06827309237 | P117: =$F113*P115 -> 0
E118: Opex WWN for cost share model - calculated | G118: % | H118: =SUM(J118:P118) -> 0.5607429719 | J118: =$F114*J116 -> 0 | K118: =$F114*K116 -> 0.1127236218 | L118: =$F114*L116 -> 0.1131343556 | M118: 0.1119477912 | N118: 0.111400146 | O118: 0.1115370573 | P118: =$F114*P116 -> 0
E120: =Opex_Capex_Splits!E19 -> Capex BR percentage of totex | F120: =Opex_Capex_Splits!F19 -> 0 | G120: =Opex_Capex_Splits!G19 -> %
E121: =Opex_Capex_Splits!E20 -> Opex BR percentage of totex | F121: =Opex_Capex_Splits!F20 -> 1 | G121: =Opex_Capex_Splits!G20 -> %
E122: =E$82 -> Capex profile - BR | F122: =F$82 -> 0 | G122: % | H122: 0 | I122: 0 | J122: 0 | K122: 0 | L122: 0 | M122: 0 | N122: 0 | O122: 0 | P122: 0
E123: =E$86 -> Opex profile - BR | F123: =F$86 -> 0 | G123: % | H123: 1 | I123: 0 | J123: 0 | K123: 0.1937812326 | L123: 0.2015546918 | M123: 0.2015546918 | N123: 0.2015546918 | O123: 0.2015546918 | P123: 0
E124: Capex BR for cost share model - calculated | G124: % | H124: =SUM(J124:P124) -> 0 | J124: =$F120*J122 -> 0 | K124: =$F120*K122 -> 0 | L124: =$F120*L122 -> 0 | M124: 0 | N124: 0 | O124: 0 | P124: =$F120*P122 -> 0
E125: Opex BR for cost share model - calculated | G125: % | H125: =SUM(J125:P125) -> 1 | J125: =$F121*J123 -> 0 | K125: =$F121*K123 -> 0.1937812326 | L125: =$F121*L123 -> 0.2015546918 | M125: 0.2015546918 | N125: 0.2015546918 | O125: 0.2015546918 | P125: =$F121*P123 -> 0
A135: END OF SHEET

Sheet Outputs-->

Sheet F_Outputs
C1: PR19CostSharOut2
A2: Acronym | B2: Reference | C2: Item description | D2: Unit | E2: Model | F2: 2020-21 | G2: 2021-22 | H2: 2022-23 | I2: 2023-24 | J2: 2024-25 | K2: 2020-25
B4: C_WR_PR19FM008 | C4: Final cost allowance for Water Resources - including cost sharing | D4: £m | E4: Price Review 2019 | F4: ='Cost profiling'!K38 -> 6.069121973 | G4: ='Cost profiling'!L38 -> 5.890618386 | H4: ='Cost profiling'!M38 -> 4.552345727 | I4: ='Cost profiling'!N38 -> 4.390986552 | J4: ='Cost profiling'!O38 -> 4.552345727
B5: C_NPW_PR19FM008 | C5: Final cost allowance for Network Plus Water - including cost sharing | D5: £m | E5: Price Review 2019 | F5: ='Cost profiling'!K83 -> 22.04349723 | G5: ='Cost profiling'!L83 -> 21.91229786 | H5: ='Cost profiling'!M83 -> 22.48116231 | I5: ='Cost profiling'!N83 -> 22.06753376 | J5: ='Cost profiling'!O83 -> 22.22076661
B6: C_WW_PR19FM008 | C6: Final cost allowance for Wholesale Water - including cost sharing | D6: £m | E6: Price Review 2019 | F6: =F5+F4 -> 28.1126192 | G6: =G5+G4 -> 27.80291625 | H6: 27.03350803 | I6: 26.45852031 | J6: 26.77311234
B7: C_WROPEXFM_PR19FM008 | C7: WR - Total gross operational expenditure -real - including cost sharing | D7: £m | E7: Price Review 2019 | F7: ='Cost profiling'!K34 -> 3.544859378 | G7: ='Cost profiling'!L34 -> 3.258446842 | H7: ='Cost profiling'!M34 -> 3.211047584 | I7: ='Cost profiling'!N34 -> 3.186843708 | J7: ='Cost profiling'!O34 -> 3.37038977
B8: C_WRCAPEXFM_PR19FM008 | C8: WR - Total gross capital expenditure - real (including g&c) - including cost sharing | D8: £m | E8: Price Review 2019 | F8: ='Cost profiling'!K33 -> 2.524262595 | G8: ='Cost profiling'!L33 -> 2.632171544 | H8: ='Cost profiling'!M33 -> 1.341298143 | I8: ='Cost profiling'!N33 -> 1.204142844 | J8: ='Cost profiling'!O33 -> 1.181955958
B9: C_WRTOTEXFM_PR19FM008 | C9: WR - Total gross totex - real - including cost sharing | D9: £m | E9: Price Review 2019 | F9: =F8+F7 -> 6.069121973 | G9: =G8+G7 -> 5.890618386 | H9: 4.552345727 | I9: 4.390986552 | J9: 4.552345727
B10: C_WNOPEXFM_PR19FM008 | C10: WN - Total gross operational expenditure -real - including cost sharing | D10: £m | E10: Price Review 2019 | F10: ='Cost profiling'!K79 -> 15.37135827 | G10: ='Cost profiling'!L79 -> 14.88461862 | H10: ='Cost profiling'!M79 -> 14.87360188 | I10: ='Cost profiling'!N79 -> 14.7464086 | J10: ='Cost profiling'!O79 -> 14.95472515
B11: C_WNCAPEXFM_PR19FM008 | C11: WN - Total gross capital expenditure - real - including cost sharing | D11: £m | E11: Price Review 2019 | F11: ='Cost profiling'!K78 -> 6.672138962 | G11: ='Cost profiling'!L78 -> 7.02767924 | H11: ='Cost profiling'!M78 -> 7.607560426 | I11: ='Cost profiling'!N78 -> 7.321125159 | J11: ='Cost profiling'!O78 -> 7.266041454
B12: C_WNTOTEXFM_PR19FM008 | C12: WN - Total gross totex - real (including g&c) - including cost sharing | D12: £m | E12: Price Review 2019 | F12: =F11+F10 -> 22.04349723 | G12: =G11+G10 -> 21.91229786 | H12: 22.48116231 | I12: 22.06753376 | J12: 22.22076661
B13: C_WWN_PR19FM008 | C13: Final cost allowance for Network Plus Wastewater - including cost sharing | D13: £m | E13: Price Review 2019 | F13: ='Cost profiling'!K127 -> 3.929560815 | G13: ='Cost profiling'!L127 -> 4.267106531 | H13: ='Cost profiling'!M127 -> 4.471464027 | I13: ='Cost profiling'!N127 -> 5.604072242 | J13: ='Cost profiling'!O127 -> 4.005813613
B14: C_WWNOPEXFM_PR19FM008 | C14: WWN - Total gross operational expenditure - real - including cost sharing | D14: £m | E14: Price Review 2019 | F14: ='Cost profiling'!K126 -> 2.511258788 | G14: ='Cost profiling'!L126 -> 2.520409123 | H14: ='Cost profiling'!M126 -> 2.49397482 | I14: ='Cost profiling'!N126 -> 2.481774373 | J14: ='Cost profiling'!O126 -> 2.484824485
B15: C_WWNCAPEXFM_PR19FM008 | C15: WWN - Total gross capital expenditure - real - including cost sharing | D15: £m | E15: Price Review 2019 | F15: ='Cost profiling'!K125 -> 1.418302028 | G15: ='Cost profiling'!L125 -> 1.746697408 | H15: ='Cost profiling'!M125 -> 1.977489207 | I15: ='Cost profiling'!N125 -> 3.122297869 | J15: ='Cost profiling'!O125 -> 1.520989128
B16: C_BROPEXFM_PR19FM008 | C16: BIO - Total gross operational expenditure -real | D16: £m | E16: Price Review 2019 | F16: ='Cost profiling'!K171 -> 1.037308574 | G16: ='Cost profiling'!L171 -> 1.078919806 | H16: ='Cost profiling'!M171 -> 1.078919806 | I16: ='Cost profiling'!N171 -> 1.078919806 | J16: ='Cost profiling'!O171 -> 1.078919806
B17: C_BRCAPEXFM_PR19FM008 | C17: BIO - Total gross capital expenditure - real (including g&c) | D17: £m | E17: Price Review 2019 | F17: ='Cost profiling'!K170 -> 0 | G17: ='Cost profiling'!L170 -> 0 | H17: ='Cost profiling'!M170 -> 0 | I17: ='Cost profiling'!N170 -> 0 | J17: ='Cost profiling'!O170 -> 0
B18: C_BRTOTEXFM_PR19FM008 | C18: BIO - Total gross totex - real | D18: £m | E18: Price Review 2019 | F18: ='Cost profiling'!K175 -> 1.037308574 | G18: ='Cost profiling'!L175 -> 1.078919806 | H18: ='Cost profiling'!M175 -> 1.078919806 | I18: ='Cost profiling'!N175 -> 1.078919806 | J18: ='Cost profiling'!O175 -> 1.078919806
B19: C_DUMMYOPEXFM_PR19FM008 | C19: Dummy - profiled total opex | D19: £m | E19: Price Review 2019 | F19: ='Cost profiling'!K206 -> 0 | G19: ='Cost profiling'!L206 -> 0 | H19: ='Cost profiling'!M206 -> 0 | I19: ='Cost profiling'!N206 -> 0 | J19: ='Cost profiling'!O206 -> 0
B20: C_DUMMYCAPEXFM_PR19FM008 | C20: Dummy - profiled total capex | D20: £m | E20: Price Review 2019 | F20: ='Cost profiling'!K205 -> 0 | G20: ='Cost profiling'!L205 -> 0 | H20: ='Cost profiling'!M205 -> 0 | I20: ='Cost profiling'!N205 -> 0 | J20: ='Cost profiling'!O205 -> 0
B21: C_DUMMYTOTEXFM_PR19FM008 | C21: Dummy - profiled total expenditure | D21: £m | E21: Price Review 2019 | F21: ='Cost profiling'!K210 -> 0 | G21: ='Cost profiling'!L210 -> 0 | H21: ='Cost profiling'!M210 -> 0 | I21: ='Cost profiling'!N210 -> 0 | J21: ='Cost profiling'!O210 -> 0
B22: C_WR_CS_EXANTE_001 | C22: ='Ex-ante allowances'!$E$46 & " - Water Resources" -> Ex-ante allowance above Ofwat forecast - Active - Water Resources | D22: £m | E22: Price Review 2019 | K22: ='Ex-ante allowances'!$F$46 -> -0.1979749526
B23: C_WN_CS_EXANTE_001 | C23: ='Ex-ante allowances'!$E$106 -> Ex-ante allowance above Ofwat forecast - Active - Water Network | D23: £m | E23: Price Review 2019 | K23: ='Ex-ante allowances'!$F$106 -> -0.9632519356
B24: C_WWN_CS_EXANTE_001 | C24: ='Ex-ante allowances'!$E$158 -> Ex-ante allowance above Ofwat forecast - Active - Wastewater Network | D24: £m | E24: Price Review 2019 | K24: ='Ex-ante allowances'!$F$158 -> -0.413082925
B25: C_WR_WN_OUTPERFORM_001 | C25: ='Dashboard - WR + WN'!B51 -> Cost sharing rate for outperform | D25: ='Dashboard - WR + WN'!D51 -> % | E25: Price Review 2019 | K25: ='Dashboard - WR + WN'!C51 -> 0.5199365665
B26: C_WR_WN_UNDERPERFORM_001 | C26: ='Dashboard - WR + WN'!B52 -> Cost sharing rate for underperform | D26: ='Dashboard - WR + WN'!D52 -> % | E26: Price Review 2019 | K26: ='Dashboard - WR + WN'!C52 -> 0.5
B27: C_WWN_OUTPERFORM_001 | C27: ='Dashboard - WWN'!B51 -> Cost sharing rate for outperform | D27: % | E27: Price Review 2019 | K27: ='Dashboard - WWN'!C51 -> 0.5395353309
B28: C_WWN_UNDERPERFORM_001 | C28: ='Dashboard - WWN'!B52 -> Cost sharing rate for underperform | D28: % | E28: Price Review 2019 | K28: ='Dashboard - WWN'!C52 -> 0.5
B29: TC_PR19FM008_QA1 | C29: Cost sharing model time stamp | D29: text | E29: Price Review 2019 | F29: =CONCATENATE("[…]", TEXT(NOW(),"dd/mm/yyy hh:mm:ss")) -> […]12/07/2019 15:05:42 | G29: =CONCATENATE("[…]", TEXT(NOW(),"dd/mm/yyy hh:mm:ss")) -> […]12/07/2019 15:05:42 | H29: […]12/07/2019 15:05:42 | I29: […]12/07/2019 15:05:42 | J29: […]12/07/2019 15:05:42
B30: TC_PR19FM008_QA2 | C30: Cost sharing model date stamp | D30: text | E30: Price Review 2019 | F30: =CONCATENATE("[…]", TEXT(NOW(),"dd/mm/yyy hh:mm:ss")) -> […]12/07/2019 15:05:42 | G30: […]12/07/2019 15:05:42 | H30: […]12/07/2019 15:05:42 | I30: […]12/07/2019 15:05:42 | J30: […]12/07/2019 15:05:42

Sheet Integrity checks-->

Sheet Check
A1: =RIGHT(CELL("filename", $A$1), LEN(CELL("filename", $A$1)) - SEARCH("]", CELL("filename", $A$1))) -> Check
E2: =Time!E$22 -> Model Period BEG | J2: =Time!J$22 -> 2019-04-01 | K2: =Time!K$22 -> 2020-04-01 | L2: =Time!L$22 -> 2021-04-01 | M2: =Time!M$22 -> 2022-04-01 | N2: =Time!N$22 -> 2023-04-01 | O2: =Time!O$22 -> 2024-04-01 | P2: =Time!P$22 -> 2025-04-01
E3: =Time!E$23 -> Model Period END | F3: =Check!F$8 -> 0 | G3: Error chks | J3: =Time!J$23 -> 2020-03-31 | K3: =Time!K$23 -> 2021-03-31 | L3: =Time!L$23 -> 2022-03-31 | M3: =Time!M$23 -> 2023-03-31 | N3: =Time!N$23 -> 2024-03-31 | O3: =Time!O$23 -> 2025-03-31 | P3: =Time!P$23 -> 2026-03-31
E4: =Time!E$59 -> Pre Forecast vs Forecast | F4: =Check!$F$20 -> 35 | G4: Track checks | J4: =Time!J$59 -> Pre Fcst | K4: =Time!K$59 -> Forecast | L4: =Time!L$59 -> Forecast | M4: =Time!M$59 -> Forecast | N4: =Time!N$59 -> Forecast | O4: =Time!O$59 -> Forecast | P4: =Time!P$59 -> Post-Fcst
E5: =Time!E$101 -> Financial Year Ending | J5: =Time!J$101 -> 2020 | K5: =Time!K$101 -> 2021 | L5: =Time!L$101 -> 2022 | M5: =Time!M$101 -> 2023 | N5: =Time!N$101 -> 2024 | O5: =Time!O$101 -> 2025 | P5: =Time!P$101 -> 2026
E6: =Time!E$11 -> Model column counter | F6: Constant | G6: Unit | H6: Total | J6: =Time!J$11 -> 1 | K6: =Time!K$11 -> 2 | L6: =Time!L$11 -> 3 | M6: =Time!M$11 -> 4 | N6: =Time!N$11 -> 5 | O6: =Time!O$11 -> 6 | P6: =Time!P$11 -> 7
E8: Total error checks | F8: =SUM(F10:F18) -> 0 | G8: check
A10: [Do not delete]
E12: ='Cost profiling'!E43 -> Water resources - profiled total expenditure check | F12: ='Cost profiling'!F43 -> 0 | G12: ='Cost profiling'!G43 -> check
E13: ='Cost profiling'!E88 -> Water network - profiled total expenditure check | F13: ='Cost profiling'!F88 -> 0 | G13: ='Cost profiling'!G88 -> check
E14: ='Cost profiling'!E132 -> Wastewater network - profiled total expenditure check | F14: ='Cost profiling'!F132 -> 0 | G14: ='Cost profiling'!G132 -> check
E15: ='Cost profiling'!E180 -> Bioresources - profiled total expenditure check | F15: ='Cost profiling'!F180 -> 0 | G15: ='Cost profiling'!G180 -> check
E16: ='Cost profiling'!E215 -> Dummy - profiled total expenditure check | F16: ='Cost profiling'!F215 -> 0 | G16: ='Cost profiling'!G215 -> check
A18: [Do not delete]
E20: Total track changes | F20: =Track!I$2 -> 35 | G20: check
A22: END OF SHEET

Sheet Track
A1: =RIGHT(CELL("filename", $A$1), LEN(CELL("filename", $A$1)) - SEARCH("]", CELL("filename", $A$1))) -> Track | L1: do not del col
F2: =Check!F$8 -> 0 | G2: Error chks | I2: =SUM(I6:I60) -> 35
E3: Store Track | F3: =Check!$F$20 -> 35 | G3: Track checks
F5: Nil inputs | I5: =MATCH($F$5, L5:AE5, 0) -> 2 | M5: Nil inputs
E6: [do not delete row]
A7: INPUTS
I8: =IF(ABS(J8) > Trk_Tol, 1, 0) -> 0 | J8: =F8 - INDEX(L8:BT8, $I$5) -> 0 | K8: =IF(ABS(J8) > Trk_Tol, IF(INDEX(L8:BT8, $I$5) = 0, 0, F8 / INDEX(L8:BT8, $I$5) - 1), 0) -> 0
E9: ='Ex-ante allowances'!E13 -> Water Resources - Total Expenditure | F9: ='Ex-ante allowances'!F13 -> 17.97705248 | G9: ='Ex-ante allowances'!G13 -> £m | I9: 1 | J9: 17.97705248 | K9: 0
E10: ='Ex-ante allowances'!E17 -> Water Resources - Ofwat Baseline Total Gross Totex - Real | F10: ='Ex-ante allowances'!F17 -> 18.3894458 | G10: ='Ex-ante allowances'!G17 -> £m | I10: 1 | J10: 18.3894458 | K10: 0
E11: ='Ex-ante allowances'!E21 -> [Company outturn totex - Water Resources] | F11: ='Ex-ante allowances'!F21 -> 17.97705248 | G11: ='Ex-ante allowances'!G21 -> £m | I11: 1 | J11: 17.97705248 | K11: 0
E12: ='Ex-ante allowances'!E30 -> Incentive payment (+) or penalty (-) | F12: ='Ex-ante allowances'!F30 -> 0.2144183663 | G12: ='Ex-ante allowances'!G30 -> £m | I12: 1 | J12: 0.2144183663 | K12: 0
E13: ='Ex-ante allowances'!E31 -> Ex-ante allowance above Ofwat forecast | F13: ='Ex-ante allowances'!F31 -> -0.1979749526 | G13: ='Ex-ante allowances'!G31 -> £m | I13: 1 | J13: -0.1979749526 | K13: 0
E14: ='Ex-ante allowances'!E40 -> Incentive payment (+) or penalty (-) - significant scrutiny | F14: ='Ex-ante allowances'!F40 -> 0.1030983297 | G14: ='Ex-ante allowances'!G40 -> £m | I14: 1 | J14: 0.1030983297 | K14: 0
E15: ='Ex-ante allowances'!E41 -> Ex-ante allowance above Ofwat forecast - significant scrutiny | F15: ='Ex-ante allowances'!F41 -> -0.3092949892 | G15: ='Ex-ante allowances'!G41 -> £m | I15: 1 | J15: -0.3092949892 | K15: 0
E16: ='Ex-ante allowances'!E56 -> Water resources - total cost allowance including ex-ante cost sharing - active | F16: ='Ex-ante allowances'!F56 -> 18.19147085 | G16: ='Ex-ante allowances'!G56 -> £m | I16: 1 | J16: 18.19147085 | K16: 0
E17: ='Cost profiling'!E$33 -> Water resources - profiled total capex | F17: ='Cost profiling'!H$33 -> 8.883831084 | G17: ='Cost profiling'!G$33 -> £m | I17: 1 | J17: 8.883831084 | K17: 0
E18: ='Cost profiling'!E$34 -> Water resources - profiled total opex | F18: ='Cost profiling'!H$34 -> 16.57158728 | G18: ='Cost profiling'!G$34 -> £m | I18: 1 | J18: 16.57158728 | K18: 0
E19: ='Cost profiling'!E$38 -> Water resources - profiled total expenditure | F19: ='Cost profiling'!H$38 -> 25.45541837 | G19: ='Cost profiling'!G$38 -> £m | I19: 1 | J19: 25.45541837 | K19: 0
I20: 0 | J20: 0 | K20: 0
I21: 0 | J21: 0 | K21: 0
E22: ='Ex-ante allowances'!E65 -> Water Network - Total Expenditure | F22: ='Ex-ante allowances'!F65 -> 100.9340144 | G22: ='Ex-ante allowances'!G65 -> £m | I22: 1 | J22: 100.9340144 | K22: 0
E23: ='Ex-ante allowances'!E69 -> Water Network - Ofwat Baseline Total Gross Totex - Real | F23: ='Ex-ante allowances'!F69 -> 102.9405241 | G23: ='Ex-ante allowances'!G69 -> £m | I23: 1 | J23: 102.9405241 | K23: 0
E24: ='Ex-ante allowances'!E77 -> [Company outturn totex - Water Network] | F24: ='Ex-ante allowances'!F77 -> 100.9340144 | G24: ='Ex-ante allowances'!G77 -> £m | I24: 1 | J24: 100.9340144 | K24: 0
E25: ='Ex-ante allowances'!E90 -> Incentive payment (+) or penalty (-) - Water Network | F25: ='Ex-ante allowances'!F90 -> 1.043257764 | G25: ='Ex-ante allowances'!G90 -> £m | I25: 1 | J25: 1.043257764 | K25: 0
E26: ='Ex-ante allowances'!E91 -> Ex-ante allowance above Ofwat forecast - Water Network | F26: ='Ex-ante allowances'!F91 -> -0.9632519356 | G26: ='Ex-ante allowances'!G91 -> £m | I26: 1 | J26: -0.9632519356 | K26: 0
E27: ='Ex-ante allowances'!E100 -> Incentive payment (+) or penalty (-) - significant scrutiny - Water Network | F27: ='Ex-ante allowances'!F100 -> 0.5016274248 | G27: ='Ex-ante allowances'!G100 -> £m | I27: 1 | J27: 0.5016274248 | K27: 0
E28: ='Ex-ante allowances'!E101 -> Ex-ante allowance above Ofwat forecast - significant scrutiny - Water Network | F28: ='Ex-ante allowances'!F101 -> -1.504882275 | G28: ='Ex-ante allowances'!G101 -> £m | I28: 1 | J28: -1.504882275 | K28: 0
E29: ='Ex-ante allowances'!E116 -> Water network - total cost allowance including ex-ante cost sharing - active | F29: ='Ex-ante allowances'!F116 -> 101.9772722 | G29: ='Ex-ante allowances'!G116 -> £m | I29: 1 | J29: 101.9772722 | K29: 0
E30: ='Cost profiling'!E$78 -> Water network - profiled total capex | F30: ='Cost profiling'!H$78 -> 35.89454524 | G30: ='Cost profiling'!G$78 -> £m | I30: 1 | J30: 35.89454524 | K30: 0
E31: ='Cost profiling'!E$79 -> Water network - profiled total opex | F31: ='Cost profiling'!H$79 -> 74.83071252 | G31: ='Cost profiling'!G$79 -> £m | I31: 1 | J31: 74.83071252 | K31: 0
E32: ='Cost profiling'!E$83 -> Water network - profiled total expenditure | F32: ='Cost profiling'!H$83 -> 110.7252578 | G32: ='Cost profiling'!G$83 -> £m | I32: 1 | J32: 110.7252578 | K32: 0
I33: 0 | J33: 0 | K33: 0
E34: ='Ex-ante allowances'!E123 -> Wastewater Network - Total Expenditure | F34: ='Ex-ante allowances'!F123 -> 21.794 | G34: ='Ex-ante allowances'!G123 -> £m | I34: 1 | J34: 21.794 | K34: 0
E35: ='Ex-ante allowances'!E127 -> Wastewater Network - Ofwat Baseline Total Gross Totex - Real | F35: ='Ex-ante allowances'!F127 -> 22.69110015 | G35: ='Ex-ante allowances'!G127 -> £m | I35: 1 | J35: 22.69110015 | K35: 0
E36: ='Ex-ante allowances'!E133 -> [Company outturn totex of - Wastewater Network] | F36: ='Ex-ante allowances'!F133 -> 21.794 | G36: ='Ex-ante allowances'!G133 -> £m | I36: 1 | J36: 21.794 | K36: 0
E37: ='Ex-ante allowances'!E142 -> Incentive payment (+) or penalty (-) - Wastewater Network | F37: ='Ex-ante allowances'!F142 -> 0.4840172277 | G37: ='Ex-ante allowances'!G142 -> £m | I37: 1 | J37: 0.4840172277 | K37: 0
E38: ='Ex-ante allowances'!E143 -> Ex-ante allowance above Ofwat forecast - Wastewater Network | F38: ='Ex-ante allowances'!F143 -> -0.413082925 | G38: ='Ex-ante allowances'!G143 -> £m | I38: 1 | J38: -0.413082925 | K38: 0
E39: ='Ex-ante allowances'!E152 -> Incentive payment (+) or penalty (-) - significant scrutiny - Wastewater Network | F39: ='Ex-ante allowances'!F152 -> 0.2242750382 | G39: ='Ex-ante allowances'!G152 -> £m | I39: 1 | J39: 0.2242750382 | K39: 0
E40: ='Ex-ante allowances'!E153 -> Ex-ante allowance above Ofwat forecast - significant scrutiny - Wastewater Network | F40: ='Ex-ante allowances'!F153 -> -0.6728251145 | G40: ='Ex-ante allowances'!G153 -> £m | I40: 1 | J40: -0.6728251145 | K40: 0
E41: ='Ex-ante allowances'!E168 -> Wastewater Network - total cost allowance including ex-ante cost sharing - active | F41: ='Ex-ante allowances'!F168 -> 22.27801723 | G41: ='Ex-ante allowances'!G168 -> £m | I41: 1 | J41: 22.27801723 | K41: 0
E42: ='Cost profiling'!E$122 -> Wastewater network - profiled total capex | F42: ='Cost profiling'!H122 -> 9.78577564 | G42: ='Cost profiling'!G122 -> £m | I42: 1 | J42: 9.78577564 | K42: 0
E43: ='Cost profiling'!E$123 -> Wastewater network - profiled total opex | F43: ='Cost profiling'!H123 -> 12.49224159 | G43: ='Cost profiling'!G123 -> £m | I43: 1 | J43: 12.49224159 | K43: 0
E44: ='Cost profiling'!E$127 -> Wastewater network - profiled total expenditure | F44: ='Cost profiling'!H127 -> 22.27801723 | G44: ='Cost profiling'!G127 -> £m | I44: 1 | J44: 22.27801723 | K44: 0
I45: 0 | J45: 0 | K45: 0
E46: ='Cost profiling'!E$170 -> Bioresources - profiled total capex | F46: ='Cost profiling'!H170 -> 0 | G46: ='Cost profiling'!G170 -> £m | I46: 0 | J46: 0 | K46: 0
E47: ='Cost profiling'!E$171 -> Bioresources - profiled total opex | F47: ='Cost profiling'!H171 -> 5.352987796 | G47: ='Cost profiling'!G171 -> £m | I47: 1 | J47: 5.352987796 | K47: 0
E48: ='Cost profiling'!E$175 -> Bioresources - profiled total expenditure | F48: ='Cost profiling'!H175 -> 5.352987796 | G48: ='Cost profiling'!G175 -> £m | I48: 1 | J48: 5.352987796 | K48: 0
I49: 0 | J49: 0 | K49: 0
E50: ='Cost profiling'!E$205 -> Dummy - profiled total capex | F50: ='Cost profiling'!H205 -> 0 | G50: ='Cost profiling'!G205 -> £m | I50: 0 | J50: 0 | K50: 0
E51: ='Cost profiling'!E$206 -> Dummy - profiled total opex | F51: ='Cost profiling'!H206 -> 0 | G51: ='Cost profiling'!G206 -> £m | I51: 0 | J51: 0 | K51: 0
E52: ='Cost profiling'!E$210 -> Dummy - profiled total expenditure | F52: ='Cost profiling'!H210 -> 0 | G52: ='Cost profiling'!G210 -> £m | I52: 0 | J52: 0 | K52: 0
I53: 0 | J53: 0 | K53: 0
A54: INFO ONLY
E56: Date | F56: =TODAY() -> 2019-07-12
E57: Time | F57: =NOW() -> 43658.62896
E58: File | F58: =MID(CELL("filename",$A$1), SEARCH("[", CELL("filename",$A$1)) + 1, SEARCH("]", CELL("filename",$A$1)) - SEARCH("[", CELL("filename",$A$1)) - 1) -> Cost Sharing model_HDD_ST_DD.xlsm
E60: [do not delete row] | I60: range end
E62: Comment: Key input and logic changes | M62: Nil inputs
E63: Comment: Key result changes
A66: End of sheet
